Workbook

Sheet Forma Nr.2 VISO
J1: Biudžeto vykdymo ataskaitų rinkinių rengimo taisyklių
J2: 1 priedas
A8: (Biudžeto išlaidų sąmatos vykdymo 2025 m. birželio mėn. 30 d. ketvirčio, pusmečio, metų ataskaitos forma, Nr.2)
A10: Vaikų ir jaunimo laisvalaikio centras, 195174984
A11: (įstaigos pavadinimas, kodas Juridinių asmenų registre, adresas)
G13: BIUDŽETO IŠLAIDŲ SĄMATOS VYKDYMO
A14: 2025 M. BIRŽELIO MĖN. 30 D.
G15: 2 ketvirtis
G16: (I ketvirčio, pusmečio, 9 mėnesių, metinė)
B17: ATASKAITA
G19: 2025.07.10 Nr.________________
G20: (data)
A23: (programos pavadinimas)
L24: Kodas
J25: Ministerijos / Savivaldybės
K26: Departamento
K27: Įstaigos | L27: 195174984
J28: Programos
G29: Finansavimo šaltinio
G30: Valstybės funkcijos
L31: (eurais, ct)
A32: Išlaidų ekonominės klasifikacijos kodas | G32: Išlaidų pavadinimas | H32: Eil. Nr. | I32: Asignavimų planas, įskaitant patikslinimus | K32: Gauti asignavimai kartu su įskaitytu praėjusių metų lėšų likučiu | L32: Panaudoti asignavimai
I33: metams | J33: ataskaitiniam laikotarpiui
A34: 1 | G34: 2 | H34: 3 | I34: 4 | J34: 5 | K34: 6 | L34: 7
A35: 2 | G35: IŠLAIDOS | H35: 1 | I35: =SUM(I36+I47+I67+I88+I95+I115+I141+I160+I170) -> 467800.00 | J35: =SUM(J36+J47+J67+J88+J95+J115+J141+J160+J170) -> 295300.00 | K35: =SUM(K36+K47+K67+K88+K95+K115+K141+K160+K170) -> 233357.87 | L35: =SUM(L36+L47+L67+L88+L95+L115+L141+L160+L170) -> 233357.87
A36: 2 | B36: 1 | G36: Darbo užmokestis ir socialinis draudimas | H36: 2 | I36: =SUM(I37+I43) -> 401500.00 | J36: =SUM(J37+J43) -> 248900.00 | K36: =SUM(K37+K43) -> 204701.00 | L36: =SUM(L37+L43) -> 204701.00
A37: 2 | B37: 1 | C37: 1 | G37: Darbo užmokestis | H37: 3 | I37: =SUM(I38) -> 394900.00 | J37: =SUM(J38) -> 244900.00 | K37: =SUM(K38) -> 201456.88 | L37: =SUM(L38) -> 201456.88
A38: 2 | B38: 1 | C38: 1 | D38: 1 | G38: Darbo užmokestis | H38: 4 | I38: =SUM(I39+I41) -> 394900.00 | J38: =SUM(J39) -> 244900.00 | K38: 201456.88 | L38: 201456.88
A39: 2 | B39: 1 | C39: 1 | D39: 1 | E39: 1 | G39: Darbo užmokestis pinigais | H39: 5 | I39: =SUM(I40) -> 394900.00 | J39: 244900.00 | K39: 201456.88 | L39: 201456.88
A40: 2 | B40: 1 | C40: 1 | D40: 1 | E40: 1 | F40: 1 | G40: Darbo užmokestis pinigais | H40: 6 | I40: 394900.00 | J40: 244900.00 | K40: 201456.88 | L40: 201456.88
A41: 2 | B41: 1 | C41: 1 | D41: 1 | E41: 2 | G41: Pajamos natūra | H41: 7 | I41: =I42 -> 0.00 | J41: =J42 -> 0.00 | K41: =K42 -> 0.00 | L41: =L42 -> 0.00
A42: 2 | B42: 1 | C42: 1 | D42: 1 | E42: 2 | F42: 1 | G42: Pajamos natūra | H42: 8 | I42: 0.00 | J42: 0.00 | K42: 0.00 | L42: 0.00
A43: 2 | B43: 1 | C43: 2 | G43: Socialinio draudimo įmokos | H43: 9 | I43: =I44 -> 6600.00 | J43: 4000.00 | K43: 3244.12 | L43: 3244.12
A44: 2 | B44: 1 | C44: 2 | D44: 1 | G44: Socialinio draudimo įmokos | H44: 10 | I44: 6600.00 | J44: 4000.00 | K44: 3244.12 | L44: 3244.12
A45: 2 | B45: 1 | C45: 2 | D45: 1 | E45: 1 | G45: Socialinio draudimo įmokos | H45: 11 | I45: 6600.00 | J45: 4000.00 | K45: 3244.12 | L45: 3244.12
A46: 2 | B46: 1 | C46: 2 | D46: 1 | E46: 1 | F46: 1 | G46: Socialinio draudimo įmokos | H46: 12 | I46: 6600.00 | J46: 4000.00 | K46: 3244.12 | L46: 3244.12
A47: 2 | B47: 2 | G47: Prekių ir paslaugų įsigijimo išlaidos | H47: 13 | I47: =I48 -> 60100.00 | J47: 42500.00 | K47: 24764.83 | L47: 24764.83
A48: 2 | B48: 2 | C48: 1 | G48: Prekių ir paslaugų įsigijimo išlaidos | H48: 14 | I48: 60100.00 | J48: 42500.00 | K48: 24764.83 | L48: 24764.83
A49: 2 | B49: 2 | C49: 1 | D49: 1 | G49: Prekių ir paslaugų įsigijimo išlaidos | H49: 15 | I49: 60100.00 | J49: 42500.00 | K49: 24764.83 | L49: 24764.83
A50: 2 | B50: 2 | C50: 1 | D50: 1 | E50: 1 | G50: Prekių ir paslaugų įsigijimo išlaidos | H50: 16 | I50: =SUM(I51:I66) -> 60100.00 | J50: =SUM(J51:J66) -> 42500.00 | K50: =SUM(K51:K66) -> 24764.83 | L50: =SUM(L51:L66) -> 24764.83
A51: 2 | B51: 2 | C51: 1 | D51: 1 | E51: 1 | F51: 1 | G51: Mitybos išlaidos | H51: 17 | I51: 0.00 | J51: 0.00 | K51: 0.00 | L51: 0.00
A52: 2 | B52: 2 | C52: 1 | D52: 1 | E52: 1 | F52: 2 | G52: Medikamentų ir medicininių prekių bei paslaugų įsigijimo išlaidos | H52: 18 | I52: 400.00 | J52: 200.00 | K52: 0.00 | L52: 0.00
A53: 2 | B53: 2 | C53: 1 | D53: 1 | E53: 1 | F53: 5 | G53: Ryšių įrangos ir ryšių paslaugų įsigijimo išlaidos | H53: 19 | I53: 2300.00 | J53: 1400.00 | K53: 863.92 | L53: 863.92
A54: 2 | B54: 2 | C54: 1 | D54: 1 | E54: 1 | F54: 6 | G54: Transporto išlaikymo ir transporto paslaugų įsigijimo išlaidos | H54: 20 | I54: 0.00 | J54: 0.00 | K54: 0.00 | L54: 0.00
A55: 2 | B55: 2 | C55: 1 | D55: 1 | E55: 1 | F55: 7 | G55: Aprangos ir patalynės įsigijimo bei priežiūros išlaidos | H55: 21 | I55: 0.00 | J55: 0.00 | K55: 0.00 | L55: 0.00
A56: 2 | B56: 2 | C56: 1 | D56: 1 | E56: 1 | F56: 11 | G56: Komandiruočių išlaidos | H56: 22 | I56: 300.00 | J56: 300.00 | K56: 0.00 | L56: 0.00
A57: 2 | B57: 2 | C57: 1 | D57: 1 | E57: 1 | F57: 12 | G57: Gyvenamųjų vietovių viešojo ūkio išlaidos | H57: 23 | I57: 0.00 | J57: 0.00 | K57: 0.00 | L57: 0.00
A58: 2 | B58: 2 | C58: 1 | D58: 1 | E58: 1 | F58: 14 | G58: Materialiojo ir nematerialiojo turto nuomos išlaidos | H58: 24 | I58: 0.00 | J58: 0.00 | K58: 0.00 | L58: 0.00
A59: 2 | B59: 2 | C59: 1 | D59: 1 | E59: 1 | F59: 15 | G59: Materialiojo turto paprastojo remonto prekių ir paslaugų įsigijimo išlaidos | H59: 25 | I59: 2400.00 | J59: 1800.00 | K59: 1111.70 | L59: 1111.70
A60: 2 | B60: 2 | C60: 1 | D60: 1 | E60: 1 | F60: 16 | G60: Kvalifikacijos kėlimo išlaidos | H60: 26 | I60: 2000.00 | J60: 1400.00 | K60: 583.30 | L60: 583.30
A61: 2 | B61: 2 | C61: 1 | D61: 1 | E61: 1 | F61: 17 | G61: Ekspertų ir konsultantų paslaugų įsigijimo išlaidos | H61: 27 | I61: 0.00 | J61: 0.00 | K61: 0.00 | L61: 0.00
A62: 2 | B62: 2 | C62: 1 | D62: 1 | E62: 1 | F62: 20 | G62: Komunalinių paslaugų įsigijimo išlaidos | H62: 28 | I62: 29700.00 | J62: 22000.00 | K62: 14568.50 | L62: 14568.50
A63: 2 | B63: 2 | C63: 1 | D63: 1 | E63: 1 | F63: 21 | G63: Informacinių technologijų prekių ir paslaugų įsigijimo išlaidos | H63: 29 | I63: 5200.00 | J63: 4200.00 | K63: 1668.56 | L63: 1668.56
A64: 2 | B64: 2 | C64: 1 | D64: 1 | E64: 1 | F64: 22 | G64: Reprezentacinės išlaidos | H64: 30 | I64: 300.00 | J64: 200.00 | K64: 0.00 | L64: 0.00
A65: 2 | B65: 2 | C65: 1 | D65: 1 | E65: 1 | F65: 23 | G65: Viešinimo išlaidos | H65: 31 | I65: 0.00 | J65: 0.00 | K65: 0.00 | L65: 0.00
A66: 2 | B66: 2 | C66: 1 | D66: 1 | E66: 1 | F66: 30 | G66: Kitų prekių ir paslaugų įsigijimo išlaidos | H66: 32 | I66: 17500.00 | J66: 11000.00 | K66: 5968.85 | L66: 5968.85
A67: 2 | B67: 3 | G67: Palūkanos | H67: 33 | I67: =I68 -> 0.00 | J67: =J68 -> 0.00 | K67: =K68 -> 0.00 | L67: =L68 -> 0.00
A68: 2 | B68: 3 | C68: 1 | G68: Palūkanos | H68: 34 | I68: =SUM(I69+I74+I79) -> 0.00 | J68: =SUM(J69+J74+J79) -> 0.00 | K68: =SUM(K69+K74+K79) -> 0.00 | L68: =SUM(L69+L74+L79) -> 0.00
A69: 2 | B69: 3 | C69: 1 | D69: 1 | G69: Palūkanos nerezidentams | H69: 35 | I69: =I70 -> 0.00 | J69: =J70 -> 0.00 | K69: =K70 -> 0.00 | L69: =L70 -> 0.00
A70: 2 | B70: 3 | C70: 1 | D70: 1 | E70: 1 | G70: Palūkanos nerezidentams | H70: 36 | I70: =SUM(I71:I73) -> 0.00 | J70: =SUM(J71:J73) -> 0.00 | K70: =SUM(K71:K73) -> 0.00 | L70: =SUM(L71:L73) -> 0.00
A71: 2 | B71: 3 | C71: 1 | D71: 1 | E71: 1 | F71: 1 | G71: Asignavimų valdytojų sumokėtos palūkanos | H71: 37 | I71: 0.00 | J71: 0.00 | K71: 0.00 | L71: 0.00
A72: 2 | B72: 3 | C72: 1 | D72: 1 | E72: 1 | F72: 2 | G72: Finansų ministerijos sumokėtos palūkanos | H72: 38 | I72: 0.00 | J72: 0.00 | K72: 0.00 | L72: 0.00
A73: 2 | B73: 3 | C73: 1 | D73: 1 | E73: 1 | F73: 3 | G73: Savivaldybių sumokėtos palūkanos | H73: 39 | I73: 0.00 | J73: 0.00 | K73: 0.00 | L73: 0.00
A74: 2 | B74: 3 | C74: 1 | D74: 2 | G74: Palūkanos rezidentams, kitiems nei valdžios sektorius (tik už tiesioginę skolą) | H74: 40 | I74: =I75 -> 0.00 | J74: =J75 -> 0.00 | K74: =K75 -> 0.00 | L74: =L75 -> 0.00
A75: 2 | B75: 3 | C75: 1 | D75: 2 | E75: 1 | G75: Palūkanos rezidentams, kitiems nei valdžios sektorius (tik už tiesioginę skolą) | H75: 41 | I75: =SUM(I76:I78) -> 0.00 | J75: =SUM(J76:J78) -> 0.00 | K75: =SUM(K76:K78) -> 0.00 | L75: =SUM(L76:L78) -> 0.00
A76: 2 | B76: 3 | C76: 1 | D76: 2 | E76: 1 | F76: 1 | G76: Asignavimų valdytojų sumokėtos palūkanos | H76: 42 | I76: 0.00 | J76: 0.00 | K76: 0.00 | L76: 0.00
A77: 2 | B77: 3 | C77: 1 | D77: 2 | E77: 1 | F77: 2 | G77: Finansų ministerijos sumokėtos palūkanos | H77: 43 | I77: 0.00 | J77: 0.00 | K77: 0.00 | L77: 0.00
A78: 2 | B78: 3 | C78: 1 | D78: 2 | E78: 1 | F78: 3 | G78: Savivaldybių sumokėtos palūkanos | H78: 44 | I78: 0.00 | J78: 0.00 | K78: 0.00 | L78: 0.00
A79: 2 | B79: 3 | C79: 1 | D79: 3 | G79: Palūkanos kitiems valdžios sektoriaus subjektams | H79: 45 | I79: =I80 -> 0.00 | J79: =J80 -> 0.00 | K79: =K80 -> 0.00 | L79: =L80 -> 0.00
A80: 2 | B80: 3 | C80: 1 | D80: 3 | E80: 1 | G80: Palūkanos kitiems valdžios sektoriaus subjektams | H80: 46 | I80: =SUM(I81:I83) -> 0.00 | J80: =SUM(J81:J83) -> 0.00 | K80: =SUM(K81:K83) -> 0.00 | L80: =SUM(L81:L83) -> 0.00
A81: 2 | B81: 3 | C81: 1 | D81: 3 | E81: 1 | F81: 1 | G81: Palūkanos valstybės biudžetui | H81: 47 | I81: 0.00 | J81: 0.00 | K81: 0.00 | L81: 0.00
A82: 2 | B82: 3 | C82: 1 | D82: 3 | E82: 1 | F82: 2 | G82: Palūkanos savivaldybių biudžetams | H82: 48 | I82: 0.00 | J82: 0.00 | K82: 0.00 | L82: 0.00
A83: 2 | B83: 3 | C83: 1 | D83: 3 | E83: 1 | F83: 3 | G83: Palūkanos nebiudžetiniams fondams | H83: 49 | I83: 0.00 | J83: 0.00 | K83: 0.00 | L83: 0.00
A84: 2 | B84: 3 | C84: 2 | G84: Žemės nuoma | H84: 50 | I84: =I85 -> 0.00 | J84: 0.00 | K84: 0.00 | L84: 0.00
A85: 2 | B85: 3 | C85: 2 | D85: 1 | G85: Žemės nuoma | H85: 51 | I85: 0.00 | J85: 0.00 | K85: 0.00 | L85: 0.00
A86: 2 | B86: 3 | C86: 2 | D86: 1 | E86: 1 | G86: Žemės nuoma | H86: 52 | I86: =SUM(I87) -> 0.00 | J86: =SUM(J87) -> 0.00 | K86: =SUM(K87) -> 0.00 | L86: =SUM(L87) -> 0.00
A87: 2 | B87: 3 | C87: 2 | D87: 1 | E87: 1 | F87: 1 | G87: Žemės nuoma | H87: 53 | I87: 0.00 | J87: 0.00 | K87: 0.00 | L87: 0.00
A88: 2 | B88: 4 | G88: Subsidijos | H88: 54 | I88: =I89 -> 0.00 | J88: 0.00 | K88: 0.00 | L88: 0.00
A89: 2 | B89: 4 | C89: 1 | G89: Subsidijos iš biudžeto lėšų | H89: 55 | I89: 0.00 | J89: 0.00 | K89: 0.00 | L89: 0.00
A90: 2 | B90: 4 | C90: 1 | D90: 1 | G90: Subsidijos iš biudžeto lėšų | H90: 56 | I90: 0.00 | J90: 0.00 | K90: 0.00 | L90: 0.00
A91: 2 | B91: 4 | C91: 1 | D91: 1 | E91: 1 | G91: Subsidijos iš biudžeto lėšų | H91: 57 | I91: =SUM(I92:I94) -> 0.00 | J91: =SUM(J92:J94) -> 0.00 | K91: =SUM(K92:K94) -> 0.00 | L91: =SUM(L92:L94) -> 0.00
A92: 2 | B92: 4 | C92: 1 | D92: 1 | E92: 1 | F92: 1 | G92: Subsidijos importui | H92: 58 | I92: 0.00 | J92: 0.00 | K92: 0.00 | L92: 0.00
A93: 2 | B93: 4 | C93: 1 | D93: 1 | E93: 1 | F93: 2 | G93: Subsidijos gaminiams | H93: 59 | I93: 0.00 | J93: 0.00 | K93: 0.00 | L93: 0.00
A94: 2 | B94: 4 | C94: 1 | D94: 1 | E94: 1 | F94: 3 | G94: Subsidijos gamybai | H94: 60 | I94: 0.00 | J94: 0.00 | K94: 0.00 | L94: 0.00
A95: 2 | B95: 5 | G95: Dotacijos | H95: 61 | I95: =SUM(I96+I101+I106) -> 0.00 | J95: =SUM(J96+J101+J106) -> 0.00 | K95: =SUM(K96+K101+K106) -> 0.00 | L95: =SUM(L96+L101+L106) -> 0.00
A96: 2 | B96: 5 | C96: 1 | G96: Dotacijos užsienio valstybėms | H96: 62 | I96: =I97 -> 0.00 | J96: 0.00 | K96: 0.00 | L96: 0.00
A97: 2 | B97: 5 | C97: 1 | D97: 1 | G97: Dotacijos užsienio valstybėms | H97: 63 | I97: 0.00 | J97: 0.00 | K97: 0.00 | L97: 0.00
A98: 2 | B98: 5 | C98: 1 | D98: 1 | E98: 1 | G98: Dotacijos užsienio valstybėms | H98: 64 | I98: =SUM(I99:I100) -> 0.00 | J98: =SUM(J99:J100) -> 0.00 | K98: =SUM(K99:K100) -> 0.00 | L98: =SUM(L99:L100) -> 0.00
A99: 2 | B99: 5 | C99: 1 | D99: 1 | E99: 1 | F99: 1 | G99: Dotacijos užsienio valstybėms einamiesiems tikslams | H99: 65 | I99: 0.00 | J99: 0.00 | K99: 0.00 | L99: 0.00
A100: 2 | B100: 5 | C100: 1 | D100: 1 | E100: 1 | F100: 2 | G100: Dotacijos užsienio valstybėms turtui įsigyti | H100: 66 | I100: 0.00 | J100: 0.00 | K100: 0.00 | L100: 0.00
A101: 2 | B101: 5 | C101: 2 | G101: Dotacijos tarptautinėms organizacijoms | H101: 67 | I101: =I102 -> 0.00 | J101: 0.00 | K101: 0.00 | L101: 0.00
A102: 2 | B102: 5 | C102: 2 | D102: 1 | G102: Dotacijos tarptautinėms organizacijoms | H102: 68 | I102: 0.00 | J102: 0.00 | K102: 0.00 | L102: 0.00
A103: 2 | B103: 5 | C103: 2 | D103: 1 | E103: 1 | G103: Dotacijos tarptautinėms organizacijoms | H103: 69 | I103: =SUM(I104:I105) -> 0.00 | J103: =SUM(J104:J105) -> 0.00 | K103: =SUM(K104:K105) -> 0.00 | L103: =SUM(L104:L105) -> 0.00
A104: 2 | B104: 5 | C104: 2 | D104: 1 | E104: 1 | F104: 1 | G104: Dotacijos tarptautinėms organizacijoms einamiesiems tikslams | H104: 70 | I104: 0.00 | J104: 0.00 | K104: 0.00 | L104: 0.00
A105: 2 | B105: 5 | C105: 2 | D105: 1 | E105: 1 | F105: 2 | G105: Dotacijos tarptautinėms organizacijoms turtui įsigyti | H105: 71 | I105: 0.00 | J105: 0.00 | K105: 0.00 | L105: 0.00
A106: 2 | B106: 5 | C106: 3 | G106: Dotacijos kitiems valdžios sektoriaus subjektams | H106: 72 | I106: =I107+I111 -> 0.00 | J106: =J107+J111 -> 0.00 | K106: =K107+K111 -> 0.00 | L106: =L107+L111 -> 0.00
A107: 2 | B107: 5 | C107: 3 | D107: 1 | G107: Dotacijos kitiems valdžios sektoriaus subjektams einamiesiems tikslams | H107: 73 | I107: =I108 -> 0.00 | J107: =J108 -> 0.00 | K107: =K108 -> 0.00 | L107: =L108 -> 0.00
A108: 2 | B108: 5 | C108: 3 | D108: 1 | E108: 1 | G108: Dotacijos kitiems valdžios sektoriaus subjektams einamiesiems tikslams | H108: 74 | I108: =SUM(I109:I110) -> 0.00 | J108: =SUM(J109:J110) -> 0.00 | K108: =SUM(K109:K110) -> 0.00 | L108: =SUM(L109:L110) -> 0.00
A109: 2 | B109: 5 | C109: 3 | D109: 1 | E109: 1 | F109: 1 | G109: Dotacijos kitiems valdžios sektoriaus subjektams einamiesiems tikslams | H109: 75 | I109: 0.00 | J109: 0.00 | K109: 0.00 | L109: 0.00
A110: 2 | B110: 5 | C110: 3 | D110: 1 | E110: 1 | F110: 2 | G110: Dotacijos savivaldybėms einamiesiems tikslams | H110: 76 | I110: 0.00 | J110: 0.00 | K110: 0.00 | L110: 0.00
A111: 2 | B111: 5 | C111: 3 | D111: 2 | G111: Dotacijos kitiems valdžios sektoriaus subjektams turtui įsigyti | H111: 77 | I111: =I112 -> 0.00 | J111: =J112 -> 0.00 | K111: =K112 -> 0.00 | L111: =L112 -> 0.00
A112: 2 | B112: 5 | C112: 3 | D112: 2 | E112: 1 | G112: Dotacijos kitiems valdžios sektoriaus subjektams turtui įsigyti | H112: 78 | I112: =SUM(I113:I114) -> 0.00 | J112: =SUM(J113:J114) -> 0.00 | K112: =SUM(K113:K114) -> 0.00 | L112: =SUM(L113:L114) -> 0.00
A113: 2 | B113: 5 | C113: 3 | D113: 2 | E113: 1 | F113: 1 | G113: Dotacijos kitiems valdžios sektoriaus subjektams turtui įsigyti | H113: 79 | I113: 0.00 | J113: 0.00 | K113: 0.00 | L113: 0.00
A114: 2 | B114: 5 | C114: 3 | D114: 2 | E114: 1 | F114: 2 | G114: Dotacijos savivaldybėms turtui įsigyti | H114: 80 | I114: 0.00 | J114: 0.00 | K114: 0.00 | L114: 0.00
A115: 2 | B115: 6 | G115: Įmokos į Europos Sąjungos biudžetą | H115: 81 | I115: =SUM(I116+I121+I125+I129+I133+I137) -> 0.00 | J115: =SUM(J116+J121+J125+J129+J133+J137) -> 0.00 | K115: =SUM(K116+K121+K125+K129+K133+K137) -> 0.00 | L115: =SUM(L116+L121+L125+L129+L133+L137) -> 0.00
A116: 2 | B116: 6 | C116: 1 | G116: Tradiciniai nuosavi ištekliai | H116: 82 | I116: =I117 -> 0.00 | J116: 0.00 | K116: 0.00 | L116: 0.00
A117: 2 | B117: 6 | C117: 1 | D117: 1 | G117: Tradiciniai nuosavi ištekliai | H117: 83 | I117: 0.00 | J117: 0.00 | K117: 0.00 | L117: 0.00
A118: 2 | B118: 6 | C118: 1 | D118: 1 | E118: 1 | G118: Tradiciniai nuosavi ištekliai | H118: 84 | I118: =SUM(I119:I120) -> 0.00 | J118: =SUM(J119:J120) -> 0.00 | K118: =SUM(K119:K120) -> 0.00 | L118: =SUM(L119:L120) -> 0.00
A119: 2 | B119: 6 | C119: 1 | D119: 1 | E119: 1 | F119: 1 | G119: Muitai | H119: 85 | I119: 0.00 | J119: 0.00 | K119: 0.00 | L119: 0.00
A120: 2 | B120: 6 | C120: 1 | D120: 1 | E120: 1 | F120: 2 | G120: Cukraus sektoriaus mokesčiai | H120: 86 | I120: 0.00 | J120: 0.00 | K120: 0.00 | L120: 0.00
A121: 2 | B121: 6 | C121: 2 | G121: Pridėtinės vertės mokesčio nuosavi ištekliai | H121: 87 | I121: =I122 -> 0.00 | J121: 0.00 | K121: 0.00 | L121: 0.00
A122: 2 | B122: 6 | C122: 2 | D122: 1 | G122: Pridėtinės vertės mokesčio nuosavi ištekliai | H122: 88 | I122: 0.00 | J122: 0.00 | K122: 0.00 | L122: 0.00
A123: 2 | B123: 6 | C123: 2 | D123: 1 | E123: 1 | G123: Pridėtinės vertės mokesčio nuosavi ištekliai | H123: 89 | I123: 0.00 | J123: 0.00 | K123: 0.00 | L123: 0.00
A124: 2 | B124: 6 | C124: 2 | D124: 1 | E124: 1 | F124: 1 | G124: Pridėtinės vertės mokesčio nuosavi ištekliai | H124: 90 | I124: 0.00 | J124: 0.00 | K124: 0.00 | L124: 0.00
A125: 2 | B125: 6 | C125: 3 | G125: Bendrųjų nacionalinių pajamų nuosavi ištekliai | H125: 91 | I125: =I126 -> 0.00 | J125: 0.00 | K125: 0.00 | L125: 0.00
A126: 2 | B126: 6 | C126: 3 | D126: 1 | G126: Bendrųjų nacionalinių pajamų nuosavi ištekliai | H126: 92 | I126: 0.00 | J126: 0.00 | K126: 0.00 | L126: 0.00
A127: 2 | B127: 6 | C127: 3 | D127: 1 | E127: 1 | G127: Bendrųjų nacionalinių pajamų nuosavi ištekliai | H127: 93 | I127: 0.00 | J127: 0.00 | K127: 0.00 | L127: 0.00
A128: 2 | B128: 6 | C128: 3 | D128: 1 | E128: 1 | F128: 1 | G128: Bendrųjų nacionalinių pajamų nuosavi ištekliai | H128: 94 | I128: 0.00 | J128: 0.00 | K128: 0.00 | L128: 0.00
A129: 2 | B129: 6 | C129: 4 | G129: Biudžeto disbalansų korekcija Jungtinės Karalystės naudai | H129: 95 | I129: =I130 -> 0.00 | J129: 0.00 | K129: 0.00 | L129: 0.00
A130: 2 | B130: 6 | C130: 4 | D130: 1 | G130: Biudžeto disbalansų korekcija Jungtinės Karalystės naudai | H130: 96 | I130: 0.00 | J130: 0.00 | K130: 0.00 | L130: 0.00
A131: 2 | B131: 6 | C131: 4 | D131: 1 | E131: 1 | G131: Biudžeto disbalansų korekcija Jungtinės Karalystės naudai | H131: 97 | I131: 0.00 | J131: 0.00 | K131: 0.00 | L131: 0.00
A132: 2 | B132: 6 | C132: 4 | D132: 1 | E132: 1 | F132: 1 | G132: Biudžeto disbalansų korekcija Jungtinės Karalystės naudai | H132: 98 | I132: 0.00 | J132: 0.00 | K132: 0.00 | L132: 0.00
A133: 2 | B133: 6 | C133: 5 | G133: Su nuosavais ištekliais susijusios baudos, delspinigiai ir neigiamos palūkanos | H133: 99 | I133: =I134 -> 0.00 | J133: 0.00 | K133: 0.00 | L133: 0.00
A134: 2 | B134: 6 | C134: 5 | D134: 1 | G134: Su nuosavais ištekliais susijusios baudos, delspinigiai ir neigiamos palūkanos | H134: 100 | I134: 0.00 | J134: 0.00 | K134: 0.00 | L134: 0.00
A135: 2 | B135: 6 | C135: 5 | D135: 1 | E135: 1 | G135: Su nuosavais ištekliais susijusios baudos, delspinigiai ir neigiamos palūkanos | H135: 101 | I135: 0.00 | J135: 0.00 | K135: 0.00 | L135: 0.00
A136: 2 | B136: 6 | C136: 5 | D136: 1 | E136: 1 | F136: 1 | G136: Su nuosavais ištekliais susijusios baudos, delspinigiai ir neigiamos palūkanos | H136: 102 | I136: 0.00 | J136: 0.00 | K136: 0.00 | L136: 0.00
A137: 2 | B137: 6 | C137: 6 | G137: Neperdirbto plastiko atliekų nuosavi ištekliai | H137: 103 | I137: =I138 -> 0.00 | J137: 0.00 | K137: 0.00 | L137: 0.00
A138: 2 | B138: 6 | C138: 6 | D138: 1 | G138: Neperdirbto plastiko atliekų nuosavi ištekliai | H138: 104 | I138: 0.00 | J138: 0.00 | K138: 0.00 | L138: 0.00
A139: 2 | B139: 6 | C139: 6 | D139: 1 | E139: 1 | G139: Neperdirbto plastiko atliekų nuosavi ištekliai | H139: 105 | I139: 0.00 | J139: 0.00 | K139: 0.00 | L139: 0.00
A140: 2 | B140: 6 | C140: 6 | D140: 1 | E140: 1 | F140: 1 | G140: Neperdirbto plastiko atliekų nuosavi ištekliai | H140: 106 | I140: 0.00 | J140: 0.00 | K140: 0.00 | L140: 0.00
A141: 2 | B141: 7 | G141: Socialinės išmokos (pašalpos) | H141: 107 | I141: =SUM(I142+I147+I155) -> 6200.00 | J141: =SUM(J142+J147+J155) -> 3900.00 | K141: =SUM(K142+K147+K155) -> 3892.04 | L141: =SUM(L142+L147+L155) -> 3892.04
A142: 2 | B142: 7 | C142: 1 | G142: Socialinio draudimo išmokos (pašalpos) | H142: 108 | I142: =I143 -> 0.00 | J142: 0.00 | K142: 0.00 | L142: 0.00
A143: 2 | B143: 7 | C143: 1 | D143: 1 | G143: Socialinio draudimo išmokos (pašalpos) | H143: 109 | I143: 0.00 | J143: 0.00 | K143: 0.00 | L143: 0.00
A144: 2 | B144: 7 | C144: 1 | D144: 1 | E144: 1 | G144: Socialinio draudimo išmokos (pašalpos) | H144: 110 | I144: =SUM(I145:I146) -> 0.00 | J144: =SUM(J145:J146) -> 0.00 | K144: =SUM(K145:K146) -> 0.00 | L144: =SUM(L145:L146) -> 0.00
A145: 2 | B145: 7 | C145: 1 | D145: 1 | E145: 1 | F145: 1 | G145: Socialinio draudimo išmokos pinigais | H145: 111 | I145: 0.00 | J145: 0.00 | K145: 0.00 | L145: 0.00
A146: 2 | B146: 7 | C146: 1 | D146: 1 | E146: 1 | F146: 2 | G146: Socialinio draudimo išmokos natūra | H146: 112 | I146: 0.00 | J146: 0.00 | K146: 0.00 | L146: 0.00
A147: 2 | B147: 7 | C147: 2 | G147: Socialinė parama (socialinės paramos pašalpos) ir rentos | H147: 113 | I147: =I148 -> 0.00 | J147: 0.00 | K147: 0.00 | L147: 0.00
A148: 2 | B148: 7 | C148: 2 | D148: 1 | G148: Socialinė parama (socialinės paramos pašalpos) | H148: 114 | I148: 0.00 | J148: 0.00 | K148: 0.00 | L148: 0.00
A149: 2 | B149: 7 | C149: 2 | D149: 1 | E149: 1 | G149: Socialinė parama (socialinės paramos pašalpos) | H149: 115 | I149: =SUM(I150:I151) -> 0.00 | J149: =SUM(J150:J151) -> 0.00 | K149: =SUM(K150:K151) -> 0.00 | L149: =SUM(L150:L151) -> 0.00
A150: 2 | B150: 7 | C150: 2 | D150: 1 | E150: 1 | F150: 1 | G150: Socialinė parama pinigais | H150: 116 | I150: 0.00 | J150: 0.00 | K150: 0.00 | L150: 0.00
A151: 2 | B151: 7 | C151: 2 | D151: 1 | E151: 1 | F151: 2 | G151: Socialinė parama natūra | H151: 117 | I151: 0.00 | J151: 0.00 | K151: 0.00 | L151: 0.00
A152: 2 | B152: 7 | C152: 2 | D152: 2 | G152: Rentos | H152: 118 | I152: =I153 -> 0.00 | J152: =J153 -> 0.00 | K152: =K153 -> 0.00 | L152: =L153 -> 0.00
A153: 2 | B153: 7 | C153: 2 | D153: 2 | E153: 1 | G153: Rentos | H153: 119 | I153: =SUM(I154) -> 0.00 | J153: =SUM(J154) -> 0.00 | K153: =SUM(K154) -> 0.00 | L153: =SUM(L154) -> 0.00
A154: 2 | B154: 7 | C154: 2 | D154: 2 | E154: 1 | F154: 1 | G154: Rentos | H154: 120 | I154: 0.00 | J154: 0.00 | K154: 0.00 | L154: 0.00
A155: 2 | B155: 7 | C155: 3 | G155: Darbdavių socialinė parama | H155: 121 | I155: =I156 -> 6200.00 | J155: 3900.00 | K155: 3892.04 | L155: 3892.04
A156: 2 | B156: 7 | C156: 3 | D156: 1 | G156: Darbdavių socialinė parama | H156: 122 | I156: 6200.00 | J156: 3900.00 | K156: 3892.04 | L156: 3892.04
A157: 2 | B157: 7 | C157: 3 | D157: 1 | E157: 1 | G157: Darbdavių socialinė parama | H157: 123 | I157: =SUM(I158:I159) -> 6200.00 | J157: =SUM(J158:J159) -> 3900.00 | K157: =SUM(K158:K159) -> 3892.04 | L157: =SUM(L158:L159) -> 3892.04
A158: 2 | B158: 7 | C158: 3 | D158: 1 | E158: 1 | F158: 1 | G158: Darbdavių socialinė parama pinigais | H158: 124 | I158: 6200.00 | J158: 3900.00 | K158: 3892.04 | L158: 3892.04
A159: 2 | B159: 7 | C159: 3 | D159: 1 | E159: 1 | F159: 2 | G159: Darbdavių socialinė parama natūra | H159: 125 | I159: 0.00 | J159: 0.00 | K159: 0.00 | L159: 0.00
A160: 2 | B160: 8 | G160: Kitos išlaidos | H160: 126 | I160: =I161 -> 0.00 | J160: =J161 -> 0.00 | K160: =K161 -> 0.00 | L160: =L161 -> 0.00
A161: 2 | B161: 8 | C161: 1 | G161: Kitos išlaidos | H161: 127 | I161: =I162+I167 -> 0.00 | J161: =J162+J167 -> 0.00 | K161: =K162+K167 -> 0.00 | L161: =L162+L167 -> 0.00
A162: 2 | B162: 8 | C162: 1 | D162: 1 | G162: Kitos išlaidos einamiesiems tikslams | H162: 128 | I162: =I163 -> 0.00 | J162: =J163 -> 0.00 | K162: =K163 -> 0.00 | L162: =L163 -> 0.00
A163: 2 | B163: 8 | C163: 1 | D163: 1 | E163: 1 | G163: Kitos išlaidos einamiesiems tikslams | H163: 129 | I163: =SUM(I164:I166) -> 0.00 | J163: =SUM(J164:J166) -> 0.00 | K163: =SUM(K164:K166) -> 0.00 | L163: =SUM(L164:L166) -> 0.00
A164: 2 | B164: 8 | C164: 1 | D164: 1 | E164: 1 | F164: 1 | G164: Stipendijoms | H164: 130 | I164: 0.00 | J164: 0.00 | K164: 0.00 | L164: 0.00
A165: 2 | B165: 8 | C165: 1 | D165: 1 | E165: 1 | F165: 2 | G165: Kitos išlaidos kitiems einamiesiems tikslams | H165: 131 | I165: 0.00 | J165: 0.00 | K165: 0.00 | L165: 0.00
A166: 2 | B166: 8 | C166: 1 | D166: 1 | E166: 1 | F166: 3 | G166: Valiutos kurso įtaka | H166: 132 | I166: 0.00 | J166: 0.00 | K166: 0.00 | L166: 0.00
A167: 2 | B167: 8 | C167: 1 | D167: 2 | G167: Kitos išlaidos turtui įsigyti | H167: 133 | I167: =I168 -> 0.00 | J167: 0.00 | K167: 0.00 | L167: 0.00
A168: 2 | B168: 8 | C168: 1 | D168: 2 | E168: 1 | G168: Kitos išlaidos turtui įsigyti | H168: 134 | I168: 0.00 | J168: 0.00 | K168: 0.00 | L168: 0.00
A169: 2 | B169: 8 | C169: 1 | D169: 2 | E169: 1 | F169: 1 | G169: Kitos išlaidos turtui įsigyti | H169: 135 | I169: 0.00 | J169: 0.00 | K169: 0.00 | L169: 0.00
A170: 2 | B170: 9 | G170: Pervedamos Europos Sąjungos, kitos tarptautinės finansinės paramos ir bendrojo finansavimo lėšos | H170: 136 | I170: =I171+I175 -> 0.00 | J170: =J171+J175 -> 0.00 | K170: =K171+K175 -> 0.00 | L170: =L171+L175 -> 0.00
A171: 2 | B171: 9 | C171: 1 | G171: Subsidijos iš Europos Sąjungos ir kitos tarptautinės finansinės paramos lėšų (ne valdžios sektoriui) | H171: 137 | I171: =I172 -> 0.00 | J171: 0.00 | K171: 0.00 | L171: 0.00
A172: 2 | B172: 9 | C172: 1 | D172: 1 | G172: Subsidijos iš Europos Sąjungos ir kitos tarptautinės finansinės paramos lėšų (ne valdžios sektoriui) | H172: 138 | I172: 0.00 | J172: 0.00 | K172: 0.00 | L172: 0.00
A173: 2 | B173: 9 | C173: 1 | D173: 1 | E173: 1 | G173: Subsidijos iš Europos Sąjungos ir kitos tarptautinės finansinės paramos lėšų (ne valdžios sektoriui) | H173: 139 | I173: 0.00 | J173: 0.00 | K173: 0.00 | L173: 0.00
A174: 2 | B174: 9 | C174: 1 | D174: 1 | E174: 1 | F174: 1 | G174: Subsidijos iš Europos Sąjungos ir kitos tarptautinės finansinės paramos lėšų (ne valdžios sektoriui) | H174: 140 | I174: 0.00 | J174: 0.00 | K174: 0.00 | L174: 0.00
A175: 2 | B175: 9 | C175: 2 | G175: Pervedamos Europos Sąjungos, kitos tarptautinės finansinės paramos ir bendrojo finansavimo lėšos | H175: 141 | I175: =SUM(I176+I181) -> 0.00 | J175: =SUM(J176+J181) -> 0.00 | K175: =SUM(K176+K181) -> 0.00 | L175: =SUM(L176+L181) -> 0.00
A176: 2 | B176: 9 | C176: 2 | D176: 1 | G176: Pervedamos Europos Sąjungos, kitos tarptautinės finansinės paramos ir bendrojo finansavimo lėšos einamiesiems tikslams | H176: 142 | I176: =I177 -> 0.00 | J176: =J177 -> 0.00 | K176: =K177 -> 0.00 | L176: =L177 -> 0.00
A177: 2 | B177: 9 | C177: 2 | D177: 1 | E177: 1 | G177: Pervedamos Europos Sąjungos, kitos tarptautinės finansinės paramos ir bendrojo finansavimo lėšos einamiesiems tikslams | H177: 143 | I177: =SUM(I178:I180) -> 0.00 | J177: =SUM(J178:J180) -> 0.00 | K177: =SUM(K178:K180) -> 0.00 | L177: =SUM(L178:L180) -> 0.00
A178: 2 | B178: 9 | C178: 2 | D178: 1 | E178: 1 | F178: 1 | G178: Pervedamos Europos Sąjungos, kitos tarptautinės finansinės paramos ir bendrojo finansavimo lėšos einamiesiems tikslams savivaldybėms | H178: 144 | I178: 0.00 | J178: 0.00 | K178: 0.00 | L178: 0.00
A179: 2 | B179: 9 | C179: 2 | D179: 1 | E179: 1 | F179: 2 | G179: Pervedamos Europos Sąjungos, kitos tarptautinės finansinės paramos ir bendrojo finansavimo lėšos einamiesiems tikslams kitiems valdžios sektoriaus subjektams | H179: 145 | I179: 0.00 | J179: 0.00 | K179: 0.00 | L179: 0.00
A180: 2 | B180: 9 | C180: 2 | D180: 1 | E180: 1 | F180: 3 | G180: Pervedamos Europos Sąjungos, kitos tarptautinės finansinės paramos ir bendrojo finansavimo lėšos einamiesiems tikslams ne valdžios sektoriui | H180: 146 | I180: 0.00 | J180: 0.00 | K180: 0.00 | L180: 0.00
A181: 2 | B181: 9 | C181: 2 | D181: 2 | G181: Pervedamos Europos Sąjungos, kitos tarptautinės finansinės paramos ir bendrojo finansavimo lėšos investicijoms | H181: 147 | I181: =I182 -> 0.00 | J181: =J182 -> 0.00 | K181: =K182 -> 0.00 | L181: =L182 -> 0.00
A182: 2 | B182: 9 | C182: 2 | D182: 2 | E182: 1 | G182: Pervedamos Europos Sąjungos, kitos tarptautinės finansinės paramos ir bendrojo finansavimo lėšos investicijoms | H182: 148 | I182: =SUM(I183:I185) -> 0.00 | J182: =SUM(J183:J185) -> 0.00 | K182: =SUM(K183:K185) -> 0.00 | L182: =SUM(L183:L185) -> 0.00
A183: 2 | B183: 9 | C183: 2 | D183: 2 | E183: 1 | F183: 1 | G183: Pervedamos Europos Sąjungos, kitos tarptautinės finansinės paramos ir bendrojo finansavimo lėšos investicijoms, skirtoms savivaldybėms | H183: 149 | I183: 0.00 | J183: 0.00 | K183: 0.00 | L183: 0.00
A184: 2 | B184: 9 | C184: 2 | D184: 2 | E184: 1 | F184: 2 | G184: Pervedamos Europos Sąjungos, kitos tarptautinės finansinės paramos ir bendrojo finansavimo lėšos investicijoms kitiems valdžios sektoriaus subjektams | H184: 150 | I184: 0.00 | J184: 0.00 | K184: 0.00 | L184: 0.00
A185: 2 | B185: 9 | C185: 2 | D185: 2 | E185: 1 | F185: 3 | G185: Pervedamos Europos Sąjungos, kitos tarptautinės finansinės paramos ir bendrojo finansavimo lėšos investicijoms ne valdžios sektoriui | H185: 151 | I185: 0.00 | J185: 0.00 | K185: 0.00 | L185: 0.00
A186: 3 | G186: MATERIALIOJO IR NEMATERIALIOJO TURTO ĮSIGIJIMO, FINANSINIO TURTO PADIDĖJIMO IR FINANSINIŲ ĮSIPAREIGOJIMŲ VYKDYMO IŠLAIDOS | H186: 152 | I186: =SUM(I187+I240+I305) -> 24400.00 | J186: =SUM(J187+J240+J305) -> 24400.00 | K186: =SUM(K187+K240+K305) -> 0.00 | L186: =SUM(L187+L240+L305) -> 0.00
A187: 3 | B187: 1 | G187: Materialiojo ir nematerialiojo turto įsigijimo išlaidos | H187: 153 | I187: =SUM(I188+I211+I218+I230+I234) -> 24400.00 | J187: =SUM(J188+J211+J218+J230+J234) -> 24400.00 | K187: =SUM(K188+K211+K218+K230+K234) -> 0.00 | L187: =SUM(L188+L211+L218+L230+L234) -> 0.00
A188: 3 | B188: 1 | C188: 1 | G188: Ilgalaikio materialiojo turto kūrimo ir įsigijimo išlaidos | H188: 154 | I188: =SUM(I189+I192+I197+I203+I208) -> 24400.00 | J188: =SUM(J189+J192+J197+J203+J208) -> 24400.00 | K188: =SUM(K189+K192+K197+K203+K208) -> 0.00 | L188: =SUM(L189+L192+L197+L203+L208) -> 0.00
A189: 3 | B189: 1 | C189: 1 | D189: 1 | G189: Žemės įsigijimo išlaidos | H189: 155 | I189: =I190 -> 0.00 | J189: 0.00 | K189: 0.00 | L189: 0.00
A190: 3 | B190: 1 | C190: 1 | D190: 1 | E190: 1 | G190: Žemės įsigijimo išlaidos | H190: 156 | I190: 0.00 | J190: 0.00 | K190: 0.00 | L190: 0.00
A191: 3 | B191: 1 | C191: 1 | D191: 1 | E191: 1 | F191: 1 | G191: Žemės įsigijimo išlaidos | H191: 157 | I191: 0.00 | J191: 0.00 | K191: 0.00 | L191: 0.00
A192: 3 | B192: 1 | C192: 1 | D192: 2 | G192: Pastatų ir statinių įsigijimo išlaidos | H192: 158 | I192: =I193 -> 18000.00 | J192: =J193 -> 18000.00 | K192: =K193 -> 0.00 | L192: =L193 -> 0.00
A193: 3 | B193: 1 | C193: 1 | D193: 2 | E193: 1 | G193: Pastatų ir statinių įsigijimo išlaidos | H193: 159 | I193: =SUM(I194:I196) -> 18000.00 | J193: =SUM(J194:J196) -> 18000.00 | K193: =SUM(K194:K196) -> 0.00 | L193: =SUM(L194:L196) -> 0.00
A194: 3 | B194: 1 | C194: 1 | D194: 2 | E194: 1 | F194: 1 | G194: Gyvenamųjų namų įsigijimo išlaidos | H194: 160 | I194: 0.00 | J194: 0.00 | K194: 0.00 | L194: 0.00
A195: 3 | B195: 1 | C195: 1 | D195: 2 | E195: 1 | F195: 2 | G195: Negyvenamųjų pastatų įsigijimo išlaidos | H195: 161 | I195: 18000.00 | J195: 18000.00 | K195: 0.00 | L195: 0.00
A196: 3 | B196: 1 | C196: 1 | D196: 2 | E196: 1 | F196: 3 | G196: Infrastruktūros ir kitų statinių įsigijimo išlaidos | H196: 162 | I196: 0.00 | J196: 0.00 | K196: 0.00 | L196: 0.00
A197: 3 | B197: 1 | C197: 1 | D197: 3 | G197: Mašinų ir įrenginių įsigijimo išlaidos | H197: 163 | I197: =I198 -> 6400.00 | J197: =J198 -> 6400.00 | K197: =K198 -> 0.00 | L197: =L198 -> 0.00
A198: 3 | B198: 1 | C198: 1 | D198: 3 | E198: 1 | G198: Mašinų ir įrenginių įsigijimo išlaidos | H198: 164 | I198: =SUM(I199:I202) -> 6400.00 | J198: =SUM(J199:J202) -> 6400.00 | K198: =SUM(K199:K202) -> 0.00 | L198: =SUM(L199:L202) -> 0.00
A199: 3 | B199: 1 | C199: 1 | D199: 3 | E199: 1 | F199: 1 | G199: Transporto priemonių įsigijimo išlaidos | H199: 165 | I199: 0.00 | J199: 0.00 | K199: 0.00 | L199: 0.00
A200: 3 | B200: 1 | C200: 1 | D200: 3 | E200: 1 | F200: 2 | G200: Kitų mašinų ir įrenginių įsigijimo išlaidos | H200: 166 | I200: 0.00 | J200: 0.00 | K200: 0.00 | L200: 0.00
A201: 3 | B201: 1 | C201: 1 | D201: 3 | E201: 1 | F201: 3 | G201: Ginklų ir karinės įrangos įsigijimo išlaidos | H201: 167 | I201: 0.00 | J201: 0.00 | K201: 0.00 | L201: 0.00
A202: 3 | B202: 1 | C202: 1 | D202: 3 | E202: 1 | F202: 4 | G202: Kompiuterinės techninės ir elektroninių ryšių įrangos įsigijimo išlaidos | H202: 168 | I202: 6400.00 | J202: 6400.00 | K202: 0.00 | L202: 0.00
A203: 3 | B203: 1 | C203: 1 | D203: 4 | G203: Kultūros ir kitų vertybių įsigijimo išlaidos | H203: 169 | I203: =I204 -> 0.00 | J203: =J204 -> 0.00 | K203: =K204 -> 0.00 | L203: =L204 -> 0.00
A204: 3 | B204: 1 | C204: 1 | D204: 4 | E204: 1 | G204: Kultūros ir kitų vertybių įsigijimo išlaidos | H204: 170 | I204: =SUM(I205:I207) -> 0.00 | J204: =SUM(J205:J207) -> 0.00 | K204: =SUM(K205:K207) -> 0.00 | L204: =SUM(L205:L207) -> 0.00
A205: 3 | B205: 1 | C205: 1 | D205: 4 | E205: 1 | F205: 1 | G205: Muziejinių vertybių įsigijimo išlaidos | H205: 171 | I205: 0.00 | J205: 0.00 | K205: 0.00 | L205: 0.00
A206: 3 | B206: 1 | C206: 1 | D206: 4 | E206: 1 | F206: 2 | G206: Antikvarinių ir kitų meno kūrinių įsigijimo išlaidos | H206: 172 | I206: 0.00 | J206: 0.00 | K206: 0.00 | L206: 0.00
A207: 3 | B207: 1 | C207: 1 | D207: 4 | E207: 1 | F207: 3 | G207: Kitų vertybių įsigijimo išlaidos | H207: 173 | I207: 0.00 | J207: 0.00 | K207: 0.00 | L207: 0.00
A208: 3 | B208: 1 | C208: 1 | D208: 5 | G208: Kito ilgalaikio materialiojo turto įsigijimo išlaidos | H208: 174 | I208: =I209 -> 0.00 | J208: 0.00 | K208: 0.00 | L208: 0.00
A209: 3 | B209: 1 | C209: 1 | D209: 5 | E209: 1 | G209: Kito ilgalaikio materialiojo turto įsigijimo išlaidos | H209: 175 | I209: 0.00 | J209: 0.00 | K209: 0.00 | L209: 0.00
A210: 3 | B210: 1 | C210: 1 | D210: 5 | E210: 1 | F210: 1 | G210: Kito ilgalaikio materialiojo turto įsigijimo išlaidos | H210: 176 | I210: 0.00 | J210: 0.00 | K210: 0.00 | L210: 0.00
... 165 more rows

Sheet Forma Nr.2 SB VISO
J1: Biudžeto vykdymo ataskaitų rinkinių rengimo taisyklių
J2: 1 priedas
A8: (Biudžeto išlaidų sąmatos vykdymo 2025 m. birželio mėn. 30 d. ketvirčio, pusmečio, metų ataskaitos forma, Nr.2)
A10: Vaikų ir jaunimo laisvalaikio centras, 195174984
A11: (įstaigos pavadinimas, kodas Juridinių asmenų registre, adresas)
G13: BIUDŽETO IŠLAIDŲ SĄMATOS VYKDYMO
A14: 2025 M. BIRŽELIO MĖN. 30 D.
G15: 2 ketvirtis
G16: (I ketvirčio, pusmečio, 9 mėnesių, metinė)
B17: ATASKAITA
G19: 2025.07.10 Nr.________________
G20: (data)
A23: (programos pavadinimas)
L24: Kodas
J25: Ministerijos / Savivaldybės
K26: Departamento
K27: Įstaigos | L27: 195174984
J28: Programos
G29: Finansavimo šaltinio | H29: SB
G30: Valstybės funkcijos
A31: Savivaldybės biudžeto lėšos | L31: (eurais, ct)
A32: Išlaidų ekonominės klasifikacijos kodas | G32: Išlaidų pavadinimas | H32: Eil. Nr. | I32: Asignavimų planas, įskaitant patikslinimus | K32: Gauti asignavimai kartu su įskaitytu praėjusių metų lėšų likučiu | L32: Panaudoti asignavimai
I33: metams | J33: ataskaitiniam laikotarpiui
A34: 1 | G34: 2 | H34: 3 | I34: 4 | J34: 5 | K34: 6 | L34: 7
A35: 2 | G35: IŠLAIDOS | H35: 1 | I35: =SUM(I36+I47+I67+I88+I95+I115+I141+I160+I170) -> 390400.00 | J35: =SUM(J36+J47+J67+J88+J95+J115+J141+J160+J170) -> 249000.00 | K35: =SUM(K36+K47+K67+K88+K95+K115+K141+K160+K170) -> 190401.27 | L35: =SUM(L36+L47+L67+L88+L95+L115+L141+L160+L170) -> 190401.27
A36: 2 | B36: 1 | G36: Darbo užmokestis ir socialinis draudimas | H36: 2 | I36: =SUM(I37+I43) -> 337900.00 | J36: =SUM(J37+J43) -> 211400.00 | K36: =SUM(K37+K43) -> 167201.00 | L36: =SUM(L37+L43) -> 167201.00
A37: 2 | B37: 1 | C37: 1 | G37: Darbo užmokestis | H37: 3 | I37: =SUM(I38) -> 332500.00 | J37: =SUM(J38) -> 208000.00 | K37: =SUM(K38) -> 164556.88 | L37: =SUM(L38) -> 164556.88
A38: 2 | B38: 1 | C38: 1 | D38: 1 | G38: Darbo užmokestis | H38: 4 | I38: =SUM(I39+I41) -> 332500.00 | J38: =SUM(J39) -> 208000.00 | K38: 164556.88 | L38: 164556.88
A39: 2 | B39: 1 | C39: 1 | D39: 1 | E39: 1 | G39: Darbo užmokestis pinigais | H39: 5 | I39: =SUM(I40) -> 332500.00 | J39: 208000.00 | K39: 164556.88 | L39: 164556.88
A40: 2 | B40: 1 | C40: 1 | D40: 1 | E40: 1 | F40: 1 | G40: Darbo užmokestis pinigais | H40: 6 | I40: 332500.00 | J40: 208000.00 | K40: 164556.88 | L40: 164556.88
A41: 2 | B41: 1 | C41: 1 | D41: 1 | E41: 2 | G41: Pajamos natūra | H41: 7 | I41: =I42 -> 0.00 | J41: =J42 -> 0.00 | K41: =K42 -> 0.00 | L41: =L42 -> 0.00
A42: 2 | B42: 1 | C42: 1 | D42: 1 | E42: 2 | F42: 1 | G42: Pajamos natūra | H42: 8 | I42: 0.00 | J42: 0.00 | K42: 0.00 | L42: 0.00
A43: 2 | B43: 1 | C43: 2 | G43: Socialinio draudimo įmokos | H43: 9 | I43: =I44 -> 5400.00 | J43: 3400.00 | K43: 2644.12 | L43: 2644.12
A44: 2 | B44: 1 | C44: 2 | D44: 1 | G44: Socialinio draudimo įmokos | H44: 10 | I44: 5400.00 | J44: 3400.00 | K44: 2644.12 | L44: 2644.12
A45: 2 | B45: 1 | C45: 2 | D45: 1 | E45: 1 | G45: Socialinio draudimo įmokos | H45: 11 | I45: 5400.00 | J45: 3400.00 | K45: 2644.12 | L45: 2644.12
A46: 2 | B46: 1 | C46: 2 | D46: 1 | E46: 1 | F46: 1 | G46: Socialinio draudimo įmokos | H46: 12 | I46: 5400.00 | J46: 3400.00 | K46: 2644.12 | L46: 2644.12
A47: 2 | B47: 2 | G47: Prekių ir paslaugų įsigijimo išlaidos | H47: 13 | I47: =I48 -> 46300.00 | J47: 33700.00 | K47: 19308.23 | L47: 19308.23
A48: 2 | B48: 2 | C48: 1 | G48: Prekių ir paslaugų įsigijimo išlaidos | H48: 14 | I48: 46300.00 | J48: 33700.00 | K48: 19308.23 | L48: 19308.23
A49: 2 | B49: 2 | C49: 1 | D49: 1 | G49: Prekių ir paslaugų įsigijimo išlaidos | H49: 15 | I49: 46300.00 | J49: 33700.00 | K49: 19308.23 | L49: 19308.23
A50: 2 | B50: 2 | C50: 1 | D50: 1 | E50: 1 | G50: Prekių ir paslaugų įsigijimo išlaidos | H50: 16 | I50: =SUM(I51:I66) -> 46300.00 | J50: =SUM(J51:J66) -> 33700.00 | K50: =SUM(K51:K66) -> 19308.23 | L50: =SUM(L51:L66) -> 19308.23
A51: 2 | B51: 2 | C51: 1 | D51: 1 | E51: 1 | F51: 1 | G51: Mitybos išlaidos | H51: 17 | I51: 0.00 | J51: 0.00 | K51: 0.00 | L51: 0.00
A52: 2 | B52: 2 | C52: 1 | D52: 1 | E52: 1 | F52: 2 | G52: Medikamentų ir medicininių prekių bei paslaugų įsigijimo išlaidos | H52: 18 | I52: 400.00 | J52: 200.00 | K52: 0.00 | L52: 0.00
A53: 2 | B53: 2 | C53: 1 | D53: 1 | E53: 1 | F53: 5 | G53: Ryšių įrangos ir ryšių paslaugų įsigijimo išlaidos | H53: 19 | I53: 1700.00 | J53: 1000.00 | K53: 863.92 | L53: 863.92
A54: 2 | B54: 2 | C54: 1 | D54: 1 | E54: 1 | F54: 6 | G54: Transporto išlaikymo ir transporto paslaugų įsigijimo išlaidos | H54: 20 | I54: 0.00 | J54: 0.00 | K54: 0.00 | L54: 0.00
A55: 2 | B55: 2 | C55: 1 | D55: 1 | E55: 1 | F55: 7 | G55: Aprangos ir patalynės įsigijimo bei priežiūros išlaidos | H55: 21 | I55: 0.00 | J55: 0.00 | K55: 0.00 | L55: 0.00
A56: 2 | B56: 2 | C56: 1 | D56: 1 | E56: 1 | F56: 11 | G56: Komandiruočių išlaidos | H56: 22 | I56: 300.00 | J56: 300.00 | K56: 0.00 | L56: 0.00
A57: 2 | B57: 2 | C57: 1 | D57: 1 | E57: 1 | F57: 12 | G57: Gyvenamųjų vietovių viešojo ūkio išlaidos | H57: 23 | I57: 0.00 | J57: 0.00 | K57: 0.00 | L57: 0.00
A58: 2 | B58: 2 | C58: 1 | D58: 1 | E58: 1 | F58: 14 | G58: Materialiojo ir nematerialiojo turto nuomos išlaidos | H58: 24 | I58: 0.00 | J58: 0.00 | K58: 0.00 | L58: 0.00
A59: 2 | B59: 2 | C59: 1 | D59: 1 | E59: 1 | F59: 15 | G59: Materialiojo turto paprastojo remonto prekių ir paslaugų įsigijimo išlaidos | H59: 25 | I59: 1200.00 | J59: 900.00 | K59: 622.70 | L59: 622.70
A60: 2 | B60: 2 | C60: 1 | D60: 1 | E60: 1 | F60: 16 | G60: Kvalifikacijos kėlimo išlaidos | H60: 26 | I60: 2000.00 | J60: 1400.00 | K60: 583.30 | L60: 583.30
A61: 2 | B61: 2 | C61: 1 | D61: 1 | E61: 1 | F61: 17 | G61: Ekspertų ir konsultantų paslaugų įsigijimo išlaidos | H61: 27 | I61: 0.00 | J61: 0.00 | K61: 0.00 | L61: 0.00
A62: 2 | B62: 2 | C62: 1 | D62: 1 | E62: 1 | F62: 20 | G62: Komunalinių paslaugų įsigijimo išlaidos | H62: 28 | I62: 29700.00 | J62: 22000.00 | K62: 14568.50 | L62: 14568.50
A63: 2 | B63: 2 | C63: 1 | D63: 1 | E63: 1 | F63: 21 | G63: Informacinių technologijų prekių ir paslaugų įsigijimo išlaidos | H63: 29 | I63: 4500.00 | J63: 3700.00 | K63: 1168.56 | L63: 1168.56
A64: 2 | B64: 2 | C64: 1 | D64: 1 | E64: 1 | F64: 22 | G64: Reprezentacinės išlaidos | H64: 30 | I64: 300.00 | J64: 200.00 | K64: 0.00 | L64: 0.00
A65: 2 | B65: 2 | C65: 1 | D65: 1 | E65: 1 | F65: 23 | G65: Viešinimo išlaidos | H65: 31 | I65: 0.00 | J65: 0.00 | K65: 0.00 | L65: 0.00
A66: 2 | B66: 2 | C66: 1 | D66: 1 | E66: 1 | F66: 30 | G66: Kitų prekių ir paslaugų įsigijimo išlaidos | H66: 32 | I66: 6200.00 | J66: 4000.00 | K66: 1501.25 | L66: 1501.25
A67: 2 | B67: 3 | G67: Palūkanos | H67: 33 | I67: =I68 -> 0.00 | J67: =J68 -> 0.00 | K67: =K68 -> 0.00 | L67: =L68 -> 0.00
A68: 2 | B68: 3 | C68: 1 | G68: Palūkanos | H68: 34 | I68: =SUM(I69+I74+I79) -> 0.00 | J68: =SUM(J69+J74+J79) -> 0.00 | K68: =SUM(K69+K74+K79) -> 0.00 | L68: =SUM(L69+L74+L79) -> 0.00
A69: 2 | B69: 3 | C69: 1 | D69: 1 | G69: Palūkanos nerezidentams | H69: 35 | I69: =I70 -> 0.00 | J69: =J70 -> 0.00 | K69: =K70 -> 0.00 | L69: =L70 -> 0.00
A70: 2 | B70: 3 | C70: 1 | D70: 1 | E70: 1 | G70: Palūkanos nerezidentams | H70: 36 | I70: =SUM(I71:I73) -> 0.00 | J70: =SUM(J71:J73) -> 0.00 | K70: =SUM(K71:K73) -> 0.00 | L70: =SUM(L71:L73) -> 0.00
A71: 2 | B71: 3 | C71: 1 | D71: 1 | E71: 1 | F71: 1 | G71: Asignavimų valdytojų sumokėtos palūkanos | H71: 37 | I71: 0.00 | J71: 0.00 | K71: 0.00 | L71: 0.00
A72: 2 | B72: 3 | C72: 1 | D72: 1 | E72: 1 | F72: 2 | G72: Finansų ministerijos sumokėtos palūkanos | H72: 38 | I72: 0.00 | J72: 0.00 | K72: 0.00 | L72: 0.00
A73: 2 | B73: 3 | C73: 1 | D73: 1 | E73: 1 | F73: 3 | G73: Savivaldybių sumokėtos palūkanos | H73: 39 | I73: 0.00 | J73: 0.00 | K73: 0.00 | L73: 0.00
A74: 2 | B74: 3 | C74: 1 | D74: 2 | G74: Palūkanos rezidentams, kitiems nei valdžios sektorius (tik už tiesioginę skolą) | H74: 40 | I74: =I75 -> 0.00 | J74: =J75 -> 0.00 | K74: =K75 -> 0.00 | L74: =L75 -> 0.00
A75: 2 | B75: 3 | C75: 1 | D75: 2 | E75: 1 | G75: Palūkanos rezidentams, kitiems nei valdžios sektorius (tik už tiesioginę skolą) | H75: 41 | I75: =SUM(I76:I78) -> 0.00 | J75: =SUM(J76:J78) -> 0.00 | K75: =SUM(K76:K78) -> 0.00 | L75: =SUM(L76:L78) -> 0.00
A76: 2 | B76: 3 | C76: 1 | D76: 2 | E76: 1 | F76: 1 | G76: Asignavimų valdytojų sumokėtos palūkanos | H76: 42 | I76: 0.00 | J76: 0.00 | K76: 0.00 | L76: 0.00
A77: 2 | B77: 3 | C77: 1 | D77: 2 | E77: 1 | F77: 2 | G77: Finansų ministerijos sumokėtos palūkanos | H77: 43 | I77: 0.00 | J77: 0.00 | K77: 0.00 | L77: 0.00
A78: 2 | B78: 3 | C78: 1 | D78: 2 | E78: 1 | F78: 3 | G78: Savivaldybių sumokėtos palūkanos | H78: 44 | I78: 0.00 | J78: 0.00 | K78: 0.00 | L78: 0.00
A79: 2 | B79: 3 | C79: 1 | D79: 3 | G79: Palūkanos kitiems valdžios sektoriaus subjektams | H79: 45 | I79: =I80 -> 0.00 | J79: =J80 -> 0.00 | K79: =K80 -> 0.00 | L79: =L80 -> 0.00
A80: 2 | B80: 3 | C80: 1 | D80: 3 | E80: 1 | G80: Palūkanos kitiems valdžios sektoriaus subjektams | H80: 46 | I80: =SUM(I81:I83) -> 0.00 | J80: =SUM(J81:J83) -> 0.00 | K80: =SUM(K81:K83) -> 0.00 | L80: =SUM(L81:L83) -> 0.00
A81: 2 | B81: 3 | C81: 1 | D81: 3 | E81: 1 | F81: 1 | G81: Palūkanos valstybės biudžetui | H81: 47 | I81: 0.00 | J81: 0.00 | K81: 0.00 | L81: 0.00
A82: 2 | B82: 3 | C82: 1 | D82: 3 | E82: 1 | F82: 2 | G82: Palūkanos savivaldybių biudžetams | H82: 48 | I82: 0.00 | J82: 0.00 | K82: 0.00 | L82: 0.00
A83: 2 | B83: 3 | C83: 1 | D83: 3 | E83: 1 | F83: 3 | G83: Palūkanos nebiudžetiniams fondams | H83: 49 | I83: 0.00 | J83: 0.00 | K83: 0.00 | L83: 0.00
A84: 2 | B84: 3 | C84: 2 | G84: Žemės nuoma | H84: 50 | I84: =I85 -> 0.00 | J84: 0.00 | K84: 0.00 | L84: 0.00
A85: 2 | B85: 3 | C85: 2 | D85: 1 | G85: Žemės nuoma | H85: 51 | I85: 0.00 | J85: 0.00 | K85: 0.00 | L85: 0.00
A86: 2 | B86: 3 | C86: 2 | D86: 1 | E86: 1 | G86: Žemės nuoma | H86: 52 | I86: =SUM(I87) -> 0.00 | J86: =SUM(J87) -> 0.00 | K86: =SUM(K87) -> 0.00 | L86: =SUM(L87) -> 0.00
A87: 2 | B87: 3 | C87: 2 | D87: 1 | E87: 1 | F87: 1 | G87: Žemės nuoma | H87: 53 | I87: 0.00 | J87: 0.00 | K87: 0.00 | L87: 0.00
A88: 2 | B88: 4 | G88: Subsidijos | H88: 54 | I88: =I89 -> 0.00 | J88: 0.00 | K88: 0.00 | L88: 0.00
A89: 2 | B89: 4 | C89: 1 | G89: Subsidijos iš biudžeto lėšų | H89: 55 | I89: 0.00 | J89: 0.00 | K89: 0.00 | L89: 0.00
A90: 2 | B90: 4 | C90: 1 | D90: 1 | G90: Subsidijos iš biudžeto lėšų | H90: 56 | I90: 0.00 | J90: 0.00 | K90: 0.00 | L90: 0.00
A91: 2 | B91: 4 | C91: 1 | D91: 1 | E91: 1 | G91: Subsidijos iš biudžeto lėšų | H91: 57 | I91: =SUM(I92:I94) -> 0.00 | J91: =SUM(J92:J94) -> 0.00 | K91: =SUM(K92:K94) -> 0.00 | L91: =SUM(L92:L94) -> 0.00
A92: 2 | B92: 4 | C92: 1 | D92: 1 | E92: 1 | F92: 1 | G92: Subsidijos importui | H92: 58 | I92: 0.00 | J92: 0.00 | K92: 0.00 | L92: 0.00
A93: 2 | B93: 4 | C93: 1 | D93: 1 | E93: 1 | F93: 2 | G93: Subsidijos gaminiams | H93: 59 | I93: 0.00 | J93: 0.00 | K93: 0.00 | L93: 0.00
A94: 2 | B94: 4 | C94: 1 | D94: 1 | E94: 1 | F94: 3 | G94: Subsidijos gamybai | H94: 60 | I94: 0.00 | J94: 0.00 | K94: 0.00 | L94: 0.00
A95: 2 | B95: 5 | G95: Dotacijos | H95: 61 | I95: =SUM(I96+I101+I106) -> 0.00 | J95: =SUM(J96+J101+J106) -> 0.00 | K95: =SUM(K96+K101+K106) -> 0.00 | L95: =SUM(L96+L101+L106) -> 0.00
A96: 2 | B96: 5 | C96: 1 | G96: Dotacijos užsienio valstybėms | H96: 62 | I96: =I97 -> 0.00 | J96: 0.00 | K96: 0.00 | L96: 0.00
A97: 2 | B97: 5 | C97: 1 | D97: 1 | G97: Dotacijos užsienio valstybėms | H97: 63 | I97: 0.00 | J97: 0.00 | K97: 0.00 | L97: 0.00
A98: 2 | B98: 5 | C98: 1 | D98: 1 | E98: 1 | G98: Dotacijos užsienio valstybėms | H98: 64 | I98: =SUM(I99:I100) -> 0.00 | J98: =SUM(J99:J100) -> 0.00 | K98: =SUM(K99:K100) -> 0.00 | L98: =SUM(L99:L100) -> 0.00
A99: 2 | B99: 5 | C99: 1 | D99: 1 | E99: 1 | F99: 1 | G99: Dotacijos užsienio valstybėms einamiesiems tikslams | H99: 65 | I99: 0.00 | J99: 0.00 | K99: 0.00 | L99: 0.00
A100: 2 | B100: 5 | C100: 1 | D100: 1 | E100: 1 | F100: 2 | G100: Dotacijos užsienio valstybėms turtui įsigyti | H100: 66 | I100: 0.00 | J100: 0.00 | K100: 0.00 | L100: 0.00
A101: 2 | B101: 5 | C101: 2 | G101: Dotacijos tarptautinėms organizacijoms | H101: 67 | I101: =I102 -> 0.00 | J101: 0.00 | K101: 0.00 | L101: 0.00
A102: 2 | B102: 5 | C102: 2 | D102: 1 | G102: Dotacijos tarptautinėms organizacijoms | H102: 68 | I102: 0.00 | J102: 0.00 | K102: 0.00 | L102: 0.00
A103: 2 | B103: 5 | C103: 2 | D103: 1 | E103: 1 | G103: Dotacijos tarptautinėms organizacijoms | H103: 69 | I103: =SUM(I104:I105) -> 0.00 | J103: =SUM(J104:J105) -> 0.00 | K103: =SUM(K104:K105) -> 0.00 | L103: =SUM(L104:L105) -> 0.00
A104: 2 | B104: 5 | C104: 2 | D104: 1 | E104: 1 | F104: 1 | G104: Dotacijos tarptautinėms organizacijoms einamiesiems tikslams | H104: 70 | I104: 0.00 | J104: 0.00 | K104: 0.00 | L104: 0.00
A105: 2 | B105: 5 | C105: 2 | D105: 1 | E105: 1 | F105: 2 | G105: Dotacijos tarptautinėms organizacijoms turtui įsigyti | H105: 71 | I105: 0.00 | J105: 0.00 | K105: 0.00 | L105: 0.00
A106: 2 | B106: 5 | C106: 3 | G106: Dotacijos kitiems valdžios sektoriaus subjektams | H106: 72 | I106: =I107+I111 -> 0.00 | J106: =J107+J111 -> 0.00 | K106: =K107+K111 -> 0.00 | L106: =L107+L111 -> 0.00
A107: 2 | B107: 5 | C107: 3 | D107: 1 | G107: Dotacijos kitiems valdžios sektoriaus subjektams einamiesiems tikslams | H107: 73 | I107: =I108 -> 0.00 | J107: =J108 -> 0.00 | K107: =K108 -> 0.00 | L107: =L108 -> 0.00
A108: 2 | B108: 5 | C108: 3 | D108: 1 | E108: 1 | G108: Dotacijos kitiems valdžios sektoriaus subjektams einamiesiems tikslams | H108: 74 | I108: =SUM(I109:I110) -> 0.00 | J108: =SUM(J109:J110) -> 0.00 | K108: =SUM(K109:K110) -> 0.00 | L108: =SUM(L109:L110) -> 0.00
A109: 2 | B109: 5 | C109: 3 | D109: 1 | E109: 1 | F109: 1 | G109: Dotacijos kitiems valdžios sektoriaus subjektams einamiesiems tikslams | H109: 75 | I109: 0.00 | J109: 0.00 | K109: 0.00 | L109: 0.00
A110: 2 | B110: 5 | C110: 3 | D110: 1 | E110: 1 | F110: 2 | G110: Dotacijos savivaldybėms einamiesiems tikslams | H110: 76 | I110: 0.00 | J110: 0.00 | K110: 0.00 | L110: 0.00
A111: 2 | B111: 5 | C111: 3 | D111: 2 | G111: Dotacijos kitiems valdžios sektoriaus subjektams turtui įsigyti | H111: 77 | I111: =I112 -> 0.00 | J111: =J112 -> 0.00 | K111: =K112 -> 0.00 | L111: =L112 -> 0.00
A112: 2 | B112: 5 | C112: 3 | D112: 2 | E112: 1 | G112: Dotacijos kitiems valdžios sektoriaus subjektams turtui įsigyti | H112: 78 | I112: =SUM(I113:I114) -> 0.00 | J112: =SUM(J113:J114) -> 0.00 | K112: =SUM(K113:K114) -> 0.00 | L112: =SUM(L113:L114) -> 0.00
A113: 2 | B113: 5 | C113: 3 | D113: 2 | E113: 1 | F113: 1 | G113: Dotacijos kitiems valdžios sektoriaus subjektams turtui įsigyti | H113: 79 | I113: 0.00 | J113: 0.00 | K113: 0.00 | L113: 0.00
A114: 2 | B114: 5 | C114: 3 | D114: 2 | E114: 1 | F114: 2 | G114: Dotacijos savivaldybėms turtui įsigyti | H114: 80 | I114: 0.00 | J114: 0.00 | K114: 0.00 | L114: 0.00
A115: 2 | B115: 6 | G115: Įmokos į Europos Sąjungos biudžetą | H115: 81 | I115: =SUM(I116+I121+I125+I129+I133+I137) -> 0.00 | J115: =SUM(J116+J121+J125+J129+J133+J137) -> 0.00 | K115: =SUM(K116+K121+K125+K129+K133+K137) -> 0.00 | L115: =SUM(L116+L121+L125+L129+L133+L137) -> 0.00
A116: 2 | B116: 6 | C116: 1 | G116: Tradiciniai nuosavi ištekliai | H116: 82 | I116: =I117 -> 0.00 | J116: 0.00 | K116: 0.00 | L116: 0.00
A117: 2 | B117: 6 | C117: 1 | D117: 1 | G117: Tradiciniai nuosavi ištekliai | H117: 83 | I117: 0.00 | J117: 0.00 | K117: 0.00 | L117: 0.00
A118: 2 | B118: 6 | C118: 1 | D118: 1 | E118: 1 | G118: Tradiciniai nuosavi ištekliai | H118: 84 | I118: =SUM(I119:I120) -> 0.00 | J118: =SUM(J119:J120) -> 0.00 | K118: =SUM(K119:K120) -> 0.00 | L118: =SUM(L119:L120) -> 0.00
A119: 2 | B119: 6 | C119: 1 | D119: 1 | E119: 1 | F119: 1 | G119: Muitai | H119: 85 | I119: 0.00 | J119: 0.00 | K119: 0.00 | L119: 0.00
A120: 2 | B120: 6 | C120: 1 | D120: 1 | E120: 1 | F120: 2 | G120: Cukraus sektoriaus mokesčiai | H120: 86 | I120: 0.00 | J120: 0.00 | K120: 0.00 | L120: 0.00
A121: 2 | B121: 6 | C121: 2 | G121: Pridėtinės vertės mokesčio nuosavi ištekliai | H121: 87 | I121: =I122 -> 0.00 | J121: 0.00 | K121: 0.00 | L121: 0.00
A122: 2 | B122: 6 | C122: 2 | D122: 1 | G122: Pridėtinės vertės mokesčio nuosavi ištekliai | H122: 88 | I122: 0.00 | J122: 0.00 | K122: 0.00 | L122: 0.00
A123: 2 | B123: 6 | C123: 2 | D123: 1 | E123: 1 | G123: Pridėtinės vertės mokesčio nuosavi ištekliai | H123: 89 | I123: 0.00 | J123: 0.00 | K123: 0.00 | L123: 0.00
A124: 2 | B124: 6 | C124: 2 | D124: 1 | E124: 1 | F124: 1 | G124: Pridėtinės vertės mokesčio nuosavi ištekliai | H124: 90 | I124: 0.00 | J124: 0.00 | K124: 0.00 | L124: 0.00
A125: 2 | B125: 6 | C125: 3 | G125: Bendrųjų nacionalinių pajamų nuosavi ištekliai | H125: 91 | I125: =I126 -> 0.00 | J125: 0.00 | K125: 0.00 | L125: 0.00
A126: 2 | B126: 6 | C126: 3 | D126: 1 | G126: Bendrųjų nacionalinių pajamų nuosavi ištekliai | H126: 92 | I126: 0.00 | J126: 0.00 | K126: 0.00 | L126: 0.00
A127: 2 | B127: 6 | C127: 3 | D127: 1 | E127: 1 | G127: Bendrųjų nacionalinių pajamų nuosavi ištekliai | H127: 93 | I127: 0.00 | J127: 0.00 | K127: 0.00 | L127: 0.00
A128: 2 | B128: 6 | C128: 3 | D128: 1 | E128: 1 | F128: 1 | G128: Bendrųjų nacionalinių pajamų nuosavi ištekliai | H128: 94 | I128: 0.00 | J128: 0.00 | K128: 0.00 | L128: 0.00
A129: 2 | B129: 6 | C129: 4 | G129: Biudžeto disbalansų korekcija Jungtinės Karalystės naudai | H129: 95 | I129: =I130 -> 0.00 | J129: 0.00 | K129: 0.00 | L129: 0.00
A130: 2 | B130: 6 | C130: 4 | D130: 1 | G130: Biudžeto disbalansų korekcija Jungtinės Karalystės naudai | H130: 96 | I130: 0.00 | J130: 0.00 | K130: 0.00 | L130: 0.00
A131: 2 | B131: 6 | C131: 4 | D131: 1 | E131: 1 | G131: Biudžeto disbalansų korekcija Jungtinės Karalystės naudai | H131: 97 | I131: 0.00 | J131: 0.00 | K131: 0.00 | L131: 0.00
A132: 2 | B132: 6 | C132: 4 | D132: 1 | E132: 1 | F132: 1 | G132: Biudžeto disbalansų korekcija Jungtinės Karalystės naudai | H132: 98 | I132: 0.00 | J132: 0.00 | K132: 0.00 | L132: 0.00
A133: 2 | B133: 6 | C133: 5 | G133: Su nuosavais ištekliais susijusios baudos, delspinigiai ir neigiamos palūkanos | H133: 99 | I133: =I134 -> 0.00 | J133: 0.00 | K133: 0.00 | L133: 0.00
A134: 2 | B134: 6 | C134: 5 | D134: 1 | G134: Su nuosavais ištekliais susijusios baudos, delspinigiai ir neigiamos palūkanos | H134: 100 | I134: 0.00 | J134: 0.00 | K134: 0.00 | L134: 0.00
A135: 2 | B135: 6 | C135: 5 | D135: 1 | E135: 1 | G135: Su nuosavais ištekliais susijusios baudos, delspinigiai ir neigiamos palūkanos | H135: 101 | I135: 0.00 | J135: 0.00 | K135: 0.00 | L135: 0.00
A136: 2 | B136: 6 | C136: 5 | D136: 1 | E136: 1 | F136: 1 | G136: Su nuosavais ištekliais susijusios baudos, delspinigiai ir neigiamos palūkanos | H136: 102 | I136: 0.00 | J136: 0.00 | K136: 0.00 | L136: 0.00
A137: 2 | B137: 6 | C137: 6 | G137: Neperdirbto plastiko atliekų nuosavi ištekliai | H137: 103 | I137: =I138 -> 0.00 | J137: 0.00 | K137: 0.00 | L137: 0.00
A138: 2 | B138: 6 | C138: 6 | D138: 1 | G138: Neperdirbto plastiko atliekų nuosavi ištekliai | H138: 104 | I138: 0.00 | J138: 0.00 | K138: 0.00 | L138: 0.00
A139: 2 | B139: 6 | C139: 6 | D139: 1 | E139: 1 | G139: Neperdirbto plastiko atliekų nuosavi ištekliai | H139: 105 | I139: 0.00 | J139: 0.00 | K139: 0.00 | L139: 0.00
A140: 2 | B140: 6 | C140: 6 | D140: 1 | E140: 1 | F140: 1 | G140: Neperdirbto plastiko atliekų nuosavi ištekliai | H140: 106 | I140: 0.00 | J140: 0.00 | K140: 0.00 | L140: 0.00
A141: 2 | B141: 7 | G141: Socialinės išmokos (pašalpos) | H141: 107 | I141: =SUM(I142+I147+I155) -> 6200.00 | J141: =SUM(J142+J147+J155) -> 3900.00 | K141: =SUM(K142+K147+K155) -> 3892.04 | L141: =SUM(L142+L147+L155) -> 3892.04
A142: 2 | B142: 7 | C142: 1 | G142: Socialinio draudimo išmokos (pašalpos) | H142: 108 | I142: =I143 -> 0.00 | J142: 0.00 | K142: 0.00 | L142: 0.00
A143: 2 | B143: 7 | C143: 1 | D143: 1 | G143: Socialinio draudimo išmokos (pašalpos) | H143: 109 | I143: 0.00 | J143: 0.00 | K143: 0.00 | L143: 0.00
A144: 2 | B144: 7 | C144: 1 | D144: 1 | E144: 1 | G144: Socialinio draudimo išmokos (pašalpos) | H144: 110 | I144: =SUM(I145:I146) -> 0.00 | J144: =SUM(J145:J146) -> 0.00 | K144: =SUM(K145:K146) -> 0.00 | L144: =SUM(L145:L146) -> 0.00
A145: 2 | B145: 7 | C145: 1 | D145: 1 | E145: 1 | F145: 1 | G145: Socialinio draudimo išmokos pinigais | H145: 111 | I145: 0.00 | J145: 0.00 | K145: 0.00 | L145: 0.00
A146: 2 | B146: 7 | C146: 1 | D146: 1 | E146: 1 | F146: 2 | G146: Socialinio draudimo išmokos natūra | H146: 112 | I146: 0.00 | J146: 0.00 | K146: 0.00 | L146: 0.00
A147: 2 | B147: 7 | C147: 2 | G147: Socialinė parama (socialinės paramos pašalpos) ir rentos | H147: 113 | I147: =I148 -> 0.00 | J147: 0.00 | K147: 0.00 | L147: 0.00
A148: 2 | B148: 7 | C148: 2 | D148: 1 | G148: Socialinė parama (socialinės paramos pašalpos) | H148: 114 | I148: 0.00 | J148: 0.00 | K148: 0.00 | L148: 0.00
A149: 2 | B149: 7 | C149: 2 | D149: 1 | E149: 1 | G149: Socialinė parama (socialinės paramos pašalpos) | H149: 115 | I149: =SUM(I150:I151) -> 0.00 | J149: =SUM(J150:J151) -> 0.00 | K149: =SUM(K150:K151) -> 0.00 | L149: =SUM(L150:L151) -> 0.00
A150: 2 | B150: 7 | C150: 2 | D150: 1 | E150: 1 | F150: 1 | G150: Socialinė parama pinigais | H150: 116 | I150: 0.00 | J150: 0.00 | K150: 0.00 | L150: 0.00
A151: 2 | B151: 7 | C151: 2 | D151: 1 | E151: 1 | F151: 2 | G151: Socialinė parama natūra | H151: 117 | I151: 0.00 | J151: 0.00 | K151: 0.00 | L151: 0.00
A152: 2 | B152: 7 | C152: 2 | D152: 2 | G152: Rentos | H152: 118 | I152: =I153 -> 0.00 | J152: =J153 -> 0.00 | K152: =K153 -> 0.00 | L152: =L153 -> 0.00
A153: 2 | B153: 7 | C153: 2 | D153: 2 | E153: 1 | G153: Rentos | H153: 119 | I153: =SUM(I154) -> 0.00 | J153: =SUM(J154) -> 0.00 | K153: =SUM(K154) -> 0.00 | L153: =SUM(L154) -> 0.00
A154: 2 | B154: 7 | C154: 2 | D154: 2 | E154: 1 | F154: 1 | G154: Rentos | H154: 120 | I154: 0.00 | J154: 0.00 | K154: 0.00 | L154: 0.00
A155: 2 | B155: 7 | C155: 3 | G155: Darbdavių socialinė parama | H155: 121 | I155: =I156 -> 6200.00 | J155: 3900.00 | K155: 3892.04 | L155: 3892.04
A156: 2 | B156: 7 | C156: 3 | D156: 1 | G156: Darbdavių socialinė parama | H156: 122 | I156: 6200.00 | J156: 3900.00 | K156: 3892.04 | L156: 3892.04
A157: 2 | B157: 7 | C157: 3 | D157: 1 | E157: 1 | G157: Darbdavių socialinė parama | H157: 123 | I157: =SUM(I158:I159) -> 6200.00 | J157: =SUM(J158:J159) -> 3900.00 | K157: =SUM(K158:K159) -> 3892.04 | L157: =SUM(L158:L159) -> 3892.04
A158: 2 | B158: 7 | C158: 3 | D158: 1 | E158: 1 | F158: 1 | G158: Darbdavių socialinė parama pinigais | H158: 124 | I158: 6200.00 | J158: 3900.00 | K158: 3892.04 | L158: 3892.04
A159: 2 | B159: 7 | C159: 3 | D159: 1 | E159: 1 | F159: 2 | G159: Darbdavių socialinė parama natūra | H159: 125 | I159: 0.00 | J159: 0.00 | K159: 0.00 | L159: 0.00
A160: 2 | B160: 8 | G160: Kitos išlaidos | H160: 126 | I160: =I161 -> 0.00 | J160: =J161 -> 0.00 | K160: =K161 -> 0.00 | L160: =L161 -> 0.00
A161: 2 | B161: 8 | C161: 1 | G161: Kitos išlaidos | H161: 127 | I161: =I162+I167 -> 0.00 | J161: =J162+J167 -> 0.00 | K161: =K162+K167 -> 0.00 | L161: =L162+L167 -> 0.00
A162: 2 | B162: 8 | C162: 1 | D162: 1 | G162: Kitos išlaidos einamiesiems tikslams | H162: 128 | I162: =I163 -> 0.00 | J162: =J163 -> 0.00 | K162: =K163 -> 0.00 | L162: =L163 -> 0.00
A163: 2 | B163: 8 | C163: 1 | D163: 1 | E163: 1 | G163: Kitos išlaidos einamiesiems tikslams | H163: 129 | I163: =SUM(I164:I166) -> 0.00 | J163: =SUM(J164:J166) -> 0.00 | K163: =SUM(K164:K166) -> 0.00 | L163: =SUM(L164:L166) -> 0.00
A164: 2 | B164: 8 | C164: 1 | D164: 1 | E164: 1 | F164: 1 | G164: Stipendijoms | H164: 130 | I164: 0.00 | J164: 0.00 | K164: 0.00 | L164: 0.00
A165: 2 | B165: 8 | C165: 1 | D165: 1 | E165: 1 | F165: 2 | G165: Kitos išlaidos kitiems einamiesiems tikslams | H165: 131 | I165: 0.00 | J165: 0.00 | K165: 0.00 | L165: 0.00
A166: 2 | B166: 8 | C166: 1 | D166: 1 | E166: 1 | F166: 3 | G166: Valiutos kurso įtaka | H166: 132 | I166: 0.00 | J166: 0.00 | K166: 0.00 | L166: 0.00
A167: 2 | B167: 8 | C167: 1 | D167: 2 | G167: Kitos išlaidos turtui įsigyti | H167: 133 | I167: =I168 -> 0.00 | J167: 0.00 | K167: 0.00 | L167: 0.00
A168: 2 | B168: 8 | C168: 1 | D168: 2 | E168: 1 | G168: Kitos išlaidos turtui įsigyti | H168: 134 | I168: 0.00 | J168: 0.00 | K168: 0.00 | L168: 0.00
A169: 2 | B169: 8 | C169: 1 | D169: 2 | E169: 1 | F169: 1 | G169: Kitos išlaidos turtui įsigyti | H169: 135 | I169: 0.00 | J169: 0.00 | K169: 0.00 | L169: 0.00
A170: 2 | B170: 9 | G170: Pervedamos Europos Sąjungos, kitos tarptautinės finansinės paramos ir bendrojo finansavimo lėšos | H170: 136 | I170: =I171+I175 -> 0.00 | J170: =J171+J175 -> 0.00 | K170: =K171+K175 -> 0.00 | L170: =L171+L175 -> 0.00
A171: 2 | B171: 9 | C171: 1 | G171: Subsidijos iš Europos Sąjungos ir kitos tarptautinės finansinės paramos lėšų (ne valdžios sektoriui) | H171: 137 | I171: =I172 -> 0.00 | J171: 0.00 | K171: 0.00 | L171: 0.00
A172: 2 | B172: 9 | C172: 1 | D172: 1 | G172: Subsidijos iš Europos Sąjungos ir kitos tarptautinės finansinės paramos lėšų (ne valdžios sektoriui) | H172: 138 | I172: 0.00 | J172: 0.00 | K172: 0.00 | L172: 0.00
A173: 2 | B173: 9 | C173: 1 | D173: 1 | E173: 1 | G173: Subsidijos iš Europos Sąjungos ir kitos tarptautinės finansinės paramos lėšų (ne valdžios sektoriui) | H173: 139 | I173: 0.00 | J173: 0.00 | K173: 0.00 | L173: 0.00
A174: 2 | B174: 9 | C174: 1 | D174: 1 | E174: 1 | F174: 1 | G174: Subsidijos iš Europos Sąjungos ir kitos tarptautinės finansinės paramos lėšų (ne valdžios sektoriui) | H174: 140 | I174: 0.00 | J174: 0.00 | K174: 0.00 | L174: 0.00
A175: 2 | B175: 9 | C175: 2 | G175: Pervedamos Europos Sąjungos, kitos tarptautinės finansinės paramos ir bendrojo finansavimo lėšos | H175: 141 | I175: =SUM(I176+I181) -> 0.00 | J175: =SUM(J176+J181) -> 0.00 | K175: =SUM(K176+K181) -> 0.00 | L175: =SUM(L176+L181) -> 0.00
A176: 2 | B176: 9 | C176: 2 | D176: 1 | G176: Pervedamos Europos Sąjungos, kitos tarptautinės finansinės paramos ir bendrojo finansavimo lėšos einamiesiems tikslams | H176: 142 | I176: =I177 -> 0.00 | J176: =J177 -> 0.00 | K176: =K177 -> 0.00 | L176: =L177 -> 0.00
A177: 2 | B177: 9 | C177: 2 | D177: 1 | E177: 1 | G177: Pervedamos Europos Sąjungos, kitos tarptautinės finansinės paramos ir bendrojo finansavimo lėšos einamiesiems tikslams | H177: 143 | I177: =SUM(I178:I180) -> 0.00 | J177: =SUM(J178:J180) -> 0.00 | K177: =SUM(K178:K180) -> 0.00 | L177: =SUM(L178:L180) -> 0.00
A178: 2 | B178: 9 | C178: 2 | D178: 1 | E178: 1 | F178: 1 | G178: Pervedamos Europos Sąjungos, kitos tarptautinės finansinės paramos ir bendrojo finansavimo lėšos einamiesiems tikslams savivaldybėms | H178: 144 | I178: 0.00 | J178: 0.00 | K178: 0.00 | L178: 0.00
A179: 2 | B179: 9 | C179: 2 | D179: 1 | E179: 1 | F179: 2 | G179: Pervedamos Europos Sąjungos, kitos tarptautinės finansinės paramos ir bendrojo finansavimo lėšos einamiesiems tikslams kitiems valdžios sektoriaus subjektams | H179: 145 | I179: 0.00 | J179: 0.00 | K179: 0.00 | L179: 0.00
A180: 2 | B180: 9 | C180: 2 | D180: 1 | E180: 1 | F180: 3 | G180: Pervedamos Europos Sąjungos, kitos tarptautinės finansinės paramos ir bendrojo finansavimo lėšos einamiesiems tikslams ne valdžios sektoriui | H180: 146 | I180: 0.00 | J180: 0.00 | K180: 0.00 | L180: 0.00
A181: 2 | B181: 9 | C181: 2 | D181: 2 | G181: Pervedamos Europos Sąjungos, kitos tarptautinės finansinės paramos ir bendrojo finansavimo lėšos investicijoms | H181: 147 | I181: =I182 -> 0.00 | J181: =J182 -> 0.00 | K181: =K182 -> 0.00 | L181: =L182 -> 0.00
A182: 2 | B182: 9 | C182: 2 | D182: 2 | E182: 1 | G182: Pervedamos Europos Sąjungos, kitos tarptautinės finansinės paramos ir bendrojo finansavimo lėšos investicijoms | H182: 148 | I182: =SUM(I183:I185) -> 0.00 | J182: =SUM(J183:J185) -> 0.00 | K182: =SUM(K183:K185) -> 0.00 | L182: =SUM(L183:L185) -> 0.00
A183: 2 | B183: 9 | C183: 2 | D183: 2 | E183: 1 | F183: 1 | G183: Pervedamos Europos Sąjungos, kitos tarptautinės finansinės paramos ir bendrojo finansavimo lėšos investicijoms, skirtoms savivaldybėms | H183: 149 | I183: 0.00 | J183: 0.00 | K183: 0.00 | L183: 0.00
A184: 2 | B184: 9 | C184: 2 | D184: 2 | E184: 1 | F184: 2 | G184: Pervedamos Europos Sąjungos, kitos tarptautinės finansinės paramos ir bendrojo finansavimo lėšos investicijoms kitiems valdžios sektoriaus subjektams | H184: 150 | I184: 0.00 | J184: 0.00 | K184: 0.00 | L184: 0.00
A185: 2 | B185: 9 | C185: 2 | D185: 2 | E185: 1 | F185: 3 | G185: Pervedamos Europos Sąjungos, kitos tarptautinės finansinės paramos ir bendrojo finansavimo lėšos investicijoms ne valdžios sektoriui | H185: 151 | I185: 0.00 | J185: 0.00 | K185: 0.00 | L185: 0.00
A186: 3 | G186: MATERIALIOJO IR NEMATERIALIOJO TURTO ĮSIGIJIMO, FINANSINIO TURTO PADIDĖJIMO IR FINANSINIŲ ĮSIPAREIGOJIMŲ VYKDYMO IŠLAIDOS | H186: 152 | I186: =SUM(I187+I240+I305) -> 24400.00 | J186: =SUM(J187+J240+J305) -> 24400.00 | K186: =SUM(K187+K240+K305) -> 0.00 | L186: =SUM(L187+L240+L305) -> 0.00
A187: 3 | B187: 1 | G187: Materialiojo ir nematerialiojo turto įsigijimo išlaidos | H187: 153 | I187: =SUM(I188+I211+I218+I230+I234) -> 24400.00 | J187: =SUM(J188+J211+J218+J230+J234) -> 24400.00 | K187: =SUM(K188+K211+K218+K230+K234) -> 0.00 | L187: =SUM(L188+L211+L218+L230+L234) -> 0.00
A188: 3 | B188: 1 | C188: 1 | G188: Ilgalaikio materialiojo turto kūrimo ir įsigijimo išlaidos | H188: 154 | I188: =SUM(I189+I192+I197+I203+I208) -> 24400.00 | J188: =SUM(J189+J192+J197+J203+J208) -> 24400.00 | K188: =SUM(K189+K192+K197+K203+K208) -> 0.00 | L188: =SUM(L189+L192+L197+L203+L208) -> 0.00
A189: 3 | B189: 1 | C189: 1 | D189: 1 | G189: Žemės įsigijimo išlaidos | H189: 155 | I189: =I190 -> 0.00 | J189: 0.00 | K189: 0.00 | L189: 0.00
A190: 3 | B190: 1 | C190: 1 | D190: 1 | E190: 1 | G190: Žemės įsigijimo išlaidos | H190: 156 | I190: 0.00 | J190: 0.00 | K190: 0.00 | L190: 0.00
A191: 3 | B191: 1 | C191: 1 | D191: 1 | E191: 1 | F191: 1 | G191: Žemės įsigijimo išlaidos | H191: 157 | I191: 0.00 | J191: 0.00 | K191: 0.00 | L191: 0.00
A192: 3 | B192: 1 | C192: 1 | D192: 2 | G192: Pastatų ir statinių įsigijimo išlaidos | H192: 158 | I192: =I193 -> 18000.00 | J192: =J193 -> 18000.00 | K192: =K193 -> 0.00 | L192: =L193 -> 0.00
A193: 3 | B193: 1 | C193: 1 | D193: 2 | E193: 1 | G193: Pastatų ir statinių įsigijimo išlaidos | H193: 159 | I193: =SUM(I194:I196) -> 18000.00 | J193: =SUM(J194:J196) -> 18000.00 | K193: =SUM(K194:K196) -> 0.00 | L193: =SUM(L194:L196) -> 0.00
A194: 3 | B194: 1 | C194: 1 | D194: 2 | E194: 1 | F194: 1 | G194: Gyvenamųjų namų įsigijimo išlaidos | H194: 160 | I194: 0.00 | J194: 0.00 | K194: 0.00 | L194: 0.00
A195: 3 | B195: 1 | C195: 1 | D195: 2 | E195: 1 | F195: 2 | G195: Negyvenamųjų pastatų įsigijimo išlaidos | H195: 161 | I195: 18000.00 | J195: 18000.00 | K195: 0.00 | L195: 0.00
A196: 3 | B196: 1 | C196: 1 | D196: 2 | E196: 1 | F196: 3 | G196: Infrastruktūros ir kitų statinių įsigijimo išlaidos | H196: 162 | I196: 0.00 | J196: 0.00 | K196: 0.00 | L196: 0.00
A197: 3 | B197: 1 | C197: 1 | D197: 3 | G197: Mašinų ir įrenginių įsigijimo išlaidos | H197: 163 | I197: =I198 -> 6400.00 | J197: =J198 -> 6400.00 | K197: =K198 -> 0.00 | L197: =L198 -> 0.00
A198: 3 | B198: 1 | C198: 1 | D198: 3 | E198: 1 | G198: Mašinų ir įrenginių įsigijimo išlaidos | H198: 164 | I198: =SUM(I199:I202) -> 6400.00 | J198: =SUM(J199:J202) -> 6400.00 | K198: =SUM(K199:K202) -> 0.00 | L198: =SUM(L199:L202) -> 0.00
A199: 3 | B199: 1 | C199: 1 | D199: 3 | E199: 1 | F199: 1 | G199: Transporto priemonių įsigijimo išlaidos | H199: 165 | I199: 0.00 | J199: 0.00 | K199: 0.00 | L199: 0.00
A200: 3 | B200: 1 | C200: 1 | D200: 3 | E200: 1 | F200: 2 | G200: Kitų mašinų ir įrenginių įsigijimo išlaidos | H200: 166 | I200: 0.00 | J200: 0.00 | K200: 0.00 | L200: 0.00
A201: 3 | B201: 1 | C201: 1 | D201: 3 | E201: 1 | F201: 3 | G201: Ginklų ir karinės įrangos įsigijimo išlaidos | H201: 167 | I201: 0.00 | J201: 0.00 | K201: 0.00 | L201: 0.00
A202: 3 | B202: 1 | C202: 1 | D202: 3 | E202: 1 | F202: 4 | G202: Kompiuterinės techninės ir elektroninių ryšių įrangos įsigijimo išlaidos | H202: 168 | I202: 6400.00 | J202: 6400.00 | K202: 0.00 | L202: 0.00
A203: 3 | B203: 1 | C203: 1 | D203: 4 | G203: Kultūros ir kitų vertybių įsigijimo išlaidos | H203: 169 | I203: =I204 -> 0.00 | J203: =J204 -> 0.00 | K203: =K204 -> 0.00 | L203: =L204 -> 0.00
A204: 3 | B204: 1 | C204: 1 | D204: 4 | E204: 1 | G204: Kultūros ir kitų vertybių įsigijimo išlaidos | H204: 170 | I204: =SUM(I205:I207) -> 0.00 | J204: =SUM(J205:J207) -> 0.00 | K204: =SUM(K205:K207) -> 0.00 | L204: =SUM(L205:L207) -> 0.00
A205: 3 | B205: 1 | C205: 1 | D205: 4 | E205: 1 | F205: 1 | G205: Muziejinių vertybių įsigijimo išlaidos | H205: 171 | I205: 0.00 | J205: 0.00 | K205: 0.00 | L205: 0.00
A206: 3 | B206: 1 | C206: 1 | D206: 4 | E206: 1 | F206: 2 | G206: Antikvarinių ir kitų meno kūrinių įsigijimo išlaidos | H206: 172 | I206: 0.00 | J206: 0.00 | K206: 0.00 | L206: 0.00
A207: 3 | B207: 1 | C207: 1 | D207: 4 | E207: 1 | F207: 3 | G207: Kitų vertybių įsigijimo išlaidos | H207: 173 | I207: 0.00 | J207: 0.00 | K207: 0.00 | L207: 0.00
A208: 3 | B208: 1 | C208: 1 | D208: 5 | G208: Kito ilgalaikio materialiojo turto įsigijimo išlaidos | H208: 174 | I208: =I209 -> 0.00 | J208: 0.00 | K208: 0.00 | L208: 0.00
A209: 3 | B209: 1 | C209: 1 | D209: 5 | E209: 1 | G209: Kito ilgalaikio materialiojo turto įsigijimo išlaidos | H209: 175 | I209: 0.00 | J209: 0.00 | K209: 0.00 | L209: 0.00
A210: 3 | B210: 1 | C210: 1 | D210: 5 | E210: 1 | F210: 1 | G210: Kito ilgalaikio materialiojo turto įsigijimo išlaidos | H210: 176 | I210: 0.00 | J210: 0.00 | K210: 0.00 | L210: 0.00
... 165 more rows

Sheet Forma Nr.2 SB
J1: Biudžeto vykdymo ataskaitų rinkinių rengimo taisyklių
J2: 1 priedas
A8: (Biudžeto išlaidų sąmatos vykdymo 2025 m. birželio mėn. 30 d. ketvirčio, pusmečio, metų ataskaitos forma, Nr.2)
A10: Vaikų ir jaunimo laisvalaikio centras, 195174984
A11: (įstaigos pavadinimas, kodas Juridinių asmenų registre, adresas)
G13: BIUDŽETO IŠLAIDŲ SĄMATOS VYKDYMO
A14: 2025 M. BIRŽELIO MĖN. 30 D.
G15: 2 ketvirtis
G16: (I ketvirčio, pusmečio, 9 mėnesių, metinė)
B17: ATASKAITA
G19: 2025.07.010 Nr.________________
G20: (data)
E22: Žinių visuomenės plėtros programa
A23: (programos pavadinimas)
L24: Kodas
J25: Ministerijos / Savivaldybės
K26: Departamento
A27: Neformalusis vaikų švietimas | K27: Įstaigos | L27: 195174984
A28: 1.1.2.5. Neformaliojo ugdymo programų įgyvendinimas ir tinkamos aplinkos užtikrinimas Gargždų vaikų ir jaunimo laisvalaikio centre | J28: Programos | K28: 1
G29: Finansavimo šaltinio | H29: SB
G30: Valstybės funkcijos | I30: 09 | J30: 05 | K30: 01 | L30: 01
A31: Savivaldybės biudžeto lėšos | L31: (eurais, ct)
A32: Išlaidų ekonominės klasifikacijos kodas | G32: Išlaidų pavadinimas | H32: Eil. Nr. | I32: Asignavimų planas, įskaitant patikslinimus | K32: Gauti asignavimai kartu su įskaitytu praėjusių metų lėšų likučiu | L32: Panaudoti asignavimai
I33: metams | J33: ataskaitiniam laikotarpiui
A34: 1 | G34: 2 | H34: 3 | I34: 4 | J34: 5 | K34: 6 | L34: 7
A35: 2 | G35: IŠLAIDOS | H35: 1 | I35: =SUM(I36+I47+I67+I88+I95+I115+I141+I160+I170) -> 387400.00 | J35: =SUM(J36+J47+J67+J88+J95+J115+J141+J160+J170) -> 246500.00 | K35: =SUM(K36+K47+K67+K88+K95+K115+K141+K160+K170) -> 190251.27 | L35: =SUM(L36+L47+L67+L88+L95+L115+L141+L160+L170) -> 190251.27
A36: 2 | B36: 1 | G36: Darbo užmokestis ir socialinis draudimas | H36: 2 | I36: =SUM(I37+I43) -> 337900.00 | J36: =SUM(J37+J43) -> 211400.00 | K36: =SUM(K37+K43) -> 167201.00 | L36: =SUM(L37+L43) -> 167201.00
A37: 2 | B37: 1 | C37: 1 | G37: Darbo užmokestis | H37: 3 | I37: =SUM(I38) -> 332500.00 | J37: =SUM(J38) -> 208000.00 | K37: =SUM(K38) -> 164556.88 | L37: =SUM(L38) -> 164556.88
A38: 2 | B38: 1 | C38: 1 | D38: 1 | G38: Darbo užmokestis | H38: 4 | I38: =SUM(I39+I41) -> 332500.00 | J38: =SUM(J39) -> 208000.00 | K38: 164556.88 | L38: 164556.88
A39: 2 | B39: 1 | C39: 1 | D39: 1 | E39: 1 | G39: Darbo užmokestis pinigais | H39: 5 | I39: =SUM(I40) -> 332500.00 | J39: 208000.00 | K39: 164556.88 | L39: 164556.88
A40: 2 | B40: 1 | C40: 1 | D40: 1 | E40: 1 | F40: 1 | G40: Darbo užmokestis pinigais | H40: 6 | I40: 332500.00 | J40: 208000.00 | K40: 164556.88 | L40: 164556.88
A41: 2 | B41: 1 | C41: 1 | D41: 1 | E41: 2 | G41: Pajamos natūra | H41: 7 | I41: =I42 -> 0.00 | J41: =J42 -> 0.00 | K41: =K42 -> 0.00 | L41: =L42 -> 0.00
A42: 2 | B42: 1 | C42: 1 | D42: 1 | E42: 2 | F42: 1 | G42: Pajamos natūra | H42: 8 | I42: 0.00 | J42: 0.00 | K42: 0.00 | L42: 0.00
A43: 2 | B43: 1 | C43: 2 | G43: Socialinio draudimo įmokos | H43: 9 | I43: =I44 -> 5400.00 | J43: 3400.00 | K43: 2644.12 | L43: 2644.12
A44: 2 | B44: 1 | C44: 2 | D44: 1 | G44: Socialinio draudimo įmokos | H44: 10 | I44: 5400.00 | J44: 3400.00 | K44: 2644.12 | L44: 2644.12
A45: 2 | B45: 1 | C45: 2 | D45: 1 | E45: 1 | G45: Socialinio draudimo įmokos | H45: 11 | I45: 5400.00 | J45: 3400.00 | K45: 2644.12 | L45: 2644.12
A46: 2 | B46: 1 | C46: 2 | D46: 1 | E46: 1 | F46: 1 | G46: Socialinio draudimo įmokos | H46: 12 | I46: 5400.00 | J46: 3400.00 | K46: 2644.12 | L46: 2644.12
A47: 2 | B47: 2 | G47: Prekių ir paslaugų įsigijimo išlaidos | H47: 13 | I47: =I48 -> 43300.00 | J47: 31200.00 | K47: 19158.23 | L47: 19158.23
A48: 2 | B48: 2 | C48: 1 | G48: Prekių ir paslaugų įsigijimo išlaidos | H48: 14 | I48: 43300.00 | J48: 31200.00 | K48: 19158.23 | L48: 19158.23
A49: 2 | B49: 2 | C49: 1 | D49: 1 | G49: Prekių ir paslaugų įsigijimo išlaidos | H49: 15 | I49: 43300.00 | J49: 31200.00 | K49: 19158.23 | L49: 19158.23
A50: 2 | B50: 2 | C50: 1 | D50: 1 | E50: 1 | G50: Prekių ir paslaugų įsigijimo išlaidos | H50: 16 | I50: =SUM(I51:I66) -> 43300.00 | J50: =SUM(J51:J66) -> 31200.00 | K50: =SUM(K51:K66) -> 19158.23 | L50: =SUM(L51:L66) -> 19158.23
A51: 2 | B51: 2 | C51: 1 | D51: 1 | E51: 1 | F51: 1 | G51: Mitybos išlaidos | H51: 17 | I51: 0.00 | J51: 0.00 | K51: 0.00 | L51: 0.00
A52: 2 | B52: 2 | C52: 1 | D52: 1 | E52: 1 | F52: 2 | G52: Medikamentų ir medicininių prekių bei paslaugų įsigijimo išlaidos | H52: 18 | I52: 400.00 | J52: 200.00 | K52: 0.00 | L52: 0.00
A53: 2 | B53: 2 | C53: 1 | D53: 1 | E53: 1 | F53: 5 | G53: Ryšių įrangos ir ryšių paslaugų įsigijimo išlaidos | H53: 19 | I53: 1700.00 | J53: 1000.00 | K53: 863.92 | L53: 863.92
A54: 2 | B54: 2 | C54: 1 | D54: 1 | E54: 1 | F54: 6 | G54: Transporto išlaikymo ir transporto paslaugų įsigijimo išlaidos | H54: 20 | I54: 0.00 | J54: 0.00 | K54: 0.00 | L54: 0.00
A55: 2 | B55: 2 | C55: 1 | D55: 1 | E55: 1 | F55: 7 | G55: Aprangos ir patalynės įsigijimo bei priežiūros išlaidos | H55: 21 | I55: 0.00 | J55: 0.00 | K55: 0.00 | L55: 0.00
A56: 2 | B56: 2 | C56: 1 | D56: 1 | E56: 1 | F56: 11 | G56: Komandiruočių išlaidos | H56: 22 | I56: 300.00 | J56: 300.00 | K56: 0.00 | L56: 0.00
A57: 2 | B57: 2 | C57: 1 | D57: 1 | E57: 1 | F57: 12 | G57: Gyvenamųjų vietovių viešojo ūkio išlaidos | H57: 23 | I57: 0.00 | J57: 0.00 | K57: 0.00 | L57: 0.00
A58: 2 | B58: 2 | C58: 1 | D58: 1 | E58: 1 | F58: 14 | G58: Materialiojo ir nematerialiojo turto nuomos išlaidos | H58: 24 | I58: 0.00 | J58: 0.00 | K58: 0.00 | L58: 0.00
A59: 2 | B59: 2 | C59: 1 | D59: 1 | E59: 1 | F59: 15 | G59: Materialiojo turto paprastojo remonto prekių ir paslaugų įsigijimo išlaidos | H59: 25 | I59: 1200.00 | J59: 900.00 | K59: 622.70 | L59: 622.70
A60: 2 | B60: 2 | C60: 1 | D60: 1 | E60: 1 | F60: 16 | G60: Kvalifikacijos kėlimo išlaidos | H60: 26 | I60: 2000.00 | J60: 1400.00 | K60: 583.30 | L60: 583.30
A61: 2 | B61: 2 | C61: 1 | D61: 1 | E61: 1 | F61: 17 | G61: Ekspertų ir konsultantų paslaugų įsigijimo išlaidos | H61: 27 | I61: 0.00 | J61: 0.00 | K61: 0.00 | L61: 0.00
A62: 2 | B62: 2 | C62: 1 | D62: 1 | E62: 1 | F62: 20 | G62: Komunalinių paslaugų įsigijimo išlaidos | H62: 28 | I62: 29700.00 | J62: 22000.00 | K62: 14568.50 | L62: 14568.50
A63: 2 | B63: 2 | C63: 1 | D63: 1 | E63: 1 | F63: 21 | G63: Informacinių technologijų prekių ir paslaugų įsigijimo išlaidos | H63: 29 | I63: 2500.00 | J63: 1700.00 | K63: 1018.56 | L63: 1018.56
A64: 2 | B64: 2 | C64: 1 | D64: 1 | E64: 1 | F64: 22 | G64: Reprezentacinės išlaidos | H64: 30 | I64: 300.00 | J64: 200.00 | K64: 0.00 | L64: 0.00
A65: 2 | B65: 2 | C65: 1 | D65: 1 | E65: 1 | F65: 23 | G65: Viešinimo išlaidos | H65: 31 | I65: 0.00 | J65: 0.00 | K65: 0.00 | L65: 0.00
A66: 2 | B66: 2 | C66: 1 | D66: 1 | E66: 1 | F66: 30 | G66: Kitų prekių ir paslaugų įsigijimo išlaidos | H66: 32 | I66: 5200.00 | J66: 3500.00 | K66: 1501.25 | L66: 1501.25
A67: 2 | B67: 3 | G67: Palūkanos | H67: 33 | I67: =I68 -> 0.00 | J67: =J68 -> 0.00 | K67: =K68 -> 0.00 | L67: =L68 -> 0.00
A68: 2 | B68: 3 | C68: 1 | G68: Palūkanos | H68: 34 | I68: =SUM(I69+I74+I79) -> 0.00 | J68: =SUM(J69+J74+J79) -> 0.00 | K68: =SUM(K69+K74+K79) -> 0.00 | L68: =SUM(L69+L74+L79) -> 0.00
A69: 2 | B69: 3 | C69: 1 | D69: 1 | G69: Palūkanos nerezidentams | H69: 35 | I69: =I70 -> 0.00 | J69: =J70 -> 0.00 | K69: =K70 -> 0.00 | L69: =L70 -> 0.00
A70: 2 | B70: 3 | C70: 1 | D70: 1 | E70: 1 | G70: Palūkanos nerezidentams | H70: 36 | I70: =SUM(I71:I73) -> 0.00 | J70: =SUM(J71:J73) -> 0.00 | K70: =SUM(K71:K73) -> 0.00 | L70: =SUM(L71:L73) -> 0.00
A71: 2 | B71: 3 | C71: 1 | D71: 1 | E71: 1 | F71: 1 | G71: Asignavimų valdytojų sumokėtos palūkanos | H71: 37 | I71: 0.00 | J71: 0.00 | K71: 0.00 | L71: 0.00
A72: 2 | B72: 3 | C72: 1 | D72: 1 | E72: 1 | F72: 2 | G72: Finansų ministerijos sumokėtos palūkanos | H72: 38 | I72: 0.00 | J72: 0.00 | K72: 0.00 | L72: 0.00
A73: 2 | B73: 3 | C73: 1 | D73: 1 | E73: 1 | F73: 3 | G73: Savivaldybių sumokėtos palūkanos | H73: 39 | I73: 0.00 | J73: 0.00 | K73: 0.00 | L73: 0.00
A74: 2 | B74: 3 | C74: 1 | D74: 2 | G74: Palūkanos rezidentams, kitiems nei valdžios sektorius (tik už tiesioginę skolą) | H74: 40 | I74: =I75 -> 0.00 | J74: =J75 -> 0.00 | K74: =K75 -> 0.00 | L74: =L75 -> 0.00
A75: 2 | B75: 3 | C75: 1 | D75: 2 | E75: 1 | G75: Palūkanos rezidentams, kitiems nei valdžios sektorius (tik už tiesioginę skolą) | H75: 41 | I75: =SUM(I76:I78) -> 0.00 | J75: =SUM(J76:J78) -> 0.00 | K75: =SUM(K76:K78) -> 0.00 | L75: =SUM(L76:L78) -> 0.00
A76: 2 | B76: 3 | C76: 1 | D76: 2 | E76: 1 | F76: 1 | G76: Asignavimų valdytojų sumokėtos palūkanos | H76: 42 | I76: 0.00 | J76: 0.00 | K76: 0.00 | L76: 0.00
A77: 2 | B77: 3 | C77: 1 | D77: 2 | E77: 1 | F77: 2 | G77: Finansų ministerijos sumokėtos palūkanos | H77: 43 | I77: 0.00 | J77: 0.00 | K77: 0.00 | L77: 0.00
A78: 2 | B78: 3 | C78: 1 | D78: 2 | E78: 1 | F78: 3 | G78: Savivaldybių sumokėtos palūkanos | H78: 44 | I78: 0.00 | J78: 0.00 | K78: 0.00 | L78: 0.00
A79: 2 | B79: 3 | C79: 1 | D79: 3 | G79: Palūkanos kitiems valdžios sektoriaus subjektams | H79: 45 | I79: =I80 -> 0.00 | J79: =J80 -> 0.00 | K79: =K80 -> 0.00 | L79: =L80 -> 0.00
A80: 2 | B80: 3 | C80: 1 | D80: 3 | E80: 1 | G80: Palūkanos kitiems valdžios sektoriaus subjektams | H80: 46 | I80: =SUM(I81:I83) -> 0.00 | J80: =SUM(J81:J83) -> 0.00 | K80: =SUM(K81:K83) -> 0.00 | L80: =SUM(L81:L83) -> 0.00
A81: 2 | B81: 3 | C81: 1 | D81: 3 | E81: 1 | F81: 1 | G81: Palūkanos valstybės biudžetui | H81: 47 | I81: 0.00 | J81: 0.00 | K81: 0.00 | L81: 0.00
A82: 2 | B82: 3 | C82: 1 | D82: 3 | E82: 1 | F82: 2 | G82: Palūkanos savivaldybių biudžetams | H82: 48 | I82: 0.00 | J82: 0.00 | K82: 0.00 | L82: 0.00
A83: 2 | B83: 3 | C83: 1 | D83: 3 | E83: 1 | F83: 3 | G83: Palūkanos nebiudžetiniams fondams | H83: 49 | I83: 0.00 | J83: 0.00 | K83: 0.00 | L83: 0.00
A84: 2 | B84: 3 | C84: 2 | G84: Žemės nuoma | H84: 50 | I84: =I85 -> 0.00 | J84: 0.00 | K84: 0.00 | L84: 0.00
A85: 2 | B85: 3 | C85: 2 | D85: 1 | G85: Žemės nuoma | H85: 51 | I85: 0.00 | J85: 0.00 | K85: 0.00 | L85: 0.00
A86: 2 | B86: 3 | C86: 2 | D86: 1 | E86: 1 | G86: Žemės nuoma | H86: 52 | I86: =SUM(I87) -> 0.00 | J86: =SUM(J87) -> 0.00 | K86: =SUM(K87) -> 0.00 | L86: =SUM(L87) -> 0.00
A87: 2 | B87: 3 | C87: 2 | D87: 1 | E87: 1 | F87: 1 | G87: Žemės nuoma | H87: 53 | I87: 0.00 | J87: 0.00 | K87: 0.00 | L87: 0.00
A88: 2 | B88: 4 | G88: Subsidijos | H88: 54 | I88: =I89 -> 0.00 | J88: 0.00 | K88: 0.00 | L88: 0.00
A89: 2 | B89: 4 | C89: 1 | G89: Subsidijos iš biudžeto lėšų | H89: 55 | I89: 0.00 | J89: 0.00 | K89: 0.00 | L89: 0.00
A90: 2 | B90: 4 | C90: 1 | D90: 1 | G90: Subsidijos iš biudžeto lėšų | H90: 56 | I90: 0.00 | J90: 0.00 | K90: 0.00 | L90: 0.00
A91: 2 | B91: 4 | C91: 1 | D91: 1 | E91: 1 | G91: Subsidijos iš biudžeto lėšų | H91: 57 | I91: =SUM(I92:I94) -> 0.00 | J91: =SUM(J92:J94) -> 0.00 | K91: =SUM(K92:K94) -> 0.00 | L91: =SUM(L92:L94) -> 0.00
A92: 2 | B92: 4 | C92: 1 | D92: 1 | E92: 1 | F92: 1 | G92: Subsidijos importui | H92: 58 | I92: 0.00 | J92: 0.00 | K92: 0.00 | L92: 0.00
A93: 2 | B93: 4 | C93: 1 | D93: 1 | E93: 1 | F93: 2 | G93: Subsidijos gaminiams | H93: 59 | I93: 0.00 | J93: 0.00 | K93: 0.00 | L93: 0.00
A94: 2 | B94: 4 | C94: 1 | D94: 1 | E94: 1 | F94: 3 | G94: Subsidijos gamybai | H94: 60 | I94: 0.00 | J94: 0.00 | K94: 0.00 | L94: 0.00
A95: 2 | B95: 5 | G95: Dotacijos | H95: 61 | I95: =SUM(I96+I101+I106) -> 0.00 | J95: =SUM(J96+J101+J106) -> 0.00 | K95: =SUM(K96+K101+K106) -> 0.00 | L95: =SUM(L96+L101+L106) -> 0.00
A96: 2 | B96: 5 | C96: 1 | G96: Dotacijos užsienio valstybėms | H96: 62 | I96: =I97 -> 0.00 | J96: 0.00 | K96: 0.00 | L96: 0.00
A97: 2 | B97: 5 | C97: 1 | D97: 1 | G97: Dotacijos užsienio valstybėms | H97: 63 | I97: 0.00 | J97: 0.00 | K97: 0.00 | L97: 0.00
A98: 2 | B98: 5 | C98: 1 | D98: 1 | E98: 1 | G98: Dotacijos užsienio valstybėms | H98: 64 | I98: =SUM(I99:I100) -> 0.00 | J98: =SUM(J99:J100) -> 0.00 | K98: =SUM(K99:K100) -> 0.00 | L98: =SUM(L99:L100) -> 0.00
A99: 2 | B99: 5 | C99: 1 | D99: 1 | E99: 1 | F99: 1 | G99: Dotacijos užsienio valstybėms einamiesiems tikslams | H99: 65 | I99: 0.00 | J99: 0.00 | K99: 0.00 | L99: 0.00
A100: 2 | B100: 5 | C100: 1 | D100: 1 | E100: 1 | F100: 2 | G100: Dotacijos užsienio valstybėms turtui įsigyti | H100: 66 | I100: 0.00 | J100: 0.00 | K100: 0.00 | L100: 0.00
A101: 2 | B101: 5 | C101: 2 | G101: Dotacijos tarptautinėms organizacijoms | H101: 67 | I101: =I102 -> 0.00 | J101: 0.00 | K101: 0.00 | L101: 0.00
A102: 2 | B102: 5 | C102: 2 | D102: 1 | G102: Dotacijos tarptautinėms organizacijoms | H102: 68 | I102: 0.00 | J102: 0.00 | K102: 0.00 | L102: 0.00
A103: 2 | B103: 5 | C103: 2 | D103: 1 | E103: 1 | G103: Dotacijos tarptautinėms organizacijoms | H103: 69 | I103: =SUM(I104:I105) -> 0.00 | J103: =SUM(J104:J105) -> 0.00 | K103: =SUM(K104:K105) -> 0.00 | L103: =SUM(L104:L105) -> 0.00
A104: 2 | B104: 5 | C104: 2 | D104: 1 | E104: 1 | F104: 1 | G104: Dotacijos tarptautinėms organizacijoms einamiesiems tikslams | H104: 70 | I104: 0.00 | J104: 0.00 | K104: 0.00 | L104: 0.00
A105: 2 | B105: 5 | C105: 2 | D105: 1 | E105: 1 | F105: 2 | G105: Dotacijos tarptautinėms organizacijoms turtui įsigyti | H105: 71 | I105: 0.00 | J105: 0.00 | K105: 0.00 | L105: 0.00
A106: 2 | B106: 5 | C106: 3 | G106: Dotacijos kitiems valdžios sektoriaus subjektams | H106: 72 | I106: =I107+I111 -> 0.00 | J106: =J107+J111 -> 0.00 | K106: =K107+K111 -> 0.00 | L106: =L107+L111 -> 0.00
A107: 2 | B107: 5 | C107: 3 | D107: 1 | G107: Dotacijos kitiems valdžios sektoriaus subjektams einamiesiems tikslams | H107: 73 | I107: =I108 -> 0.00 | J107: =J108 -> 0.00 | K107: =K108 -> 0.00 | L107: =L108 -> 0.00
A108: 2 | B108: 5 | C108: 3 | D108: 1 | E108: 1 | G108: Dotacijos kitiems valdžios sektoriaus subjektams einamiesiems tikslams | H108: 74 | I108: =SUM(I109:I110) -> 0.00 | J108: =SUM(J109:J110) -> 0.00 | K108: =SUM(K109:K110) -> 0.00 | L108: =SUM(L109:L110) -> 0.00
A109: 2 | B109: 5 | C109: 3 | D109: 1 | E109: 1 | F109: 1 | G109: Dotacijos kitiems valdžios sektoriaus subjektams einamiesiems tikslams | H109: 75 | I109: 0.00 | J109: 0.00 | K109: 0.00 | L109: 0.00
A110: 2 | B110: 5 | C110: 3 | D110: 1 | E110: 1 | F110: 2 | G110: Dotacijos savivaldybėms einamiesiems tikslams | H110: 76 | I110: 0.00 | J110: 0.00 | K110: 0.00 | L110: 0.00
A111: 2 | B111: 5 | C111: 3 | D111: 2 | G111: Dotacijos kitiems valdžios sektoriaus subjektams turtui įsigyti | H111: 77 | I111: =I112 -> 0.00 | J111: =J112 -> 0.00 | K111: =K112 -> 0.00 | L111: =L112 -> 0.00
A112: 2 | B112: 5 | C112: 3 | D112: 2 | E112: 1 | G112: Dotacijos kitiems valdžios sektoriaus subjektams turtui įsigyti | H112: 78 | I112: =SUM(I113:I114) -> 0.00 | J112: =SUM(J113:J114) -> 0.00 | K112: =SUM(K113:K114) -> 0.00 | L112: =SUM(L113:L114) -> 0.00
A113: 2 | B113: 5 | C113: 3 | D113: 2 | E113: 1 | F113: 1 | G113: Dotacijos kitiems valdžios sektoriaus subjektams turtui įsigyti | H113: 79 | I113: 0.00 | J113: 0.00 | K113: 0.00 | L113: 0.00
A114: 2 | B114: 5 | C114: 3 | D114: 2 | E114: 1 | F114: 2 | G114: Dotacijos savivaldybėms turtui įsigyti | H114: 80 | I114: 0.00 | J114: 0.00 | K114: 0.00 | L114: 0.00
A115: 2 | B115: 6 | G115: Įmokos į Europos Sąjungos biudžetą | H115: 81 | I115: =SUM(I116+I121+I125+I129+I133+I137) -> 0.00 | J115: =SUM(J116+J121+J125+J129+J133+J137) -> 0.00 | K115: =SUM(K116+K121+K125+K129+K133+K137) -> 0.00 | L115: =SUM(L116+L121+L125+L129+L133+L137) -> 0.00
A116: 2 | B116: 6 | C116: 1 | G116: Tradiciniai nuosavi ištekliai | H116: 82 | I116: =I117 -> 0.00 | J116: 0.00 | K116: 0.00 | L116: 0.00
A117: 2 | B117: 6 | C117: 1 | D117: 1 | G117: Tradiciniai nuosavi ištekliai | H117: 83 | I117: 0.00 | J117: 0.00 | K117: 0.00 | L117: 0.00
A118: 2 | B118: 6 | C118: 1 | D118: 1 | E118: 1 | G118: Tradiciniai nuosavi ištekliai | H118: 84 | I118: =SUM(I119:I120) -> 0.00 | J118: =SUM(J119:J120) -> 0.00 | K118: =SUM(K119:K120) -> 0.00 | L118: =SUM(L119:L120) -> 0.00
A119: 2 | B119: 6 | C119: 1 | D119: 1 | E119: 1 | F119: 1 | G119: Muitai | H119: 85 | I119: 0.00 | J119: 0.00 | K119: 0.00 | L119: 0.00
A120: 2 | B120: 6 | C120: 1 | D120: 1 | E120: 1 | F120: 2 | G120: Cukraus sektoriaus mokesčiai | H120: 86 | I120: 0.00 | J120: 0.00 | K120: 0.00 | L120: 0.00
A121: 2 | B121: 6 | C121: 2 | G121: Pridėtinės vertės mokesčio nuosavi ištekliai | H121: 87 | I121: =I122 -> 0.00 | J121: 0.00 | K121: 0.00 | L121: 0.00
A122: 2 | B122: 6 | C122: 2 | D122: 1 | G122: Pridėtinės vertės mokesčio nuosavi ištekliai | H122: 88 | I122: 0.00 | J122: 0.00 | K122: 0.00 | L122: 0.00
A123: 2 | B123: 6 | C123: 2 | D123: 1 | E123: 1 | G123: Pridėtinės vertės mokesčio nuosavi ištekliai | H123: 89 | I123: 0.00 | J123: 0.00 | K123: 0.00 | L123: 0.00
A124: 2 | B124: 6 | C124: 2 | D124: 1 | E124: 1 | F124: 1 | G124: Pridėtinės vertės mokesčio nuosavi ištekliai | H124: 90 | I124: 0.00 | J124: 0.00 | K124: 0.00 | L124: 0.00
A125: 2 | B125: 6 | C125: 3 | G125: Bendrųjų nacionalinių pajamų nuosavi ištekliai | H125: 91 | I125: =I126 -> 0.00 | J125: 0.00 | K125: 0.00 | L125: 0.00
A126: 2 | B126: 6 | C126: 3 | D126: 1 | G126: Bendrųjų nacionalinių pajamų nuosavi ištekliai | H126: 92 | I126: 0.00 | J126: 0.00 | K126: 0.00 | L126: 0.00
A127: 2 | B127: 6 | C127: 3 | D127: 1 | E127: 1 | G127: Bendrųjų nacionalinių pajamų nuosavi ištekliai | H127: 93 | I127: 0.00 | J127: 0.00 | K127: 0.00 | L127: 0.00
A128: 2 | B128: 6 | C128: 3 | D128: 1 | E128: 1 | F128: 1 | G128: Bendrųjų nacionalinių pajamų nuosavi ištekliai | H128: 94 | I128: 0.00 | J128: 0.00 | K128: 0.00 | L128: 0.00
A129: 2 | B129: 6 | C129: 4 | G129: Biudžeto disbalansų korekcija Jungtinės Karalystės naudai | H129: 95 | I129: =I130 -> 0.00 | J129: 0.00 | K129: 0.00 | L129: 0.00
A130: 2 | B130: 6 | C130: 4 | D130: 1 | G130: Biudžeto disbalansų korekcija Jungtinės Karalystės naudai | H130: 96 | I130: 0.00 | J130: 0.00 | K130: 0.00 | L130: 0.00
A131: 2 | B131: 6 | C131: 4 | D131: 1 | E131: 1 | G131: Biudžeto disbalansų korekcija Jungtinės Karalystės naudai | H131: 97 | I131: 0.00 | J131: 0.00 | K131: 0.00 | L131: 0.00
A132: 2 | B132: 6 | C132: 4 | D132: 1 | E132: 1 | F132: 1 | G132: Biudžeto disbalansų korekcija Jungtinės Karalystės naudai | H132: 98 | I132: 0.00 | J132: 0.00 | K132: 0.00 | L132: 0.00
A133: 2 | B133: 6 | C133: 5 | G133: Su nuosavais ištekliais susijusios baudos, delspinigiai ir neigiamos palūkanos | H133: 99 | I133: =I134 -> 0.00 | J133: 0.00 | K133: 0.00 | L133: 0.00
A134: 2 | B134: 6 | C134: 5 | D134: 1 | G134: Su nuosavais ištekliais susijusios baudos, delspinigiai ir neigiamos palūkanos | H134: 100 | I134: 0.00 | J134: 0.00 | K134: 0.00 | L134: 0.00
A135: 2 | B135: 6 | C135: 5 | D135: 1 | E135: 1 | G135: Su nuosavais ištekliais susijusios baudos, delspinigiai ir neigiamos palūkanos | H135: 101 | I135: 0.00 | J135: 0.00 | K135: 0.00 | L135: 0.00
A136: 2 | B136: 6 | C136: 5 | D136: 1 | E136: 1 | F136: 1 | G136: Su nuosavais ištekliais susijusios baudos, delspinigiai ir neigiamos palūkanos | H136: 102 | I136: 0.00 | J136: 0.00 | K136: 0.00 | L136: 0.00
A137: 2 | B137: 6 | C137: 6 | G137: Neperdirbto plastiko atliekų nuosavi ištekliai | H137: 103 | I137: =I138 -> 0.00 | J137: 0.00 | K137: 0.00 | L137: 0.00
A138: 2 | B138: 6 | C138: 6 | D138: 1 | G138: Neperdirbto plastiko atliekų nuosavi ištekliai | H138: 104 | I138: 0.00 | J138: 0.00 | K138: 0.00 | L138: 0.00
A139: 2 | B139: 6 | C139: 6 | D139: 1 | E139: 1 | G139: Neperdirbto plastiko atliekų nuosavi ištekliai | H139: 105 | I139: 0.00 | J139: 0.00 | K139: 0.00 | L139: 0.00
A140: 2 | B140: 6 | C140: 6 | D140: 1 | E140: 1 | F140: 1 | G140: Neperdirbto plastiko atliekų nuosavi ištekliai | H140: 106 | I140: 0.00 | J140: 0.00 | K140: 0.00 | L140: 0.00
A141: 2 | B141: 7 | G141: Socialinės išmokos (pašalpos) | H141: 107 | I141: =SUM(I142+I147+I155) -> 6200.00 | J141: =SUM(J142+J147+J155) -> 3900.00 | K141: =SUM(K142+K147+K155) -> 3892.04 | L141: =SUM(L142+L147+L155) -> 3892.04
A142: 2 | B142: 7 | C142: 1 | G142: Socialinio draudimo išmokos (pašalpos) | H142: 108 | I142: =I143 -> 0.00 | J142: 0.00 | K142: 0.00 | L142: 0.00
A143: 2 | B143: 7 | C143: 1 | D143: 1 | G143: Socialinio draudimo išmokos (pašalpos) | H143: 109 | I143: 0.00 | J143: 0.00 | K143: 0.00 | L143: 0.00
A144: 2 | B144: 7 | C144: 1 | D144: 1 | E144: 1 | G144: Socialinio draudimo išmokos (pašalpos) | H144: 110 | I144: =SUM(I145:I146) -> 0.00 | J144: =SUM(J145:J146) -> 0.00 | K144: =SUM(K145:K146) -> 0.00 | L144: =SUM(L145:L146) -> 0.00
A145: 2 | B145: 7 | C145: 1 | D145: 1 | E145: 1 | F145: 1 | G145: Socialinio draudimo išmokos pinigais | H145: 111 | I145: 0.00 | J145: 0.00 | K145: 0.00 | L145: 0.00
A146: 2 | B146: 7 | C146: 1 | D146: 1 | E146: 1 | F146: 2 | G146: Socialinio draudimo išmokos natūra | H146: 112 | I146: 0.00 | J146: 0.00 | K146: 0.00 | L146: 0.00
A147: 2 | B147: 7 | C147: 2 | G147: Socialinė parama (socialinės paramos pašalpos) ir rentos | H147: 113 | I147: =I148 -> 0.00 | J147: 0.00 | K147: 0.00 | L147: 0.00
A148: 2 | B148: 7 | C148: 2 | D148: 1 | G148: Socialinė parama (socialinės paramos pašalpos) | H148: 114 | I148: 0.00 | J148: 0.00 | K148: 0.00 | L148: 0.00
A149: 2 | B149: 7 | C149: 2 | D149: 1 | E149: 1 | G149: Socialinė parama (socialinės paramos pašalpos) | H149: 115 | I149: =SUM(I150:I151) -> 0.00 | J149: =SUM(J150:J151) -> 0.00 | K149: =SUM(K150:K151) -> 0.00 | L149: =SUM(L150:L151) -> 0.00
A150: 2 | B150: 7 | C150: 2 | D150: 1 | E150: 1 | F150: 1 | G150: Socialinė parama pinigais | H150: 116 | I150: 0.00 | J150: 0.00 | K150: 0.00 | L150: 0.00
A151: 2 | B151: 7 | C151: 2 | D151: 1 | E151: 1 | F151: 2 | G151: Socialinė parama natūra | H151: 117 | I151: 0.00 | J151: 0.00 | K151: 0.00 | L151: 0.00
A152: 2 | B152: 7 | C152: 2 | D152: 2 | G152: Rentos | H152: 118 | I152: =I153 -> 0.00 | J152: =J153 -> 0.00 | K152: =K153 -> 0.00 | L152: =L153 -> 0.00
A153: 2 | B153: 7 | C153: 2 | D153: 2 | E153: 1 | G153: Rentos | H153: 119 | I153: =SUM(I154) -> 0.00 | J153: =SUM(J154) -> 0.00 | K153: =SUM(K154) -> 0.00 | L153: =SUM(L154) -> 0.00
A154: 2 | B154: 7 | C154: 2 | D154: 2 | E154: 1 | F154: 1 | G154: Rentos | H154: 120 | I154: 0.00 | J154: 0.00 | K154: 0.00 | L154: 0.00
A155: 2 | B155: 7 | C155: 3 | G155: Darbdavių socialinė parama | H155: 121 | I155: =I156 -> 6200.00 | J155: 3900.00 | K155: 3892.04 | L155: 3892.04
A156: 2 | B156: 7 | C156: 3 | D156: 1 | G156: Darbdavių socialinė parama | H156: 122 | I156: 6200.00 | J156: 3900.00 | K156: 3892.04 | L156: 3892.04
A157: 2 | B157: 7 | C157: 3 | D157: 1 | E157: 1 | G157: Darbdavių socialinė parama | H157: 123 | I157: =SUM(I158:I159) -> 6200.00 | J157: =SUM(J158:J159) -> 3900.00 | K157: =SUM(K158:K159) -> 3892.04 | L157: =SUM(L158:L159) -> 3892.04
A158: 2 | B158: 7 | C158: 3 | D158: 1 | E158: 1 | F158: 1 | G158: Darbdavių socialinė parama pinigais | H158: 124 | I158: 6200.00 | J158: 3900.00 | K158: 3892.04 | L158: 3892.04
A159: 2 | B159: 7 | C159: 3 | D159: 1 | E159: 1 | F159: 2 | G159: Darbdavių socialinė parama natūra | H159: 125 | I159: 0.00 | J159: 0.00 | K159: 0.00 | L159: 0.00
A160: 2 | B160: 8 | G160: Kitos išlaidos | H160: 126 | I160: =I161 -> 0.00 | J160: =J161 -> 0.00 | K160: =K161 -> 0.00 | L160: =L161 -> 0.00
A161: 2 | B161: 8 | C161: 1 | G161: Kitos išlaidos | H161: 127 | I161: =I162+I167 -> 0.00 | J161: =J162+J167 -> 0.00 | K161: =K162+K167 -> 0.00 | L161: =L162+L167 -> 0.00
A162: 2 | B162: 8 | C162: 1 | D162: 1 | G162: Kitos išlaidos einamiesiems tikslams | H162: 128 | I162: =I163 -> 0.00 | J162: =J163 -> 0.00 | K162: =K163 -> 0.00 | L162: =L163 -> 0.00
A163: 2 | B163: 8 | C163: 1 | D163: 1 | E163: 1 | G163: Kitos išlaidos einamiesiems tikslams | H163: 129 | I163: =SUM(I164:I166) -> 0.00 | J163: =SUM(J164:J166) -> 0.00 | K163: =SUM(K164:K166) -> 0.00 | L163: =SUM(L164:L166) -> 0.00
A164: 2 | B164: 8 | C164: 1 | D164: 1 | E164: 1 | F164: 1 | G164: Stipendijoms | H164: 130 | I164: 0.00 | J164: 0.00 | K164: 0.00 | L164: 0.00
A165: 2 | B165: 8 | C165: 1 | D165: 1 | E165: 1 | F165: 2 | G165: Kitos išlaidos kitiems einamiesiems tikslams | H165: 131 | I165: 0.00 | J165: 0.00 | K165: 0.00 | L165: 0.00
A166: 2 | B166: 8 | C166: 1 | D166: 1 | E166: 1 | F166: 3 | G166: Valiutos kurso įtaka | H166: 132 | I166: 0.00 | J166: 0.00 | K166: 0.00 | L166: 0.00
A167: 2 | B167: 8 | C167: 1 | D167: 2 | G167: Kitos išlaidos turtui įsigyti | H167: 133 | I167: =I168 -> 0.00 | J167: 0.00 | K167: 0.00 | L167: 0.00
A168: 2 | B168: 8 | C168: 1 | D168: 2 | E168: 1 | G168: Kitos išlaidos turtui įsigyti | H168: 134 | I168: 0.00 | J168: 0.00 | K168: 0.00 | L168: 0.00
A169: 2 | B169: 8 | C169: 1 | D169: 2 | E169: 1 | F169: 1 | G169: Kitos išlaidos turtui įsigyti | H169: 135 | I169: 0.00 | J169: 0.00 | K169: 0.00 | L169: 0.00
A170: 2 | B170: 9 | G170: Pervedamos Europos Sąjungos, kitos tarptautinės finansinės paramos ir bendrojo finansavimo lėšos | H170: 136 | I170: =I171+I175 -> 0.00 | J170: =J171+J175 -> 0.00 | K170: =K171+K175 -> 0.00 | L170: =L171+L175 -> 0.00
A171: 2 | B171: 9 | C171: 1 | G171: Subsidijos iš Europos Sąjungos ir kitos tarptautinės finansinės paramos lėšų (ne valdžios sektoriui) | H171: 137 | I171: =I172 -> 0.00 | J171: 0.00 | K171: 0.00 | L171: 0.00
A172: 2 | B172: 9 | C172: 1 | D172: 1 | G172: Subsidijos iš Europos Sąjungos ir kitos tarptautinės finansinės paramos lėšų (ne valdžios sektoriui) | H172: 138 | I172: 0.00 | J172: 0.00 | K172: 0.00 | L172: 0.00
A173: 2 | B173: 9 | C173: 1 | D173: 1 | E173: 1 | G173: Subsidijos iš Europos Sąjungos ir kitos tarptautinės finansinės paramos lėšų (ne valdžios sektoriui) | H173: 139 | I173: 0.00 | J173: 0.00 | K173: 0.00 | L173: 0.00
A174: 2 | B174: 9 | C174: 1 | D174: 1 | E174: 1 | F174: 1 | G174: Subsidijos iš Europos Sąjungos ir kitos tarptautinės finansinės paramos lėšų (ne valdžios sektoriui) | H174: 140 | I174: 0.00 | J174: 0.00 | K174: 0.00 | L174: 0.00
A175: 2 | B175: 9 | C175: 2 | G175: Pervedamos Europos Sąjungos, kitos tarptautinės finansinės paramos ir bendrojo finansavimo lėšos | H175: 141 | I175: =SUM(I176+I181) -> 0.00 | J175: =SUM(J176+J181) -> 0.00 | K175: =SUM(K176+K181) -> 0.00 | L175: =SUM(L176+L181) -> 0.00
A176: 2 | B176: 9 | C176: 2 | D176: 1 | G176: Pervedamos Europos Sąjungos, kitos tarptautinės finansinės paramos ir bendrojo finansavimo lėšos einamiesiems tikslams | H176: 142 | I176: =I177 -> 0.00 | J176: =J177 -> 0.00 | K176: =K177 -> 0.00 | L176: =L177 -> 0.00
A177: 2 | B177: 9 | C177: 2 | D177: 1 | E177: 1 | G177: Pervedamos Europos Sąjungos, kitos tarptautinės finansinės paramos ir bendrojo finansavimo lėšos einamiesiems tikslams | H177: 143 | I177: =SUM(I178:I180) -> 0.00 | J177: =SUM(J178:J180) -> 0.00 | K177: =SUM(K178:K180) -> 0.00 | L177: =SUM(L178:L180) -> 0.00
A178: 2 | B178: 9 | C178: 2 | D178: 1 | E178: 1 | F178: 1 | G178: Pervedamos Europos Sąjungos, kitos tarptautinės finansinės paramos ir bendrojo finansavimo lėšos einamiesiems tikslams savivaldybėms | H178: 144 | I178: 0.00 | J178: 0.00 | K178: 0.00 | L178: 0.00
A179: 2 | B179: 9 | C179: 2 | D179: 1 | E179: 1 | F179: 2 | G179: Pervedamos Europos Sąjungos, kitos tarptautinės finansinės paramos ir bendrojo finansavimo lėšos einamiesiems tikslams kitiems valdžios sektoriaus subjektams | H179: 145 | I179: 0.00 | J179: 0.00 | K179: 0.00 | L179: 0.00
A180: 2 | B180: 9 | C180: 2 | D180: 1 | E180: 1 | F180: 3 | G180: Pervedamos Europos Sąjungos, kitos tarptautinės finansinės paramos ir bendrojo finansavimo lėšos einamiesiems tikslams ne valdžios sektoriui | H180: 146 | I180: 0.00 | J180: 0.00 | K180: 0.00 | L180: 0.00
A181: 2 | B181: 9 | C181: 2 | D181: 2 | G181: Pervedamos Europos Sąjungos, kitos tarptautinės finansinės paramos ir bendrojo finansavimo lėšos investicijoms | H181: 147 | I181: =I182 -> 0.00 | J181: =J182 -> 0.00 | K181: =K182 -> 0.00 | L181: =L182 -> 0.00
A182: 2 | B182: 9 | C182: 2 | D182: 2 | E182: 1 | G182: Pervedamos Europos Sąjungos, kitos tarptautinės finansinės paramos ir bendrojo finansavimo lėšos investicijoms | H182: 148 | I182: =SUM(I183:I185) -> 0.00 | J182: =SUM(J183:J185) -> 0.00 | K182: =SUM(K183:K185) -> 0.00 | L182: =SUM(L183:L185) -> 0.00
A183: 2 | B183: 9 | C183: 2 | D183: 2 | E183: 1 | F183: 1 | G183: Pervedamos Europos Sąjungos, kitos tarptautinės finansinės paramos ir bendrojo finansavimo lėšos investicijoms, skirtoms savivaldybėms | H183: 149 | I183: 0.00 | J183: 0.00 | K183: 0.00 | L183: 0.00
A184: 2 | B184: 9 | C184: 2 | D184: 2 | E184: 1 | F184: 2 | G184: Pervedamos Europos Sąjungos, kitos tarptautinės finansinės paramos ir bendrojo finansavimo lėšos investicijoms kitiems valdžios sektoriaus subjektams | H184: 150 | I184: 0.00 | J184: 0.00 | K184: 0.00 | L184: 0.00
A185: 2 | B185: 9 | C185: 2 | D185: 2 | E185: 1 | F185: 3 | G185: Pervedamos Europos Sąjungos, kitos tarptautinės finansinės paramos ir bendrojo finansavimo lėšos investicijoms ne valdžios sektoriui | H185: 151 | I185: 0.00 | J185: 0.00 | K185: 0.00 | L185: 0.00
A186: 3 | G186: MATERIALIOJO IR NEMATERIALIOJO TURTO ĮSIGIJIMO, FINANSINIO TURTO PADIDĖJIMO IR FINANSINIŲ ĮSIPAREIGOJIMŲ VYKDYMO IŠLAIDOS | H186: 152 | I186: =SUM(I187+I240+I305) -> 0.00 | J186: =SUM(J187+J240+J305) -> 0.00 | K186: =SUM(K187+K240+K305) -> 0.00 | L186: =SUM(L187+L240+L305) -> 0.00
A187: 3 | B187: 1 | G187: Materialiojo ir nematerialiojo turto įsigijimo išlaidos | H187: 153 | I187: =SUM(I188+I211+I218+I230+I234) -> 0.00 | J187: =SUM(J188+J211+J218+J230+J234) -> 0.00 | K187: =SUM(K188+K211+K218+K230+K234) -> 0.00 | L187: =SUM(L188+L211+L218+L230+L234) -> 0.00
A188: 3 | B188: 1 | C188: 1 | G188: Ilgalaikio materialiojo turto kūrimo ir įsigijimo išlaidos | H188: 154 | I188: =SUM(I189+I192+I197+I203+I208) -> 0.00 | J188: =SUM(J189+J192+J197+J203+J208) -> 0.00 | K188: =SUM(K189+K192+K197+K203+K208) -> 0.00 | L188: =SUM(L189+L192+L197+L203+L208) -> 0.00
A189: 3 | B189: 1 | C189: 1 | D189: 1 | G189: Žemės įsigijimo išlaidos | H189: 155 | I189: =I190 -> 0.00 | J189: 0.00 | K189: 0.00 | L189: 0.00
A190: 3 | B190: 1 | C190: 1 | D190: 1 | E190: 1 | G190: Žemės įsigijimo išlaidos | H190: 156 | I190: 0.00 | J190: 0.00 | K190: 0.00 | L190: 0.00
A191: 3 | B191: 1 | C191: 1 | D191: 1 | E191: 1 | F191: 1 | G191: Žemės įsigijimo išlaidos | H191: 157 | I191: 0.00 | J191: 0.00 | K191: 0.00 | L191: 0.00
A192: 3 | B192: 1 | C192: 1 | D192: 2 | G192: Pastatų ir statinių įsigijimo išlaidos | H192: 158 | I192: =I193 -> 0.00 | J192: =J193 -> 0.00 | K192: =K193 -> 0.00 | L192: =L193 -> 0.00
A193: 3 | B193: 1 | C193: 1 | D193: 2 | E193: 1 | G193: Pastatų ir statinių įsigijimo išlaidos | H193: 159 | I193: =SUM(I194:I196) -> 0.00 | J193: =SUM(J194:J196) -> 0.00 | K193: =SUM(K194:K196) -> 0.00 | L193: =SUM(L194:L196) -> 0.00
A194: 3 | B194: 1 | C194: 1 | D194: 2 | E194: 1 | F194: 1 | G194: Gyvenamųjų namų įsigijimo išlaidos | H194: 160 | I194: 0.00 | J194: 0.00 | K194: 0.00 | L194: 0.00
A195: 3 | B195: 1 | C195: 1 | D195: 2 | E195: 1 | F195: 2 | G195: Negyvenamųjų pastatų įsigijimo išlaidos | H195: 161 | I195: 0.00 | J195: 0.00 | K195: 0.00 | L195: 0.00
A196: 3 | B196: 1 | C196: 1 | D196: 2 | E196: 1 | F196: 3 | G196: Infrastruktūros ir kitų statinių įsigijimo išlaidos | H196: 162 | I196: 0.00 | J196: 0.00 | K196: 0.00 | L196: 0.00
A197: 3 | B197: 1 | C197: 1 | D197: 3 | G197: Mašinų ir įrenginių įsigijimo išlaidos | H197: 163 | I197: =I198 -> 0.00 | J197: =J198 -> 0.00 | K197: =K198 -> 0.00 | L197: =L198 -> 0.00
A198: 3 | B198: 1 | C198: 1 | D198: 3 | E198: 1 | G198: Mašinų ir įrenginių įsigijimo išlaidos | H198: 164 | I198: =SUM(I199:I202) -> 0.00 | J198: =SUM(J199:J202) -> 0.00 | K198: =SUM(K199:K202) -> 0.00 | L198: =SUM(L199:L202) -> 0.00
A199: 3 | B199: 1 | C199: 1 | D199: 3 | E199: 1 | F199: 1 | G199: Transporto priemonių įsigijimo išlaidos | H199: 165 | I199: 0.00 | J199: 0.00 | K199: 0.00 | L199: 0.00
A200: 3 | B200: 1 | C200: 1 | D200: 3 | E200: 1 | F200: 2 | G200: Kitų mašinų ir įrenginių įsigijimo išlaidos | H200: 166 | I200: 0.00 | J200: 0.00 | K200: 0.00 | L200: 0.00
A201: 3 | B201: 1 | C201: 1 | D201: 3 | E201: 1 | F201: 3 | G201: Ginklų ir karinės įrangos įsigijimo išlaidos | H201: 167 | I201: 0.00 | J201: 0.00 | K201: 0.00 | L201: 0.00
A202: 3 | B202: 1 | C202: 1 | D202: 3 | E202: 1 | F202: 4 | G202: Kompiuterinės techninės ir elektroninių ryšių įrangos įsigijimo išlaidos | H202: 168 | I202: 0.00 | J202: 0.00 | K202: 0.00 | L202: 0.00
A203: 3 | B203: 1 | C203: 1 | D203: 4 | G203: Kultūros ir kitų vertybių įsigijimo išlaidos | H203: 169 | I203: =I204 -> 0.00 | J203: =J204 -> 0.00 | K203: =K204 -> 0.00 | L203: =L204 -> 0.00
A204: 3 | B204: 1 | C204: 1 | D204: 4 | E204: 1 | G204: Kultūros ir kitų vertybių įsigijimo išlaidos | H204: 170 | I204: =SUM(I205:I207) -> 0.00 | J204: =SUM(J205:J207) -> 0.00 | K204: =SUM(K205:K207) -> 0.00 | L204: =SUM(L205:L207) -> 0.00
A205: 3 | B205: 1 | C205: 1 | D205: 4 | E205: 1 | F205: 1 | G205: Muziejinių vertybių įsigijimo išlaidos | H205: 171 | I205: 0.00 | J205: 0.00 | K205: 0.00 | L205: 0.00
A206: 3 | B206: 1 | C206: 1 | D206: 4 | E206: 1 | F206: 2 | G206: Antikvarinių ir kitų meno kūrinių įsigijimo išlaidos | H206: 172 | I206: 0.00 | J206: 0.00 | K206: 0.00 | L206: 0.00
A207: 3 | B207: 1 | C207: 1 | D207: 4 | E207: 1 | F207: 3 | G207: Kitų vertybių įsigijimo išlaidos | H207: 173 | I207: 0.00 | J207: 0.00 | K207: 0.00 | L207: 0.00
A208: 3 | B208: 1 | C208: 1 | D208: 5 | G208: Kito ilgalaikio materialiojo turto įsigijimo išlaidos | H208: 174 | I208: =I209 -> 0.00 | J208: 0.00 | K208: 0.00 | L208: 0.00
A209: 3 | B209: 1 | C209: 1 | D209: 5 | E209: 1 | G209: Kito ilgalaikio materialiojo turto įsigijimo išlaidos | H209: 175 | I209: 0.00 | J209: 0.00 | K209: 0.00 | L209: 0.00
... 166 more rows

Sheet Froma Nr.2 SB 1.4.4.28
J1: Biudžeto vykdymo ataskaitų rinkinių rengimo taisyklių
J2: 1 priedas
A8: (Biudžeto išlaidų sąmatos vykdymo 2025 m. birželio mėn. 30 d. ketvirčio, pusmečio, metų ataskaitos forma, Nr.2)
A10: Vaikų ir jaunimo laisvalaikio centras, 195174984
A11: (įstaigos pavadinimas, kodas Juridinių asmenų registre, adresas)
G13: BIUDŽETO IŠLAIDŲ SĄMATOS VYKDYMO
A14: 2025 M. BIRŽELIO MĖN. 30 D.
G15: 2 ketvirtis
G16: (I ketvirčio, pusmečio, 9 mėnesių, metinė)
B17: ATASKAITA
G19: 2025.07.10 Nr.________________
G20: (data)
E22: Žinių visuomenės plėtros programa
A23: (programos pavadinimas)
L24: Kodas
J25: Ministerijos / Savivaldybės
K26: Departamento
A27: Neformalusis vaikų švietimas | K27: Įstaigos | L27: 195174984
A28: 1.4.4.28. Švietimo įstaigų patalpų remontas, mokyklinių autobusų remontas, buitinės, organizacinės technikos, mokymo priemonių įsigijimas | J28: Programos | K28: 1
G29: Finansavimo šaltinio | H29: SB
G30: Valstybės funkcijos | I30: 09 | J30: 05 | K30: 01 | L30: 01
A31: Savivaldybės biudžeto lėšos | L31: (eurais, ct)
A32: Išlaidų ekonominės klasifikacijos kodas | G32: Išlaidų pavadinimas | H32: Eil. Nr. | I32: Asignavimų planas, įskaitant patikslinimus | K32: Gauti asignavimai kartu su įskaitytu praėjusių metų lėšų likučiu | L32: Panaudoti asignavimai
I33: metams | J33: ataskaitiniam laikotarpiui
A34: 1 | G34: 2 | H34: 3 | I34: 4 | J34: 5 | K34: 6 | L34: 7
A35: 2 | G35: IŠLAIDOS | H35: 1 | I35: =SUM(I36+I47+I67+I88+I95+I115+I141+I160+I170) -> 3000.00 | J35: =SUM(J36+J47+J67+J88+J95+J115+J141+J160+J170) -> 2500.00 | K35: =SUM(K36+K47+K67+K88+K95+K115+K141+K160+K170) -> 150.00 | L35: =SUM(L36+L47+L67+L88+L95+L115+L141+L160+L170) -> 150.00
A36: 2 | B36: 1 | G36: Darbo užmokestis ir socialinis draudimas | H36: 2 | I36: =SUM(I37+I43) -> 0.00 | J36: =SUM(J37+J43) -> 0.00 | K36: =SUM(K37+K43) -> 0.00 | L36: =SUM(L37+L43) -> 0.00
A37: 2 | B37: 1 | C37: 1 | G37: Darbo užmokestis | H37: 3 | I37: =SUM(I38) -> 0.00 | J37: =SUM(J38) -> 0.00 | K37: =SUM(K38) -> 0.00 | L37: =SUM(L38) -> 0.00
A38: 2 | B38: 1 | C38: 1 | D38: 1 | G38: Darbo užmokestis | H38: 4 | I38: =SUM(I39+I41) -> 0.00 | J38: =SUM(J39) -> 0.00 | K38: 0.00 | L38: 0.00
A39: 2 | B39: 1 | C39: 1 | D39: 1 | E39: 1 | G39: Darbo užmokestis pinigais | H39: 5 | I39: =SUM(I40) -> 0.00 | J39: 0.00 | K39: 0.00 | L39: 0.00
A40: 2 | B40: 1 | C40: 1 | D40: 1 | E40: 1 | F40: 1 | G40: Darbo užmokestis pinigais | H40: 6 | I40: 0.00 | J40: 0.00 | K40: 0.00 | L40: 0.00
A41: 2 | B41: 1 | C41: 1 | D41: 1 | E41: 2 | G41: Pajamos natūra | H41: 7 | I41: =I42 -> 0.00 | J41: =J42 -> 0.00 | K41: =K42 -> 0.00 | L41: =L42 -> 0.00
A42: 2 | B42: 1 | C42: 1 | D42: 1 | E42: 2 | F42: 1 | G42: Pajamos natūra | H42: 8 | I42: 0.00 | J42: 0.00 | K42: 0.00 | L42: 0.00
A43: 2 | B43: 1 | C43: 2 | G43: Socialinio draudimo įmokos | H43: 9 | I43: =I44 -> 0.00 | J43: 0.00 | K43: 0.00 | L43: 0.00
A44: 2 | B44: 1 | C44: 2 | D44: 1 | G44: Socialinio draudimo įmokos | H44: 10 | I44: 0.00 | J44: 0.00 | K44: 0.00 | L44: 0.00
A45: 2 | B45: 1 | C45: 2 | D45: 1 | E45: 1 | G45: Socialinio draudimo įmokos | H45: 11 | I45: 0.00 | J45: 0.00 | K45: 0.00 | L45: 0.00
A46: 2 | B46: 1 | C46: 2 | D46: 1 | E46: 1 | F46: 1 | G46: Socialinio draudimo įmokos | H46: 12 | I46: 0.00 | J46: 0.00 | K46: 0.00 | L46: 0.00
A47: 2 | B47: 2 | G47: Prekių ir paslaugų įsigijimo išlaidos | H47: 13 | I47: =I48 -> 3000.00 | J47: 2500.00 | K47: 150.00 | L47: 150.00
A48: 2 | B48: 2 | C48: 1 | G48: Prekių ir paslaugų įsigijimo išlaidos | H48: 14 | I48: 3000.00 | J48: 2500.00 | K48: 150.00 | L48: 150.00
A49: 2 | B49: 2 | C49: 1 | D49: 1 | G49: Prekių ir paslaugų įsigijimo išlaidos | H49: 15 | I49: 3000.00 | J49: 2500.00 | K49: 150.00 | L49: 150.00
A50: 2 | B50: 2 | C50: 1 | D50: 1 | E50: 1 | G50: Prekių ir paslaugų įsigijimo išlaidos | H50: 16 | I50: =SUM(I51:I66) -> 3000.00 | J50: =SUM(J51:J66) -> 2500.00 | K50: =SUM(K51:K66) -> 150.00 | L50: =SUM(L51:L66) -> 150.00
A51: 2 | B51: 2 | C51: 1 | D51: 1 | E51: 1 | F51: 1 | G51: Mitybos išlaidos | H51: 17 | I51: 0.00 | J51: 0.00 | K51: 0.00 | L51: 0.00
A52: 2 | B52: 2 | C52: 1 | D52: 1 | E52: 1 | F52: 2 | G52: Medikamentų ir medicininių prekių bei paslaugų įsigijimo išlaidos | H52: 18 | I52: 0.00 | J52: 0.00 | K52: 0.00 | L52: 0.00
A53: 2 | B53: 2 | C53: 1 | D53: 1 | E53: 1 | F53: 5 | G53: Ryšių įrangos ir ryšių paslaugų įsigijimo išlaidos | H53: 19 | I53: 0.00 | J53: 0.00 | K53: 0.00 | L53: 0.00
A54: 2 | B54: 2 | C54: 1 | D54: 1 | E54: 1 | F54: 6 | G54: Transporto išlaikymo ir transporto paslaugų įsigijimo išlaidos | H54: 20 | I54: 0.00 | J54: 0.00 | K54: 0.00 | L54: 0.00
A55: 2 | B55: 2 | C55: 1 | D55: 1 | E55: 1 | F55: 7 | G55: Aprangos ir patalynės įsigijimo bei priežiūros išlaidos | H55: 21 | I55: 0.00 | J55: 0.00 | K55: 0.00 | L55: 0.00
A56: 2 | B56: 2 | C56: 1 | D56: 1 | E56: 1 | F56: 11 | G56: Komandiruočių išlaidos | H56: 22 | I56: 0.00 | J56: 0.00 | K56: 0.00 | L56: 0.00
A57: 2 | B57: 2 | C57: 1 | D57: 1 | E57: 1 | F57: 12 | G57: Gyvenamųjų vietovių viešojo ūkio išlaidos | H57: 23 | I57: 0.00 | J57: 0.00 | K57: 0.00 | L57: 0.00
A58: 2 | B58: 2 | C58: 1 | D58: 1 | E58: 1 | F58: 14 | G58: Materialiojo ir nematerialiojo turto nuomos išlaidos | H58: 24 | I58: 0.00 | J58: 0.00 | K58: 0.00 | L58: 0.00
A59: 2 | B59: 2 | C59: 1 | D59: 1 | E59: 1 | F59: 15 | G59: Materialiojo turto paprastojo remonto prekių ir paslaugų įsigijimo išlaidos | H59: 25 | I59: 0.00 | J59: 0.00 | K59: 0.00 | L59: 0.00
A60: 2 | B60: 2 | C60: 1 | D60: 1 | E60: 1 | F60: 16 | G60: Kvalifikacijos kėlimo išlaidos | H60: 26 | I60: 0.00 | J60: 0.00 | K60: 0.00 | L60: 0.00
A61: 2 | B61: 2 | C61: 1 | D61: 1 | E61: 1 | F61: 17 | G61: Ekspertų ir konsultantų paslaugų įsigijimo išlaidos | H61: 27 | I61: 0.00 | J61: 0.00 | K61: 0.00 | L61: 0.00
A62: 2 | B62: 2 | C62: 1 | D62: 1 | E62: 1 | F62: 20 | G62: Komunalinių paslaugų įsigijimo išlaidos | H62: 28 | I62: 0.00 | J62: 0.00 | K62: 0.00 | L62: 0.00
A63: 2 | B63: 2 | C63: 1 | D63: 1 | E63: 1 | F63: 21 | G63: Informacinių technologijų prekių ir paslaugų įsigijimo išlaidos | H63: 29 | I63: 2000.00 | J63: 2000.00 | K63: 150.00 | L63: 150.00
A64: 2 | B64: 2 | C64: 1 | D64: 1 | E64: 1 | F64: 22 | G64: Reprezentacinės išlaidos | H64: 30 | I64: 0.00 | J64: 0.00 | K64: 0.00 | L64: 0.00
A65: 2 | B65: 2 | C65: 1 | D65: 1 | E65: 1 | F65: 23 | G65: Viešinimo išlaidos | H65: 31 | I65: 0.00 | J65: 0.00 | K65: 0.00 | L65: 0.00
A66: 2 | B66: 2 | C66: 1 | D66: 1 | E66: 1 | F66: 30 | G66: Kitų prekių ir paslaugų įsigijimo išlaidos | H66: 32 | I66: 1000.00 | J66: 500.00 | K66: 0.00 | L66: 0.00
A67: 2 | B67: 3 | G67: Palūkanos | H67: 33 | I67: =I68 -> 0.00 | J67: =J68 -> 0.00 | K67: =K68 -> 0.00 | L67: =L68 -> 0.00
A68: 2 | B68: 3 | C68: 1 | G68: Palūkanos | H68: 34 | I68: =SUM(I69+I74+I79) -> 0.00 | J68: =SUM(J69+J74+J79) -> 0.00 | K68: =SUM(K69+K74+K79) -> 0.00 | L68: =SUM(L69+L74+L79) -> 0.00
A69: 2 | B69: 3 | C69: 1 | D69: 1 | G69: Palūkanos nerezidentams | H69: 35 | I69: =I70 -> 0.00 | J69: =J70 -> 0.00 | K69: =K70 -> 0.00 | L69: =L70 -> 0.00
A70: 2 | B70: 3 | C70: 1 | D70: 1 | E70: 1 | G70: Palūkanos nerezidentams | H70: 36 | I70: =SUM(I71:I73) -> 0.00 | J70: =SUM(J71:J73) -> 0.00 | K70: =SUM(K71:K73) -> 0.00 | L70: =SUM(L71:L73) -> 0.00
A71: 2 | B71: 3 | C71: 1 | D71: 1 | E71: 1 | F71: 1 | G71: Asignavimų valdytojų sumokėtos palūkanos | H71: 37 | I71: 0.00 | J71: 0.00 | K71: 0.00 | L71: 0.00
A72: 2 | B72: 3 | C72: 1 | D72: 1 | E72: 1 | F72: 2 | G72: Finansų ministerijos sumokėtos palūkanos | H72: 38 | I72: 0.00 | J72: 0.00 | K72: 0.00 | L72: 0.00
A73: 2 | B73: 3 | C73: 1 | D73: 1 | E73: 1 | F73: 3 | G73: Savivaldybių sumokėtos palūkanos | H73: 39 | I73: 0.00 | J73: 0.00 | K73: 0.00 | L73: 0.00
A74: 2 | B74: 3 | C74: 1 | D74: 2 | G74: Palūkanos rezidentams, kitiems nei valdžios sektorius (tik už tiesioginę skolą) | H74: 40 | I74: =I75 -> 0.00 | J74: =J75 -> 0.00 | K74: =K75 -> 0.00 | L74: =L75 -> 0.00
A75: 2 | B75: 3 | C75: 1 | D75: 2 | E75: 1 | G75: Palūkanos rezidentams, kitiems nei valdžios sektorius (tik už tiesioginę skolą) | H75: 41 | I75: =SUM(I76:I78) -> 0.00 | J75: =SUM(J76:J78) -> 0.00 | K75: =SUM(K76:K78) -> 0.00 | L75: =SUM(L76:L78) -> 0.00
A76: 2 | B76: 3 | C76: 1 | D76: 2 | E76: 1 | F76: 1 | G76: Asignavimų valdytojų sumokėtos palūkanos | H76: 42 | I76: 0.00 | J76: 0.00 | K76: 0.00 | L76: 0.00
A77: 2 | B77: 3 | C77: 1 | D77: 2 | E77: 1 | F77: 2 | G77: Finansų ministerijos sumokėtos palūkanos | H77: 43 | I77: 0.00 | J77: 0.00 | K77: 0.00 | L77: 0.00
A78: 2 | B78: 3 | C78: 1 | D78: 2 | E78: 1 | F78: 3 | G78: Savivaldybių sumokėtos palūkanos | H78: 44 | I78: 0.00 | J78: 0.00 | K78: 0.00 | L78: 0.00
A79: 2 | B79: 3 | C79: 1 | D79: 3 | G79: Palūkanos kitiems valdžios sektoriaus subjektams | H79: 45 | I79: =I80 -> 0.00 | J79: =J80 -> 0.00 | K79: =K80 -> 0.00 | L79: =L80 -> 0.00
A80: 2 | B80: 3 | C80: 1 | D80: 3 | E80: 1 | G80: Palūkanos kitiems valdžios sektoriaus subjektams | H80: 46 | I80: =SUM(I81:I83) -> 0.00 | J80: =SUM(J81:J83) -> 0.00 | K80: =SUM(K81:K83) -> 0.00 | L80: =SUM(L81:L83) -> 0.00
A81: 2 | B81: 3 | C81: 1 | D81: 3 | E81: 1 | F81: 1 | G81: Palūkanos valstybės biudžetui | H81: 47 | I81: 0.00 | J81: 0.00 | K81: 0.00 | L81: 0.00
A82: 2 | B82: 3 | C82: 1 | D82: 3 | E82: 1 | F82: 2 | G82: Palūkanos savivaldybių biudžetams | H82: 48 | I82: 0.00 | J82: 0.00 | K82: 0.00 | L82: 0.00
A83: 2 | B83: 3 | C83: 1 | D83: 3 | E83: 1 | F83: 3 | G83: Palūkanos nebiudžetiniams fondams | H83: 49 | I83: 0.00 | J83: 0.00 | K83: 0.00 | L83: 0.00
A84: 2 | B84: 3 | C84: 2 | G84: Žemės nuoma | H84: 50 | I84: =I85 -> 0.00 | J84: 0.00 | K84: 0.00 | L84: 0.00
A85: 2 | B85: 3 | C85: 2 | D85: 1 | G85: Žemės nuoma | H85: 51 | I85: 0.00 | J85: 0.00 | K85: 0.00 | L85: 0.00
A86: 2 | B86: 3 | C86: 2 | D86: 1 | E86: 1 | G86: Žemės nuoma | H86: 52 | I86: =SUM(I87) -> 0.00 | J86: =SUM(J87) -> 0.00 | K86: =SUM(K87) -> 0.00 | L86: =SUM(L87) -> 0.00
A87: 2 | B87: 3 | C87: 2 | D87: 1 | E87: 1 | F87: 1 | G87: Žemės nuoma | H87: 53 | I87: 0.00 | J87: 0.00 | K87: 0.00 | L87: 0.00
A88: 2 | B88: 4 | G88: Subsidijos | H88: 54 | I88: =I89 -> 0.00 | J88: 0.00 | K88: 0.00 | L88: 0.00
A89: 2 | B89: 4 | C89: 1 | G89: Subsidijos iš biudžeto lėšų | H89: 55 | I89: 0.00 | J89: 0.00 | K89: 0.00 | L89: 0.00
A90: 2 | B90: 4 | C90: 1 | D90: 1 | G90: Subsidijos iš biudžeto lėšų | H90: 56 | I90: 0.00 | J90: 0.00 | K90: 0.00 | L90: 0.00
A91: 2 | B91: 4 | C91: 1 | D91: 1 | E91: 1 | G91: Subsidijos iš biudžeto lėšų | H91: 57 | I91: =SUM(I92:I94) -> 0.00 | J91: =SUM(J92:J94) -> 0.00 | K91: =SUM(K92:K94) -> 0.00 | L91: =SUM(L92:L94) -> 0.00
A92: 2 | B92: 4 | C92: 1 | D92: 1 | E92: 1 | F92: 1 | G92: Subsidijos importui | H92: 58 | I92: 0.00 | J92: 0.00 | K92: 0.00 | L92: 0.00
A93: 2 | B93: 4 | C93: 1 | D93: 1 | E93: 1 | F93: 2 | G93: Subsidijos gaminiams | H93: 59 | I93: 0.00 | J93: 0.00 | K93: 0.00 | L93: 0.00
A94: 2 | B94: 4 | C94: 1 | D94: 1 | E94: 1 | F94: 3 | G94: Subsidijos gamybai | H94: 60 | I94: 0.00 | J94: 0.00 | K94: 0.00 | L94: 0.00
A95: 2 | B95: 5 | G95: Dotacijos | H95: 61 | I95: =SUM(I96+I101+I106) -> 0.00 | J95: =SUM(J96+J101+J106) -> 0.00 | K95: =SUM(K96+K101+K106) -> 0.00 | L95: =SUM(L96+L101+L106) -> 0.00
A96: 2 | B96: 5 | C96: 1 | G96: Dotacijos užsienio valstybėms | H96: 62 | I96: =I97 -> 0.00 | J96: 0.00 | K96: 0.00 | L96: 0.00
A97: 2 | B97: 5 | C97: 1 | D97: 1 | G97: Dotacijos užsienio valstybėms | H97: 63 | I97: 0.00 | J97: 0.00 | K97: 0.00 | L97: 0.00
A98: 2 | B98: 5 | C98: 1 | D98: 1 | E98: 1 | G98: Dotacijos užsienio valstybėms | H98: 64 | I98: =SUM(I99:I100) -> 0.00 | J98: =SUM(J99:J100) -> 0.00 | K98: =SUM(K99:K100) -> 0.00 | L98: =SUM(L99:L100) -> 0.00
A99: 2 | B99: 5 | C99: 1 | D99: 1 | E99: 1 | F99: 1 | G99: Dotacijos užsienio valstybėms einamiesiems tikslams | H99: 65 | I99: 0.00 | J99: 0.00 | K99: 0.00 | L99: 0.00
A100: 2 | B100: 5 | C100: 1 | D100: 1 | E100: 1 | F100: 2 | G100: Dotacijos užsienio valstybėms turtui įsigyti | H100: 66 | I100: 0.00 | J100: 0.00 | K100: 0.00 | L100: 0.00
A101: 2 | B101: 5 | C101: 2 | G101: Dotacijos tarptautinėms organizacijoms | H101: 67 | I101: =I102 -> 0.00 | J101: 0.00 | K101: 0.00 | L101: 0.00
A102: 2 | B102: 5 | C102: 2 | D102: 1 | G102: Dotacijos tarptautinėms organizacijoms | H102: 68 | I102: 0.00 | J102: 0.00 | K102: 0.00 | L102: 0.00
A103: 2 | B103: 5 | C103: 2 | D103: 1 | E103: 1 | G103: Dotacijos tarptautinėms organizacijoms | H103: 69 | I103: =SUM(I104:I105) -> 0.00 | J103: =SUM(J104:J105) -> 0.00 | K103: =SUM(K104:K105) -> 0.00 | L103: =SUM(L104:L105) -> 0.00
A104: 2 | B104: 5 | C104: 2 | D104: 1 | E104: 1 | F104: 1 | G104: Dotacijos tarptautinėms organizacijoms einamiesiems tikslams | H104: 70 | I104: 0.00 | J104: 0.00 | K104: 0.00 | L104: 0.00
A105: 2 | B105: 5 | C105: 2 | D105: 1 | E105: 1 | F105: 2 | G105: Dotacijos tarptautinėms organizacijoms turtui įsigyti | H105: 71 | I105: 0.00 | J105: 0.00 | K105: 0.00 | L105: 0.00
A106: 2 | B106: 5 | C106: 3 | G106: Dotacijos kitiems valdžios sektoriaus subjektams | H106: 72 | I106: =I107+I111 -> 0.00 | J106: =J107+J111 -> 0.00 | K106: =K107+K111 -> 0.00 | L106: =L107+L111 -> 0.00
A107: 2 | B107: 5 | C107: 3 | D107: 1 | G107: Dotacijos kitiems valdžios sektoriaus subjektams einamiesiems tikslams | H107: 73 | I107: =I108 -> 0.00 | J107: =J108 -> 0.00 | K107: =K108 -> 0.00 | L107: =L108 -> 0.00
A108: 2 | B108: 5 | C108: 3 | D108: 1 | E108: 1 | G108: Dotacijos kitiems valdžios sektoriaus subjektams einamiesiems tikslams | H108: 74 | I108: =SUM(I109:I110) -> 0.00 | J108: =SUM(J109:J110) -> 0.00 | K108: =SUM(K109:K110) -> 0.00 | L108: =SUM(L109:L110) -> 0.00
A109: 2 | B109: 5 | C109: 3 | D109: 1 | E109: 1 | F109: 1 | G109: Dotacijos kitiems valdžios sektoriaus subjektams einamiesiems tikslams | H109: 75 | I109: 0.00 | J109: 0.00 | K109: 0.00 | L109: 0.00
A110: 2 | B110: 5 | C110: 3 | D110: 1 | E110: 1 | F110: 2 | G110: Dotacijos savivaldybėms einamiesiems tikslams | H110: 76 | I110: 0.00 | J110: 0.00 | K110: 0.00 | L110: 0.00
A111: 2 | B111: 5 | C111: 3 | D111: 2 | G111: Dotacijos kitiems valdžios sektoriaus subjektams turtui įsigyti | H111: 77 | I111: =I112 -> 0.00 | J111: =J112 -> 0.00 | K111: =K112 -> 0.00 | L111: =L112 -> 0.00
A112: 2 | B112: 5 | C112: 3 | D112: 2 | E112: 1 | G112: Dotacijos kitiems valdžios sektoriaus subjektams turtui įsigyti | H112: 78 | I112: =SUM(I113:I114) -> 0.00 | J112: =SUM(J113:J114) -> 0.00 | K112: =SUM(K113:K114) -> 0.00 | L112: =SUM(L113:L114) -> 0.00
A113: 2 | B113: 5 | C113: 3 | D113: 2 | E113: 1 | F113: 1 | G113: Dotacijos kitiems valdžios sektoriaus subjektams turtui įsigyti | H113: 79 | I113: 0.00 | J113: 0.00 | K113: 0.00 | L113: 0.00
A114: 2 | B114: 5 | C114: 3 | D114: 2 | E114: 1 | F114: 2 | G114: Dotacijos savivaldybėms turtui įsigyti | H114: 80 | I114: 0.00 | J114: 0.00 | K114: 0.00 | L114: 0.00
A115: 2 | B115: 6 | G115: Įmokos į Europos Sąjungos biudžetą | H115: 81 | I115: =SUM(I116+I121+I125+I129+I133+I137) -> 0.00 | J115: =SUM(J116+J121+J125+J129+J133+J137) -> 0.00 | K115: =SUM(K116+K121+K125+K129+K133+K137) -> 0.00 | L115: =SUM(L116+L121+L125+L129+L133+L137) -> 0.00
A116: 2 | B116: 6 | C116: 1 | G116: Tradiciniai nuosavi ištekliai | H116: 82 | I116: =I117 -> 0.00 | J116: 0.00 | K116: 0.00 | L116: 0.00
A117: 2 | B117: 6 | C117: 1 | D117: 1 | G117: Tradiciniai nuosavi ištekliai | H117: 83 | I117: 0.00 | J117: 0.00 | K117: 0.00 | L117: 0.00
A118: 2 | B118: 6 | C118: 1 | D118: 1 | E118: 1 | G118: Tradiciniai nuosavi ištekliai | H118: 84 | I118: =SUM(I119:I120) -> 0.00 | J118: =SUM(J119:J120) -> 0.00 | K118: =SUM(K119:K120) -> 0.00 | L118: =SUM(L119:L120) -> 0.00
A119: 2 | B119: 6 | C119: 1 | D119: 1 | E119: 1 | F119: 1 | G119: Muitai | H119: 85 | I119: 0.00 | J119: 0.00 | K119: 0.00 | L119: 0.00
A120: 2 | B120: 6 | C120: 1 | D120: 1 | E120: 1 | F120: 2 | G120: Cukraus sektoriaus mokesčiai | H120: 86 | I120: 0.00 | J120: 0.00 | K120: 0.00 | L120: 0.00
A121: 2 | B121: 6 | C121: 2 | G121: Pridėtinės vertės mokesčio nuosavi ištekliai | H121: 87 | I121: =I122 -> 0.00 | J121: 0.00 | K121: 0.00 | L121: 0.00
A122: 2 | B122: 6 | C122: 2 | D122: 1 | G122: Pridėtinės vertės mokesčio nuosavi ištekliai | H122: 88 | I122: 0.00 | J122: 0.00 | K122: 0.00 | L122: 0.00
A123: 2 | B123: 6 | C123: 2 | D123: 1 | E123: 1 | G123: Pridėtinės vertės mokesčio nuosavi ištekliai | H123: 89 | I123: 0.00 | J123: 0.00 | K123: 0.00 | L123: 0.00
A124: 2 | B124: 6 | C124: 2 | D124: 1 | E124: 1 | F124: 1 | G124: Pridėtinės vertės mokesčio nuosavi ištekliai | H124: 90 | I124: 0.00 | J124: 0.00 | K124: 0.00 | L124: 0.00
A125: 2 | B125: 6 | C125: 3 | G125: Bendrųjų nacionalinių pajamų nuosavi ištekliai | H125: 91 | I125: =I126 -> 0.00 | J125: 0.00 | K125: 0.00 | L125: 0.00
A126: 2 | B126: 6 | C126: 3 | D126: 1 | G126: Bendrųjų nacionalinių pajamų nuosavi ištekliai | H126: 92 | I126: 0.00 | J126: 0.00 | K126: 0.00 | L126: 0.00
A127: 2 | B127: 6 | C127: 3 | D127: 1 | E127: 1 | G127: Bendrųjų nacionalinių pajamų nuosavi ištekliai | H127: 93 | I127: 0.00 | J127: 0.00 | K127: 0.00 | L127: 0.00
A128: 2 | B128: 6 | C128: 3 | D128: 1 | E128: 1 | F128: 1 | G128: Bendrųjų nacionalinių pajamų nuosavi ištekliai | H128: 94 | I128: 0.00 | J128: 0.00 | K128: 0.00 | L128: 0.00
A129: 2 | B129: 6 | C129: 4 | G129: Biudžeto disbalansų korekcija Jungtinės Karalystės naudai | H129: 95 | I129: =I130 -> 0.00 | J129: 0.00 | K129: 0.00 | L129: 0.00
A130: 2 | B130: 6 | C130: 4 | D130: 1 | G130: Biudžeto disbalansų korekcija Jungtinės Karalystės naudai | H130: 96 | I130: 0.00 | J130: 0.00 | K130: 0.00 | L130: 0.00
A131: 2 | B131: 6 | C131: 4 | D131: 1 | E131: 1 | G131: Biudžeto disbalansų korekcija Jungtinės Karalystės naudai | H131: 97 | I131: 0.00 | J131: 0.00 | K131: 0.00 | L131: 0.00
A132: 2 | B132: 6 | C132: 4 | D132: 1 | E132: 1 | F132: 1 | G132: Biudžeto disbalansų korekcija Jungtinės Karalystės naudai | H132: 98 | I132: 0.00 | J132: 0.00 | K132: 0.00 | L132: 0.00
A133: 2 | B133: 6 | C133: 5 | G133: Su nuosavais ištekliais susijusios baudos, delspinigiai ir neigiamos palūkanos | H133: 99 | I133: =I134 -> 0.00 | J133: 0.00 | K133: 0.00 | L133: 0.00
A134: 2 | B134: 6 | C134: 5 | D134: 1 | G134: Su nuosavais ištekliais susijusios baudos, delspinigiai ir neigiamos palūkanos | H134: 100 | I134: 0.00 | J134: 0.00 | K134: 0.00 | L134: 0.00
A135: 2 | B135: 6 | C135: 5 | D135: 1 | E135: 1 | G135: Su nuosavais ištekliais susijusios baudos, delspinigiai ir neigiamos palūkanos | H135: 101 | I135: 0.00 | J135: 0.00 | K135: 0.00 | L135: 0.00
A136: 2 | B136: 6 | C136: 5 | D136: 1 | E136: 1 | F136: 1 | G136: Su nuosavais ištekliais susijusios baudos, delspinigiai ir neigiamos palūkanos | H136: 102 | I136: 0.00 | J136: 0.00 | K136: 0.00 | L136: 0.00
A137: 2 | B137: 6 | C137: 6 | G137: Neperdirbto plastiko atliekų nuosavi ištekliai | H137: 103 | I137: =I138 -> 0.00 | J137: 0.00 | K137: 0.00 | L137: 0.00
A138: 2 | B138: 6 | C138: 6 | D138: 1 | G138: Neperdirbto plastiko atliekų nuosavi ištekliai | H138: 104 | I138: 0.00 | J138: 0.00 | K138: 0.00 | L138: 0.00
A139: 2 | B139: 6 | C139: 6 | D139: 1 | E139: 1 | G139: Neperdirbto plastiko atliekų nuosavi ištekliai | H139: 105 | I139: 0.00 | J139: 0.00 | K139: 0.00 | L139: 0.00
A140: 2 | B140: 6 | C140: 6 | D140: 1 | E140: 1 | F140: 1 | G140: Neperdirbto plastiko atliekų nuosavi ištekliai | H140: 106 | I140: 0.00 | J140: 0.00 | K140: 0.00 | L140: 0.00
A141: 2 | B141: 7 | G141: Socialinės išmokos (pašalpos) | H141: 107 | I141: =SUM(I142+I147+I155) -> 0.00 | J141: =SUM(J142+J147+J155) -> 0.00 | K141: =SUM(K142+K147+K155) -> 0.00 | L141: =SUM(L142+L147+L155) -> 0.00
A142: 2 | B142: 7 | C142: 1 | G142: Socialinio draudimo išmokos (pašalpos) | H142: 108 | I142: =I143 -> 0.00 | J142: 0.00 | K142: 0.00 | L142: 0.00
A143: 2 | B143: 7 | C143: 1 | D143: 1 | G143: Socialinio draudimo išmokos (pašalpos) | H143: 109 | I143: 0.00 | J143: 0.00 | K143: 0.00 | L143: 0.00
A144: 2 | B144: 7 | C144: 1 | D144: 1 | E144: 1 | G144: Socialinio draudimo išmokos (pašalpos) | H144: 110 | I144: =SUM(I145:I146) -> 0.00 | J144: =SUM(J145:J146) -> 0.00 | K144: =SUM(K145:K146) -> 0.00 | L144: =SUM(L145:L146) -> 0.00
A145: 2 | B145: 7 | C145: 1 | D145: 1 | E145: 1 | F145: 1 | G145: Socialinio draudimo išmokos pinigais | H145: 111 | I145: 0.00 | J145: 0.00 | K145: 0.00 | L145: 0.00
A146: 2 | B146: 7 | C146: 1 | D146: 1 | E146: 1 | F146: 2 | G146: Socialinio draudimo išmokos natūra | H146: 112 | I146: 0.00 | J146: 0.00 | K146: 0.00 | L146: 0.00
A147: 2 | B147: 7 | C147: 2 | G147: Socialinė parama (socialinės paramos pašalpos) ir rentos | H147: 113 | I147: =I148 -> 0.00 | J147: 0.00 | K147: 0.00 | L147: 0.00
A148: 2 | B148: 7 | C148: 2 | D148: 1 | G148: Socialinė parama (socialinės paramos pašalpos) | H148: 114 | I148: 0.00 | J148: 0.00 | K148: 0.00 | L148: 0.00
A149: 2 | B149: 7 | C149: 2 | D149: 1 | E149: 1 | G149: Socialinė parama (socialinės paramos pašalpos) | H149: 115 | I149: =SUM(I150:I151) -> 0.00 | J149: =SUM(J150:J151) -> 0.00 | K149: =SUM(K150:K151) -> 0.00 | L149: =SUM(L150:L151) -> 0.00
A150: 2 | B150: 7 | C150: 2 | D150: 1 | E150: 1 | F150: 1 | G150: Socialinė parama pinigais | H150: 116 | I150: 0.00 | J150: 0.00 | K150: 0.00 | L150: 0.00
A151: 2 | B151: 7 | C151: 2 | D151: 1 | E151: 1 | F151: 2 | G151: Socialinė parama natūra | H151: 117 | I151: 0.00 | J151: 0.00 | K151: 0.00 | L151: 0.00
A152: 2 | B152: 7 | C152: 2 | D152: 2 | G152: Rentos | H152: 118 | I152: =I153 -> 0.00 | J152: =J153 -> 0.00 | K152: =K153 -> 0.00 | L152: =L153 -> 0.00
A153: 2 | B153: 7 | C153: 2 | D153: 2 | E153: 1 | G153: Rentos | H153: 119 | I153: =SUM(I154) -> 0.00 | J153: =SUM(J154) -> 0.00 | K153: =SUM(K154) -> 0.00 | L153: =SUM(L154) -> 0.00
A154: 2 | B154: 7 | C154: 2 | D154: 2 | E154: 1 | F154: 1 | G154: Rentos | H154: 120 | I154: 0.00 | J154: 0.00 | K154: 0.00 | L154: 0.00
A155: 2 | B155: 7 | C155: 3 | G155: Darbdavių socialinė parama | H155: 121 | I155: =I156 -> 0.00 | J155: 0.00 | K155: 0.00 | L155: 0.00
A156: 2 | B156: 7 | C156: 3 | D156: 1 | G156: Darbdavių socialinė parama | H156: 122 | I156: 0.00 | J156: 0.00 | K156: 0.00 | L156: 0.00
A157: 2 | B157: 7 | C157: 3 | D157: 1 | E157: 1 | G157: Darbdavių socialinė parama | H157: 123 | I157: =SUM(I158:I159) -> 0.00 | J157: =SUM(J158:J159) -> 0.00 | K157: =SUM(K158:K159) -> 0.00 | L157: =SUM(L158:L159) -> 0.00
A158: 2 | B158: 7 | C158: 3 | D158: 1 | E158: 1 | F158: 1 | G158: Darbdavių socialinė parama pinigais | H158: 124 | I158: 0.00 | J158: 0.00 | K158: 0.00 | L158: 0.00
A159: 2 | B159: 7 | C159: 3 | D159: 1 | E159: 1 | F159: 2 | G159: Darbdavių socialinė parama natūra | H159: 125 | I159: 0.00 | J159: 0.00 | K159: 0.00 | L159: 0.00
A160: 2 | B160: 8 | G160: Kitos išlaidos | H160: 126 | I160: =I161 -> 0.00 | J160: =J161 -> 0.00 | K160: =K161 -> 0.00 | L160: =L161 -> 0.00
A161: 2 | B161: 8 | C161: 1 | G161: Kitos išlaidos | H161: 127 | I161: =I162+I167 -> 0.00 | J161: =J162+J167 -> 0.00 | K161: =K162+K167 -> 0.00 | L161: =L162+L167 -> 0.00
A162: 2 | B162: 8 | C162: 1 | D162: 1 | G162: Kitos išlaidos einamiesiems tikslams | H162: 128 | I162: =I163 -> 0.00 | J162: =J163 -> 0.00 | K162: =K163 -> 0.00 | L162: =L163 -> 0.00
A163: 2 | B163: 8 | C163: 1 | D163: 1 | E163: 1 | G163: Kitos išlaidos einamiesiems tikslams | H163: 129 | I163: =SUM(I164:I166) -> 0.00 | J163: =SUM(J164:J166) -> 0.00 | K163: =SUM(K164:K166) -> 0.00 | L163: =SUM(L164:L166) -> 0.00
A164: 2 | B164: 8 | C164: 1 | D164: 1 | E164: 1 | F164: 1 | G164: Stipendijoms | H164: 130 | I164: 0.00 | J164: 0.00 | K164: 0.00 | L164: 0.00
A165: 2 | B165: 8 | C165: 1 | D165: 1 | E165: 1 | F165: 2 | G165: Kitos išlaidos kitiems einamiesiems tikslams | H165: 131 | I165: 0.00 | J165: 0.00 | K165: 0.00 | L165: 0.00
A166: 2 | B166: 8 | C166: 1 | D166: 1 | E166: 1 | F166: 3 | G166: Valiutos kurso įtaka | H166: 132 | I166: 0.00 | J166: 0.00 | K166: 0.00 | L166: 0.00
A167: 2 | B167: 8 | C167: 1 | D167: 2 | G167: Kitos išlaidos turtui įsigyti | H167: 133 | I167: =I168 -> 0.00 | J167: 0.00 | K167: 0.00 | L167: 0.00
A168: 2 | B168: 8 | C168: 1 | D168: 2 | E168: 1 | G168: Kitos išlaidos turtui įsigyti | H168: 134 | I168: 0.00 | J168: 0.00 | K168: 0.00 | L168: 0.00
A169: 2 | B169: 8 | C169: 1 | D169: 2 | E169: 1 | F169: 1 | G169: Kitos išlaidos turtui įsigyti | H169: 135 | I169: 0.00 | J169: 0.00 | K169: 0.00 | L169: 0.00
A170: 2 | B170: 9 | G170: Pervedamos Europos Sąjungos, kitos tarptautinės finansinės paramos ir bendrojo finansavimo lėšos | H170: 136 | I170: =I171+I175 -> 0.00 | J170: =J171+J175 -> 0.00 | K170: =K171+K175 -> 0.00 | L170: =L171+L175 -> 0.00
A171: 2 | B171: 9 | C171: 1 | G171: Subsidijos iš Europos Sąjungos ir kitos tarptautinės finansinės paramos lėšų (ne valdžios sektoriui) | H171: 137 | I171: =I172 -> 0.00 | J171: 0.00 | K171: 0.00 | L171: 0.00
A172: 2 | B172: 9 | C172: 1 | D172: 1 | G172: Subsidijos iš Europos Sąjungos ir kitos tarptautinės finansinės paramos lėšų (ne valdžios sektoriui) | H172: 138 | I172: 0.00 | J172: 0.00 | K172: 0.00 | L172: 0.00
A173: 2 | B173: 9 | C173: 1 | D173: 1 | E173: 1 | G173: Subsidijos iš Europos Sąjungos ir kitos tarptautinės finansinės paramos lėšų (ne valdžios sektoriui) | H173: 139 | I173: 0.00 | J173: 0.00 | K173: 0.00 | L173: 0.00
A174: 2 | B174: 9 | C174: 1 | D174: 1 | E174: 1 | F174: 1 | G174: Subsidijos iš Europos Sąjungos ir kitos tarptautinės finansinės paramos lėšų (ne valdžios sektoriui) | H174: 140 | I174: 0.00 | J174: 0.00 | K174: 0.00 | L174: 0.00
A175: 2 | B175: 9 | C175: 2 | G175: Pervedamos Europos Sąjungos, kitos tarptautinės finansinės paramos ir bendrojo finansavimo lėšos | H175: 141 | I175: =SUM(I176+I181) -> 0.00 | J175: =SUM(J176+J181) -> 0.00 | K175: =SUM(K176+K181) -> 0.00 | L175: =SUM(L176+L181) -> 0.00
A176: 2 | B176: 9 | C176: 2 | D176: 1 | G176: Pervedamos Europos Sąjungos, kitos tarptautinės finansinės paramos ir bendrojo finansavimo lėšos einamiesiems tikslams | H176: 142 | I176: =I177 -> 0.00 | J176: =J177 -> 0.00 | K176: =K177 -> 0.00 | L176: =L177 -> 0.00
A177: 2 | B177: 9 | C177: 2 | D177: 1 | E177: 1 | G177: Pervedamos Europos Sąjungos, kitos tarptautinės finansinės paramos ir bendrojo finansavimo lėšos einamiesiems tikslams | H177: 143 | I177: =SUM(I178:I180) -> 0.00 | J177: =SUM(J178:J180) -> 0.00 | K177: =SUM(K178:K180) -> 0.00 | L177: =SUM(L178:L180) -> 0.00
A178: 2 | B178: 9 | C178: 2 | D178: 1 | E178: 1 | F178: 1 | G178: Pervedamos Europos Sąjungos, kitos tarptautinės finansinės paramos ir bendrojo finansavimo lėšos einamiesiems tikslams savivaldybėms | H178: 144 | I178: 0.00 | J178: 0.00 | K178: 0.00 | L178: 0.00
A179: 2 | B179: 9 | C179: 2 | D179: 1 | E179: 1 | F179: 2 | G179: Pervedamos Europos Sąjungos, kitos tarptautinės finansinės paramos ir bendrojo finansavimo lėšos einamiesiems tikslams kitiems valdžios sektoriaus subjektams | H179: 145 | I179: 0.00 | J179: 0.00 | K179: 0.00 | L179: 0.00
A180: 2 | B180: 9 | C180: 2 | D180: 1 | E180: 1 | F180: 3 | G180: Pervedamos Europos Sąjungos, kitos tarptautinės finansinės paramos ir bendrojo finansavimo lėšos einamiesiems tikslams ne valdžios sektoriui | H180: 146 | I180: 0.00 | J180: 0.00 | K180: 0.00 | L180: 0.00
A181: 2 | B181: 9 | C181: 2 | D181: 2 | G181: Pervedamos Europos Sąjungos, kitos tarptautinės finansinės paramos ir bendrojo finansavimo lėšos investicijoms | H181: 147 | I181: =I182 -> 0.00 | J181: =J182 -> 0.00 | K181: =K182 -> 0.00 | L181: =L182 -> 0.00
A182: 2 | B182: 9 | C182: 2 | D182: 2 | E182: 1 | G182: Pervedamos Europos Sąjungos, kitos tarptautinės finansinės paramos ir bendrojo finansavimo lėšos investicijoms | H182: 148 | I182: =SUM(I183:I185) -> 0.00 | J182: =SUM(J183:J185) -> 0.00 | K182: =SUM(K183:K185) -> 0.00 | L182: =SUM(L183:L185) -> 0.00
A183: 2 | B183: 9 | C183: 2 | D183: 2 | E183: 1 | F183: 1 | G183: Pervedamos Europos Sąjungos, kitos tarptautinės finansinės paramos ir bendrojo finansavimo lėšos investicijoms, skirtoms savivaldybėms | H183: 149 | I183: 0.00 | J183: 0.00 | K183: 0.00 | L183: 0.00
A184: 2 | B184: 9 | C184: 2 | D184: 2 | E184: 1 | F184: 2 | G184: Pervedamos Europos Sąjungos, kitos tarptautinės finansinės paramos ir bendrojo finansavimo lėšos investicijoms kitiems valdžios sektoriaus subjektams | H184: 150 | I184: 0.00 | J184: 0.00 | K184: 0.00 | L184: 0.00
A185: 2 | B185: 9 | C185: 2 | D185: 2 | E185: 1 | F185: 3 | G185: Pervedamos Europos Sąjungos, kitos tarptautinės finansinės paramos ir bendrojo finansavimo lėšos investicijoms ne valdžios sektoriui | H185: 151 | I185: 0.00 | J185: 0.00 | K185: 0.00 | L185: 0.00
A186: 3 | G186: MATERIALIOJO IR NEMATERIALIOJO TURTO ĮSIGIJIMO, FINANSINIO TURTO PADIDĖJIMO IR FINANSINIŲ ĮSIPAREIGOJIMŲ VYKDYMO IŠLAIDOS | H186: 152 | I186: =SUM(I187+I240+I305) -> 6400.00 | J186: =SUM(J187+J240+J305) -> 6400.00 | K186: =SUM(K187+K240+K305) -> 0.00 | L186: =SUM(L187+L240+L305) -> 0.00
A187: 3 | B187: 1 | G187: Materialiojo ir nematerialiojo turto įsigijimo išlaidos | H187: 153 | I187: =SUM(I188+I211+I218+I230+I234) -> 6400.00 | J187: =SUM(J188+J211+J218+J230+J234) -> 6400.00 | K187: =SUM(K188+K211+K218+K230+K234) -> 0.00 | L187: =SUM(L188+L211+L218+L230+L234) -> 0.00
A188: 3 | B188: 1 | C188: 1 | G188: Ilgalaikio materialiojo turto kūrimo ir įsigijimo išlaidos | H188: 154 | I188: =SUM(I189+I192+I197+I203+I208) -> 6400.00 | J188: =SUM(J189+J192+J197+J203+J208) -> 6400.00 | K188: =SUM(K189+K192+K197+K203+K208) -> 0.00 | L188: =SUM(L189+L192+L197+L203+L208) -> 0.00
A189: 3 | B189: 1 | C189: 1 | D189: 1 | G189: Žemės įsigijimo išlaidos | H189: 155 | I189: =I190 -> 0.00 | J189: 0.00 | K189: 0.00 | L189: 0.00
A190: 3 | B190: 1 | C190: 1 | D190: 1 | E190: 1 | G190: Žemės įsigijimo išlaidos | H190: 156 | I190: 0.00 | J190: 0.00 | K190: 0.00 | L190: 0.00
A191: 3 | B191: 1 | C191: 1 | D191: 1 | E191: 1 | F191: 1 | G191: Žemės įsigijimo išlaidos | H191: 157 | I191: 0.00 | J191: 0.00 | K191: 0.00 | L191: 0.00
A192: 3 | B192: 1 | C192: 1 | D192: 2 | G192: Pastatų ir statinių įsigijimo išlaidos | H192: 158 | I192: =I193 -> 0.00 | J192: =J193 -> 0.00 | K192: =K193 -> 0.00 | L192: =L193 -> 0.00
A193: 3 | B193: 1 | C193: 1 | D193: 2 | E193: 1 | G193: Pastatų ir statinių įsigijimo išlaidos | H193: 159 | I193: =SUM(I194:I196) -> 0.00 | J193: =SUM(J194:J196) -> 0.00 | K193: =SUM(K194:K196) -> 0.00 | L193: =SUM(L194:L196) -> 0.00
A194: 3 | B194: 1 | C194: 1 | D194: 2 | E194: 1 | F194: 1 | G194: Gyvenamųjų namų įsigijimo išlaidos | H194: 160 | I194: 0.00 | J194: 0.00 | K194: 0.00 | L194: 0.00
A195: 3 | B195: 1 | C195: 1 | D195: 2 | E195: 1 | F195: 2 | G195: Negyvenamųjų pastatų įsigijimo išlaidos | H195: 161 | I195: 0.00 | J195: 0.00 | K195: 0.00 | L195: 0.00
A196: 3 | B196: 1 | C196: 1 | D196: 2 | E196: 1 | F196: 3 | G196: Infrastruktūros ir kitų statinių įsigijimo išlaidos | H196: 162 | I196: 0.00 | J196: 0.00 | K196: 0.00 | L196: 0.00
A197: 3 | B197: 1 | C197: 1 | D197: 3 | G197: Mašinų ir įrenginių įsigijimo išlaidos | H197: 163 | I197: =I198 -> 6400.00 | J197: =J198 -> 6400.00 | K197: =K198 -> 0.00 | L197: =L198 -> 0.00
A198: 3 | B198: 1 | C198: 1 | D198: 3 | E198: 1 | G198: Mašinų ir įrenginių įsigijimo išlaidos | H198: 164 | I198: =SUM(I199:I202) -> 6400.00 | J198: =SUM(J199:J202) -> 6400.00 | K198: =SUM(K199:K202) -> 0.00 | L198: =SUM(L199:L202) -> 0.00
A199: 3 | B199: 1 | C199: 1 | D199: 3 | E199: 1 | F199: 1 | G199: Transporto priemonių įsigijimo išlaidos | H199: 165 | I199: 0.00 | J199: 0.00 | K199: 0.00 | L199: 0.00
A200: 3 | B200: 1 | C200: 1 | D200: 3 | E200: 1 | F200: 2 | G200: Kitų mašinų ir įrenginių įsigijimo išlaidos | H200: 166 | I200: 0.00 | J200: 0.00 | K200: 0.00 | L200: 0.00
A201: 3 | B201: 1 | C201: 1 | D201: 3 | E201: 1 | F201: 3 | G201: Ginklų ir karinės įrangos įsigijimo išlaidos | H201: 167 | I201: 0.00 | J201: 0.00 | K201: 0.00 | L201: 0.00
A202: 3 | B202: 1 | C202: 1 | D202: 3 | E202: 1 | F202: 4 | G202: Kompiuterinės techninės ir elektroninių ryšių įrangos įsigijimo išlaidos | H202: 168 | I202: 6400.00 | J202: 6400.00 | K202: 0.00 | L202: 0.00
A203: 3 | B203: 1 | C203: 1 | D203: 4 | G203: Kultūros ir kitų vertybių įsigijimo išlaidos | H203: 169 | I203: =I204 -> 0.00 | J203: =J204 -> 0.00 | K203: =K204 -> 0.00 | L203: =L204 -> 0.00
A204: 3 | B204: 1 | C204: 1 | D204: 4 | E204: 1 | G204: Kultūros ir kitų vertybių įsigijimo išlaidos | H204: 170 | I204: =SUM(I205:I207) -> 0.00 | J204: =SUM(J205:J207) -> 0.00 | K204: =SUM(K205:K207) -> 0.00 | L204: =SUM(L205:L207) -> 0.00
A205: 3 | B205: 1 | C205: 1 | D205: 4 | E205: 1 | F205: 1 | G205: Muziejinių vertybių įsigijimo išlaidos | H205: 171 | I205: 0.00 | J205: 0.00 | K205: 0.00 | L205: 0.00
A206: 3 | B206: 1 | C206: 1 | D206: 4 | E206: 1 | F206: 2 | G206: Antikvarinių ir kitų meno kūrinių įsigijimo išlaidos | H206: 172 | I206: 0.00 | J206: 0.00 | K206: 0.00 | L206: 0.00
A207: 3 | B207: 1 | C207: 1 | D207: 4 | E207: 1 | F207: 3 | G207: Kitų vertybių įsigijimo išlaidos | H207: 173 | I207: 0.00 | J207: 0.00 | K207: 0.00 | L207: 0.00
A208: 3 | B208: 1 | C208: 1 | D208: 5 | G208: Kito ilgalaikio materialiojo turto įsigijimo išlaidos | H208: 174 | I208: =I209 -> 0.00 | J208: 0.00 | K208: 0.00 | L208: 0.00
A209: 3 | B209: 1 | C209: 1 | D209: 5 | E209: 1 | G209: Kito ilgalaikio materialiojo turto įsigijimo išlaidos | H209: 175 | I209: 0.00 | J209: 0.00 | K209: 0.00 | L209: 0.00
... 166 more rows

Sheet Forma Nr.2 S
J1: Biudžeto vykdymo ataskaitų rinkinių rengimo taisyklių
J2: 1 priedas
A8: (Biudžeto išlaidų sąmatos vykdymo 2025 m. birželio mėn. 30 d. ketvirčio, pusmečio, metų ataskaitos forma, Nr.2)
A10: Vaikų ir jaunimo laisvalaikio centras, 195174984
A11: (įstaigos pavadinimas, kodas Juridinių asmenų registre, adresas)
G13: BIUDŽETO IŠLAIDŲ SĄMATOS VYKDYMO
A14: 2025 M. BIRŽELIO MĖN. 30 D.
G15: 2 ketvirtis
G16: (I ketvirčio, pusmečio, 9 mėnesių, metinė)
B17: ATASKAITA
G19: 2025.07.10 Nr.________________
G20: (data)
E22: Žinių visuomenės plėtros programa
A23: (programos pavadinimas)
L24: Kodas
J25: Ministerijos / Savivaldybės
K26: Departamento
A27: Neformalusis vaikų švietimas | K27: Įstaigos | L27: 195174984
A28: 1.1.2.5. Neformaliojo ugdymo programų įgyvendinimas ir tinkamos aplinkos užtikrinimas Gargždų vaikų ir jaunimo laisvalaikio centre | J28: Programos | K28: 1
G29: Finansavimo šaltinio | H29: S
G30: Valstybės funkcijos | I30: 09 | J30: 05 | K30: 01 | L30: 01
A31: Pajamos už paslaugas ir nuomą | L31: (eurais, ct)
A32: Išlaidų ekonominės klasifikacijos kodas | G32: Išlaidų pavadinimas | H32: Eil. Nr. | I32: Asignavimų planas, įskaitant patikslinimus | K32: Gauti asignavimai kartu su įskaitytu praėjusių metų lėšų likučiu | L32: Panaudoti asignavimai
I33: metams | J33: ataskaitiniam laikotarpiui
A34: 1 | G34: 2 | H34: 3 | I34: 4 | J34: 5 | K34: 6 | L34: 7
A35: 2 | G35: IŠLAIDOS | H35: 1 | I35: =SUM(I36+I47+I67+I88+I95+I115+I141+I160+I170) -> 26800.00 | J35: =SUM(J36+J47+J67+J88+J95+J115+J141+J160+J170) -> 15100.00 | K35: =SUM(K36+K47+K67+K88+K95+K115+K141+K160+K170) -> 11756.60 | L35: =SUM(L36+L47+L67+L88+L95+L115+L141+L160+L170) -> 11756.60
A36: 2 | B36: 1 | G36: Darbo užmokestis ir socialinis draudimas | H36: 2 | I36: =SUM(I37+I43) -> 13000.00 | J36: =SUM(J37+J43) -> 6300.00 | K36: =SUM(K37+K43) -> 6300.00 | L36: =SUM(L37+L43) -> 6300.00
A37: 2 | B37: 1 | C37: 1 | G37: Darbo užmokestis | H37: 3 | I37: =SUM(I38) -> 12700.00 | J37: =SUM(J38) -> 6200.00 | K37: =SUM(K38) -> 6200.00 | L37: =SUM(L38) -> 6200.00
A38: 2 | B38: 1 | C38: 1 | D38: 1 | G38: Darbo užmokestis | H38: 4 | I38: =SUM(I39+I41) -> 12700.00 | J38: =SUM(J39) -> 6200.00 | K38: 6200.00 | L38: 6200.00
A39: 2 | B39: 1 | C39: 1 | D39: 1 | E39: 1 | G39: Darbo užmokestis pinigais | H39: 5 | I39: =SUM(I40) -> 12700.00 | J39: 6200.00 | K39: 6200.00 | L39: 6200.00
A40: 2 | B40: 1 | C40: 1 | D40: 1 | E40: 1 | F40: 1 | G40: Darbo užmokestis pinigais | H40: 6 | I40: 12700.00 | J40: 6200.00 | K40: 6200.00 | L40: 6200.00
A41: 2 | B41: 1 | C41: 1 | D41: 1 | E41: 2 | G41: Pajamos natūra | H41: 7 | I41: =I42 -> 0.00 | J41: =J42 -> 0.00 | K41: =K42 -> 0.00 | L41: =L42 -> 0.00
A42: 2 | B42: 1 | C42: 1 | D42: 1 | E42: 2 | F42: 1 | G42: Pajamos natūra | H42: 8 | I42: 0.00 | J42: 0.00 | K42: 0.00 | L42: 0.00
A43: 2 | B43: 1 | C43: 2 | G43: Socialinio draudimo įmokos | H43: 9 | I43: =I44 -> 300.00 | J43: 100.00 | K43: 100.00 | L43: 100.00
A44: 2 | B44: 1 | C44: 2 | D44: 1 | G44: Socialinio draudimo įmokos | H44: 10 | I44: 300.00 | J44: 100.00 | K44: 100.00 | L44: 100.00
A45: 2 | B45: 1 | C45: 2 | D45: 1 | E45: 1 | G45: Socialinio draudimo įmokos | H45: 11 | I45: 300.00 | J45: 100.00 | K45: 100.00 | L45: 100.00
A46: 2 | B46: 1 | C46: 2 | D46: 1 | E46: 1 | F46: 1 | G46: Socialinio draudimo įmokos | H46: 12 | I46: 300.00 | J46: 100.00 | K46: 100.00 | L46: 100.00
A47: 2 | B47: 2 | G47: Prekių ir paslaugų įsigijimo išlaidos | H47: 13 | I47: =I48 -> 13800.00 | J47: 8800.00 | K47: 5456.60 | L47: 5456.60
A48: 2 | B48: 2 | C48: 1 | G48: Prekių ir paslaugų įsigijimo išlaidos | H48: 14 | I48: 13800.00 | J48: 8800.00 | K48: 5456.60 | L48: 5456.60
A49: 2 | B49: 2 | C49: 1 | D49: 1 | G49: Prekių ir paslaugų įsigijimo išlaidos | H49: 15 | I49: 13800.00 | J49: 8800.00 | K49: 5456.60 | L49: 5456.60
A50: 2 | B50: 2 | C50: 1 | D50: 1 | E50: 1 | G50: Prekių ir paslaugų įsigijimo išlaidos | H50: 16 | I50: =SUM(I51:I66) -> 13800.00 | J50: =SUM(J51:J66) -> 8800.00 | K50: =SUM(K51:K66) -> 5456.60 | L50: =SUM(L51:L66) -> 5456.60
A51: 2 | B51: 2 | C51: 1 | D51: 1 | E51: 1 | F51: 1 | G51: Mitybos išlaidos | H51: 17 | I51: 0.00 | J51: 0.00 | K51: 0.00 | L51: 0.00
A52: 2 | B52: 2 | C52: 1 | D52: 1 | E52: 1 | F52: 2 | G52: Medikamentų ir medicininių prekių bei paslaugų įsigijimo išlaidos | H52: 18 | I52: 0.00 | J52: 0.00 | K52: 0.00 | L52: 0.00
A53: 2 | B53: 2 | C53: 1 | D53: 1 | E53: 1 | F53: 5 | G53: Ryšių įrangos ir ryšių paslaugų įsigijimo išlaidos | H53: 19 | I53: 600.00 | J53: 400.00 | K53: 0.00 | L53: 0.00
A54: 2 | B54: 2 | C54: 1 | D54: 1 | E54: 1 | F54: 6 | G54: Transporto išlaikymo ir transporto paslaugų įsigijimo išlaidos | H54: 20 | I54: 0.00 | J54: 0.00 | K54: 0.00 | L54: 0.00
A55: 2 | B55: 2 | C55: 1 | D55: 1 | E55: 1 | F55: 7 | G55: Aprangos ir patalynės įsigijimo bei priežiūros išlaidos | H55: 21 | I55: 0.00 | J55: 0.00 | K55: 0.00 | L55: 0.00
A56: 2 | B56: 2 | C56: 1 | D56: 1 | E56: 1 | F56: 11 | G56: Komandiruočių išlaidos | H56: 22 | I56: 0.00 | J56: 0.00 | K56: 0.00 | L56: 0.00
A57: 2 | B57: 2 | C57: 1 | D57: 1 | E57: 1 | F57: 12 | G57: Gyvenamųjų vietovių viešojo ūkio išlaidos | H57: 23 | I57: 0.00 | J57: 0.00 | K57: 0.00 | L57: 0.00
A58: 2 | B58: 2 | C58: 1 | D58: 1 | E58: 1 | F58: 14 | G58: Materialiojo ir nematerialiojo turto nuomos išlaidos | H58: 24 | I58: 0.00 | J58: 0.00 | K58: 0.00 | L58: 0.00
A59: 2 | B59: 2 | C59: 1 | D59: 1 | E59: 1 | F59: 15 | G59: Materialiojo turto paprastojo remonto prekių ir paslaugų įsigijimo išlaidos | H59: 25 | I59: 1200.00 | J59: 900.00 | K59: 489.00 | L59: 489.00
A60: 2 | B60: 2 | C60: 1 | D60: 1 | E60: 1 | F60: 16 | G60: Kvalifikacijos kėlimo išlaidos | H60: 26 | I60: 0.00 | J60: 0.00 | K60: 0.00 | L60: 0.00
A61: 2 | B61: 2 | C61: 1 | D61: 1 | E61: 1 | F61: 17 | G61: Ekspertų ir konsultantų paslaugų įsigijimo išlaidos | H61: 27 | I61: 0.00 | J61: 0.00 | K61: 0.00 | L61: 0.00
A62: 2 | B62: 2 | C62: 1 | D62: 1 | E62: 1 | F62: 20 | G62: Komunalinių paslaugų įsigijimo išlaidos | H62: 28 | I62: 0.00 | J62: 0.00 | K62: 0.00 | L62: 0.00
A63: 2 | B63: 2 | C63: 1 | D63: 1 | E63: 1 | F63: 21 | G63: Informacinių technologijų prekių ir paslaugų įsigijimo išlaidos | H63: 29 | I63: 700.00 | J63: 500.00 | K63: 500.00 | L63: 500.00
A64: 2 | B64: 2 | C64: 1 | D64: 1 | E64: 1 | F64: 22 | G64: Reprezentacinės išlaidos | H64: 30 | I64: 0.00 | J64: 0.00 | K64: 0.00 | L64: 0.00
A65: 2 | B65: 2 | C65: 1 | D65: 1 | E65: 1 | F65: 23 | G65: Viešinimo išlaidos | H65: 31 | I65: 0.00 | J65: 0.00 | K65: 0.00 | L65: 0.00
A66: 2 | B66: 2 | C66: 1 | D66: 1 | E66: 1 | F66: 30 | G66: Kitų prekių ir paslaugų įsigijimo išlaidos | H66: 32 | I66: 11300.00 | J66: 7000.00 | K66: 4467.60 | L66: 4467.60
A67: 2 | B67: 3 | G67: Palūkanos | H67: 33 | I67: =I68 -> 0.00 | J67: =J68 -> 0.00 | K67: =K68 -> 0.00 | L67: =L68 -> 0.00
A68: 2 | B68: 3 | C68: 1 | G68: Palūkanos | H68: 34 | I68: =SUM(I69+I74+I79) -> 0.00 | J68: =SUM(J69+J74+J79) -> 0.00 | K68: =SUM(K69+K74+K79) -> 0.00 | L68: =SUM(L69+L74+L79) -> 0.00
A69: 2 | B69: 3 | C69: 1 | D69: 1 | G69: Palūkanos nerezidentams | H69: 35 | I69: =I70 -> 0.00 | J69: =J70 -> 0.00 | K69: =K70 -> 0.00 | L69: =L70 -> 0.00
A70: 2 | B70: 3 | C70: 1 | D70: 1 | E70: 1 | G70: Palūkanos nerezidentams | H70: 36 | I70: =SUM(I71:I73) -> 0.00 | J70: =SUM(J71:J73) -> 0.00 | K70: =SUM(K71:K73) -> 0.00 | L70: =SUM(L71:L73) -> 0.00
A71: 2 | B71: 3 | C71: 1 | D71: 1 | E71: 1 | F71: 1 | G71: Asignavimų valdytojų sumokėtos palūkanos | H71: 37 | I71: 0.00 | J71: 0.00 | K71: 0.00 | L71: 0.00
A72: 2 | B72: 3 | C72: 1 | D72: 1 | E72: 1 | F72: 2 | G72: Finansų ministerijos sumokėtos palūkanos | H72: 38 | I72: 0.00 | J72: 0.00 | K72: 0.00 | L72: 0.00
A73: 2 | B73: 3 | C73: 1 | D73: 1 | E73: 1 | F73: 3 | G73: Savivaldybių sumokėtos palūkanos | H73: 39 | I73: 0.00 | J73: 0.00 | K73: 0.00 | L73: 0.00
A74: 2 | B74: 3 | C74: 1 | D74: 2 | G74: Palūkanos rezidentams, kitiems nei valdžios sektorius (tik už tiesioginę skolą) | H74: 40 | I74: =I75 -> 0.00 | J74: =J75 -> 0.00 | K74: =K75 -> 0.00 | L74: =L75 -> 0.00
A75: 2 | B75: 3 | C75: 1 | D75: 2 | E75: 1 | G75: Palūkanos rezidentams, kitiems nei valdžios sektorius (tik už tiesioginę skolą) | H75: 41 | I75: =SUM(I76:I78) -> 0.00 | J75: =SUM(J76:J78) -> 0.00 | K75: =SUM(K76:K78) -> 0.00 | L75: =SUM(L76:L78) -> 0.00
A76: 2 | B76: 3 | C76: 1 | D76: 2 | E76: 1 | F76: 1 | G76: Asignavimų valdytojų sumokėtos palūkanos | H76: 42 | I76: 0.00 | J76: 0.00 | K76: 0.00 | L76: 0.00
A77: 2 | B77: 3 | C77: 1 | D77: 2 | E77: 1 | F77: 2 | G77: Finansų ministerijos sumokėtos palūkanos | H77: 43 | I77: 0.00 | J77: 0.00 | K77: 0.00 | L77: 0.00
A78: 2 | B78: 3 | C78: 1 | D78: 2 | E78: 1 | F78: 3 | G78: Savivaldybių sumokėtos palūkanos | H78: 44 | I78: 0.00 | J78: 0.00 | K78: 0.00 | L78: 0.00
A79: 2 | B79: 3 | C79: 1 | D79: 3 | G79: Palūkanos kitiems valdžios sektoriaus subjektams | H79: 45 | I79: =I80 -> 0.00 | J79: =J80 -> 0.00 | K79: =K80 -> 0.00 | L79: =L80 -> 0.00
A80: 2 | B80: 3 | C80: 1 | D80: 3 | E80: 1 | G80: Palūkanos kitiems valdžios sektoriaus subjektams | H80: 46 | I80: =SUM(I81:I83) -> 0.00 | J80: =SUM(J81:J83) -> 0.00 | K80: =SUM(K81:K83) -> 0.00 | L80: =SUM(L81:L83) -> 0.00
A81: 2 | B81: 3 | C81: 1 | D81: 3 | E81: 1 | F81: 1 | G81: Palūkanos valstybės biudžetui | H81: 47 | I81: 0.00 | J81: 0.00 | K81: 0.00 | L81: 0.00
A82: 2 | B82: 3 | C82: 1 | D82: 3 | E82: 1 | F82: 2 | G82: Palūkanos savivaldybių biudžetams | H82: 48 | I82: 0.00 | J82: 0.00 | K82: 0.00 | L82: 0.00
A83: 2 | B83: 3 | C83: 1 | D83: 3 | E83: 1 | F83: 3 | G83: Palūkanos nebiudžetiniams fondams | H83: 49 | I83: 0.00 | J83: 0.00 | K83: 0.00 | L83: 0.00
A84: 2 | B84: 3 | C84: 2 | G84: Žemės nuoma | H84: 50 | I84: =I85 -> 0.00 | J84: 0.00 | K84: 0.00 | L84: 0.00
A85: 2 | B85: 3 | C85: 2 | D85: 1 | G85: Žemės nuoma | H85: 51 | I85: 0.00 | J85: 0.00 | K85: 0.00 | L85: 0.00
A86: 2 | B86: 3 | C86: 2 | D86: 1 | E86: 1 | G86: Žemės nuoma | H86: 52 | I86: =SUM(I87) -> 0.00 | J86: =SUM(J87) -> 0.00 | K86: =SUM(K87) -> 0.00 | L86: =SUM(L87) -> 0.00
A87: 2 | B87: 3 | C87: 2 | D87: 1 | E87: 1 | F87: 1 | G87: Žemės nuoma | H87: 53 | I87: 0.00 | J87: 0.00 | K87: 0.00 | L87: 0.00
A88: 2 | B88: 4 | G88: Subsidijos | H88: 54 | I88: =I89 -> 0.00 | J88: 0.00 | K88: 0.00 | L88: 0.00
A89: 2 | B89: 4 | C89: 1 | G89: Subsidijos iš biudžeto lėšų | H89: 55 | I89: 0.00 | J89: 0.00 | K89: 0.00 | L89: 0.00
A90: 2 | B90: 4 | C90: 1 | D90: 1 | G90: Subsidijos iš biudžeto lėšų | H90: 56 | I90: 0.00 | J90: 0.00 | K90: 0.00 | L90: 0.00
A91: 2 | B91: 4 | C91: 1 | D91: 1 | E91: 1 | G91: Subsidijos iš biudžeto lėšų | H91: 57 | I91: =SUM(I92:I94) -> 0.00 | J91: =SUM(J92:J94) -> 0.00 | K91: =SUM(K92:K94) -> 0.00 | L91: =SUM(L92:L94) -> 0.00
A92: 2 | B92: 4 | C92: 1 | D92: 1 | E92: 1 | F92: 1 | G92: Subsidijos importui | H92: 58 | I92: 0.00 | J92: 0.00 | K92: 0.00 | L92: 0.00
A93: 2 | B93: 4 | C93: 1 | D93: 1 | E93: 1 | F93: 2 | G93: Subsidijos gaminiams | H93: 59 | I93: 0.00 | J93: 0.00 | K93: 0.00 | L93: 0.00
A94: 2 | B94: 4 | C94: 1 | D94: 1 | E94: 1 | F94: 3 | G94: Subsidijos gamybai | H94: 60 | I94: 0.00 | J94: 0.00 | K94: 0.00 | L94: 0.00
A95: 2 | B95: 5 | G95: Dotacijos | H95: 61 | I95: =SUM(I96+I101+I106) -> 0.00 | J95: =SUM(J96+J101+J106) -> 0.00 | K95: =SUM(K96+K101+K106) -> 0.00 | L95: =SUM(L96+L101+L106) -> 0.00
A96: 2 | B96: 5 | C96: 1 | G96: Dotacijos užsienio valstybėms | H96: 62 | I96: =I97 -> 0.00 | J96: 0.00 | K96: 0.00 | L96: 0.00
A97: 2 | B97: 5 | C97: 1 | D97: 1 | G97: Dotacijos užsienio valstybėms | H97: 63 | I97: 0.00 | J97: 0.00 | K97: 0.00 | L97: 0.00
A98: 2 | B98: 5 | C98: 1 | D98: 1 | E98: 1 | G98: Dotacijos užsienio valstybėms | H98: 64 | I98: =SUM(I99:I100) -> 0.00 | J98: =SUM(J99:J100) -> 0.00 | K98: =SUM(K99:K100) -> 0.00 | L98: =SUM(L99:L100) -> 0.00
A99: 2 | B99: 5 | C99: 1 | D99: 1 | E99: 1 | F99: 1 | G99: Dotacijos užsienio valstybėms einamiesiems tikslams | H99: 65 | I99: 0.00 | J99: 0.00 | K99: 0.00 | L99: 0.00
A100: 2 | B100: 5 | C100: 1 | D100: 1 | E100: 1 | F100: 2 | G100: Dotacijos užsienio valstybėms turtui įsigyti | H100: 66 | I100: 0.00 | J100: 0.00 | K100: 0.00 | L100: 0.00
A101: 2 | B101: 5 | C101: 2 | G101: Dotacijos tarptautinėms organizacijoms | H101: 67 | I101: =I102 -> 0.00 | J101: 0.00 | K101: 0.00 | L101: 0.00
A102: 2 | B102: 5 | C102: 2 | D102: 1 | G102: Dotacijos tarptautinėms organizacijoms | H102: 68 | I102: 0.00 | J102: 0.00 | K102: 0.00 | L102: 0.00
A103: 2 | B103: 5 | C103: 2 | D103: 1 | E103: 1 | G103: Dotacijos tarptautinėms organizacijoms | H103: 69 | I103: =SUM(I104:I105) -> 0.00 | J103: =SUM(J104:J105) -> 0.00 | K103: =SUM(K104:K105) -> 0.00 | L103: =SUM(L104:L105) -> 0.00
A104: 2 | B104: 5 | C104: 2 | D104: 1 | E104: 1 | F104: 1 | G104: Dotacijos tarptautinėms organizacijoms einamiesiems tikslams | H104: 70 | I104: 0.00 | J104: 0.00 | K104: 0.00 | L104: 0.00
A105: 2 | B105: 5 | C105: 2 | D105: 1 | E105: 1 | F105: 2 | G105: Dotacijos tarptautinėms organizacijoms turtui įsigyti | H105: 71 | I105: 0.00 | J105: 0.00 | K105: 0.00 | L105: 0.00
A106: 2 | B106: 5 | C106: 3 | G106: Dotacijos kitiems valdžios sektoriaus subjektams | H106: 72 | I106: =I107+I111 -> 0.00 | J106: =J107+J111 -> 0.00 | K106: =K107+K111 -> 0.00 | L106: =L107+L111 -> 0.00
A107: 2 | B107: 5 | C107: 3 | D107: 1 | G107: Dotacijos kitiems valdžios sektoriaus subjektams einamiesiems tikslams | H107: 73 | I107: =I108 -> 0.00 | J107: =J108 -> 0.00 | K107: =K108 -> 0.00 | L107: =L108 -> 0.00
A108: 2 | B108: 5 | C108: 3 | D108: 1 | E108: 1 | G108: Dotacijos kitiems valdžios sektoriaus subjektams einamiesiems tikslams | H108: 74 | I108: =SUM(I109:I110) -> 0.00 | J108: =SUM(J109:J110) -> 0.00 | K108: =SUM(K109:K110) -> 0.00 | L108: =SUM(L109:L110) -> 0.00
A109: 2 | B109: 5 | C109: 3 | D109: 1 | E109: 1 | F109: 1 | G109: Dotacijos kitiems valdžios sektoriaus subjektams einamiesiems tikslams | H109: 75 | I109: 0.00 | J109: 0.00 | K109: 0.00 | L109: 0.00
A110: 2 | B110: 5 | C110: 3 | D110: 1 | E110: 1 | F110: 2 | G110: Dotacijos savivaldybėms einamiesiems tikslams | H110: 76 | I110: 0.00 | J110: 0.00 | K110: 0.00 | L110: 0.00
A111: 2 | B111: 5 | C111: 3 | D111: 2 | G111: Dotacijos kitiems valdžios sektoriaus subjektams turtui įsigyti | H111: 77 | I111: =I112 -> 0.00 | J111: =J112 -> 0.00 | K111: =K112 -> 0.00 | L111: =L112 -> 0.00
A112: 2 | B112: 5 | C112: 3 | D112: 2 | E112: 1 | G112: Dotacijos kitiems valdžios sektoriaus subjektams turtui įsigyti | H112: 78 | I112: =SUM(I113:I114) -> 0.00 | J112: =SUM(J113:J114) -> 0.00 | K112: =SUM(K113:K114) -> 0.00 | L112: =SUM(L113:L114) -> 0.00
A113: 2 | B113: 5 | C113: 3 | D113: 2 | E113: 1 | F113: 1 | G113: Dotacijos kitiems valdžios sektoriaus subjektams turtui įsigyti | H113: 79 | I113: 0.00 | J113: 0.00 | K113: 0.00 | L113: 0.00
A114: 2 | B114: 5 | C114: 3 | D114: 2 | E114: 1 | F114: 2 | G114: Dotacijos savivaldybėms turtui įsigyti | H114: 80 | I114: 0.00 | J114: 0.00 | K114: 0.00 | L114: 0.00
A115: 2 | B115: 6 | G115: Įmokos į Europos Sąjungos biudžetą | H115: 81 | I115: =SUM(I116+I121+I125+I129+I133+I137) -> 0.00 | J115: =SUM(J116+J121+J125+J129+J133+J137) -> 0.00 | K115: =SUM(K116+K121+K125+K129+K133+K137) -> 0.00 | L115: =SUM(L116+L121+L125+L129+L133+L137) -> 0.00
A116: 2 | B116: 6 | C116: 1 | G116: Tradiciniai nuosavi ištekliai | H116: 82 | I116: =I117 -> 0.00 | J116: 0.00 | K116: 0.00 | L116: 0.00
A117: 2 | B117: 6 | C117: 1 | D117: 1 | G117: Tradiciniai nuosavi ištekliai | H117: 83 | I117: 0.00 | J117: 0.00 | K117: 0.00 | L117: 0.00
A118: 2 | B118: 6 | C118: 1 | D118: 1 | E118: 1 | G118: Tradiciniai nuosavi ištekliai | H118: 84 | I118: =SUM(I119:I120) -> 0.00 | J118: =SUM(J119:J120) -> 0.00 | K118: =SUM(K119:K120) -> 0.00 | L118: =SUM(L119:L120) -> 0.00
A119: 2 | B119: 6 | C119: 1 | D119: 1 | E119: 1 | F119: 1 | G119: Muitai | H119: 85 | I119: 0.00 | J119: 0.00 | K119: 0.00 | L119: 0.00
A120: 2 | B120: 6 | C120: 1 | D120: 1 | E120: 1 | F120: 2 | G120: Cukraus sektoriaus mokesčiai | H120: 86 | I120: 0.00 | J120: 0.00 | K120: 0.00 | L120: 0.00
A121: 2 | B121: 6 | C121: 2 | G121: Pridėtinės vertės mokesčio nuosavi ištekliai | H121: 87 | I121: =I122 -> 0.00 | J121: 0.00 | K121: 0.00 | L121: 0.00
A122: 2 | B122: 6 | C122: 2 | D122: 1 | G122: Pridėtinės vertės mokesčio nuosavi ištekliai | H122: 88 | I122: 0.00 | J122: 0.00 | K122: 0.00 | L122: 0.00
A123: 2 | B123: 6 | C123: 2 | D123: 1 | E123: 1 | G123: Pridėtinės vertės mokesčio nuosavi ištekliai | H123: 89 | I123: 0.00 | J123: 0.00 | K123: 0.00 | L123: 0.00
A124: 2 | B124: 6 | C124: 2 | D124: 1 | E124: 1 | F124: 1 | G124: Pridėtinės vertės mokesčio nuosavi ištekliai | H124: 90 | I124: 0.00 | J124: 0.00 | K124: 0.00 | L124: 0.00
A125: 2 | B125: 6 | C125: 3 | G125: Bendrųjų nacionalinių pajamų nuosavi ištekliai | H125: 91 | I125: =I126 -> 0.00 | J125: 0.00 | K125: 0.00 | L125: 0.00
A126: 2 | B126: 6 | C126: 3 | D126: 1 | G126: Bendrųjų nacionalinių pajamų nuosavi ištekliai | H126: 92 | I126: 0.00 | J126: 0.00 | K126: 0.00 | L126: 0.00
A127: 2 | B127: 6 | C127: 3 | D127: 1 | E127: 1 | G127: Bendrųjų nacionalinių pajamų nuosavi ištekliai | H127: 93 | I127: 0.00 | J127: 0.00 | K127: 0.00 | L127: 0.00
A128: 2 | B128: 6 | C128: 3 | D128: 1 | E128: 1 | F128: 1 | G128: Bendrųjų nacionalinių pajamų nuosavi ištekliai | H128: 94 | I128: 0.00 | J128: 0.00 | K128: 0.00 | L128: 0.00
A129: 2 | B129: 6 | C129: 4 | G129: Biudžeto disbalansų korekcija Jungtinės Karalystės naudai | H129: 95 | I129: =I130 -> 0.00 | J129: 0.00 | K129: 0.00 | L129: 0.00
A130: 2 | B130: 6 | C130: 4 | D130: 1 | G130: Biudžeto disbalansų korekcija Jungtinės Karalystės naudai | H130: 96 | I130: 0.00 | J130: 0.00 | K130: 0.00 | L130: 0.00
A131: 2 | B131: 6 | C131: 4 | D131: 1 | E131: 1 | G131: Biudžeto disbalansų korekcija Jungtinės Karalystės naudai | H131: 97 | I131: 0.00 | J131: 0.00 | K131: 0.00 | L131: 0.00
A132: 2 | B132: 6 | C132: 4 | D132: 1 | E132: 1 | F132: 1 | G132: Biudžeto disbalansų korekcija Jungtinės Karalystės naudai | H132: 98 | I132: 0.00 | J132: 0.00 | K132: 0.00 | L132: 0.00
A133: 2 | B133: 6 | C133: 5 | G133: Su nuosavais ištekliais susijusios baudos, delspinigiai ir neigiamos palūkanos | H133: 99 | I133: =I134 -> 0.00 | J133: 0.00 | K133: 0.00 | L133: 0.00
A134: 2 | B134: 6 | C134: 5 | D134: 1 | G134: Su nuosavais ištekliais susijusios baudos, delspinigiai ir neigiamos palūkanos | H134: 100 | I134: 0.00 | J134: 0.00 | K134: 0.00 | L134: 0.00
A135: 2 | B135: 6 | C135: 5 | D135: 1 | E135: 1 | G135: Su nuosavais ištekliais susijusios baudos, delspinigiai ir neigiamos palūkanos | H135: 101 | I135: 0.00 | J135: 0.00 | K135: 0.00 | L135: 0.00
A136: 2 | B136: 6 | C136: 5 | D136: 1 | E136: 1 | F136: 1 | G136: Su nuosavais ištekliais susijusios baudos, delspinigiai ir neigiamos palūkanos | H136: 102 | I136: 0.00 | J136: 0.00 | K136: 0.00 | L136: 0.00
A137: 2 | B137: 6 | C137: 6 | G137: Neperdirbto plastiko atliekų nuosavi ištekliai | H137: 103 | I137: =I138 -> 0.00 | J137: 0.00 | K137: 0.00 | L137: 0.00
A138: 2 | B138: 6 | C138: 6 | D138: 1 | G138: Neperdirbto plastiko atliekų nuosavi ištekliai | H138: 104 | I138: 0.00 | J138: 0.00 | K138: 0.00 | L138: 0.00
A139: 2 | B139: 6 | C139: 6 | D139: 1 | E139: 1 | G139: Neperdirbto plastiko atliekų nuosavi ištekliai | H139: 105 | I139: 0.00 | J139: 0.00 | K139: 0.00 | L139: 0.00
A140: 2 | B140: 6 | C140: 6 | D140: 1 | E140: 1 | F140: 1 | G140: Neperdirbto plastiko atliekų nuosavi ištekliai | H140: 106 | I140: 0.00 | J140: 0.00 | K140: 0.00 | L140: 0.00
A141: 2 | B141: 7 | G141: Socialinės išmokos (pašalpos) | H141: 107 | I141: =SUM(I142+I147+I155) -> 0.00 | J141: =SUM(J142+J147+J155) -> 0.00 | K141: =SUM(K142+K147+K155) -> 0.00 | L141: =SUM(L142+L147+L155) -> 0.00
A142: 2 | B142: 7 | C142: 1 | G142: Socialinio draudimo išmokos (pašalpos) | H142: 108 | I142: =I143 -> 0.00 | J142: 0.00 | K142: 0.00 | L142: 0.00
A143: 2 | B143: 7 | C143: 1 | D143: 1 | G143: Socialinio draudimo išmokos (pašalpos) | H143: 109 | I143: 0.00 | J143: 0.00 | K143: 0.00 | L143: 0.00
A144: 2 | B144: 7 | C144: 1 | D144: 1 | E144: 1 | G144: Socialinio draudimo išmokos (pašalpos) | H144: 110 | I144: =SUM(I145:I146) -> 0.00 | J144: =SUM(J145:J146) -> 0.00 | K144: =SUM(K145:K146) -> 0.00 | L144: =SUM(L145:L146) -> 0.00
A145: 2 | B145: 7 | C145: 1 | D145: 1 | E145: 1 | F145: 1 | G145: Socialinio draudimo išmokos pinigais | H145: 111 | I145: 0.00 | J145: 0.00 | K145: 0.00 | L145: 0.00
A146: 2 | B146: 7 | C146: 1 | D146: 1 | E146: 1 | F146: 2 | G146: Socialinio draudimo išmokos natūra | H146: 112 | I146: 0.00 | J146: 0.00 | K146: 0.00 | L146: 0.00
A147: 2 | B147: 7 | C147: 2 | G147: Socialinė parama (socialinės paramos pašalpos) ir rentos | H147: 113 | I147: =I148 -> 0.00 | J147: 0.00 | K147: 0.00 | L147: 0.00
A148: 2 | B148: 7 | C148: 2 | D148: 1 | G148: Socialinė parama (socialinės paramos pašalpos) | H148: 114 | I148: 0.00 | J148: 0.00 | K148: 0.00 | L148: 0.00
A149: 2 | B149: 7 | C149: 2 | D149: 1 | E149: 1 | G149: Socialinė parama (socialinės paramos pašalpos) | H149: 115 | I149: =SUM(I150:I151) -> 0.00 | J149: =SUM(J150:J151) -> 0.00 | K149: =SUM(K150:K151) -> 0.00 | L149: =SUM(L150:L151) -> 0.00
A150: 2 | B150: 7 | C150: 2 | D150: 1 | E150: 1 | F150: 1 | G150: Socialinė parama pinigais | H150: 116 | I150: 0.00 | J150: 0.00 | K150: 0.00 | L150: 0.00
A151: 2 | B151: 7 | C151: 2 | D151: 1 | E151: 1 | F151: 2 | G151: Socialinė parama natūra | H151: 117 | I151: 0.00 | J151: 0.00 | K151: 0.00 | L151: 0.00
A152: 2 | B152: 7 | C152: 2 | D152: 2 | G152: Rentos | H152: 118 | I152: =I153 -> 0.00 | J152: =J153 -> 0.00 | K152: =K153 -> 0.00 | L152: =L153 -> 0.00
A153: 2 | B153: 7 | C153: 2 | D153: 2 | E153: 1 | G153: Rentos | H153: 119 | I153: =SUM(I154) -> 0.00 | J153: =SUM(J154) -> 0.00 | K153: =SUM(K154) -> 0.00 | L153: =SUM(L154) -> 0.00
A154: 2 | B154: 7 | C154: 2 | D154: 2 | E154: 1 | F154: 1 | G154: Rentos | H154: 120 | I154: 0.00 | J154: 0.00 | K154: 0.00 | L154: 0.00
A155: 2 | B155: 7 | C155: 3 | G155: Darbdavių socialinė parama | H155: 121 | I155: =I156 -> 0.00 | J155: 0.00 | K155: 0.00 | L155: 0.00
A156: 2 | B156: 7 | C156: 3 | D156: 1 | G156: Darbdavių socialinė parama | H156: 122 | I156: 0.00 | J156: 0.00 | K156: 0.00 | L156: 0.00
A157: 2 | B157: 7 | C157: 3 | D157: 1 | E157: 1 | G157: Darbdavių socialinė parama | H157: 123 | I157: =SUM(I158:I159) -> 0.00 | J157: =SUM(J158:J159) -> 0.00 | K157: =SUM(K158:K159) -> 0.00 | L157: =SUM(L158:L159) -> 0.00
A158: 2 | B158: 7 | C158: 3 | D158: 1 | E158: 1 | F158: 1 | G158: Darbdavių socialinė parama pinigais | H158: 124 | I158: 0.00 | J158: 0.00 | K158: 0.00 | L158: 0.00
A159: 2 | B159: 7 | C159: 3 | D159: 1 | E159: 1 | F159: 2 | G159: Darbdavių socialinė parama natūra | H159: 125 | I159: 0.00 | J159: 0.00 | K159: 0.00 | L159: 0.00
A160: 2 | B160: 8 | G160: Kitos išlaidos | H160: 126 | I160: =I161 -> 0.00 | J160: =J161 -> 0.00 | K160: =K161 -> 0.00 | L160: =L161 -> 0.00
A161: 2 | B161: 8 | C161: 1 | G161: Kitos išlaidos | H161: 127 | I161: =I162+I167 -> 0.00 | J161: =J162+J167 -> 0.00 | K161: =K162+K167 -> 0.00 | L161: =L162+L167 -> 0.00
A162: 2 | B162: 8 | C162: 1 | D162: 1 | G162: Kitos išlaidos einamiesiems tikslams | H162: 128 | I162: =I163 -> 0.00 | J162: =J163 -> 0.00 | K162: =K163 -> 0.00 | L162: =L163 -> 0.00
A163: 2 | B163: 8 | C163: 1 | D163: 1 | E163: 1 | G163: Kitos išlaidos einamiesiems tikslams | H163: 129 | I163: =SUM(I164:I166) -> 0.00 | J163: =SUM(J164:J166) -> 0.00 | K163: =SUM(K164:K166) -> 0.00 | L163: =SUM(L164:L166) -> 0.00
A164: 2 | B164: 8 | C164: 1 | D164: 1 | E164: 1 | F164: 1 | G164: Stipendijoms | H164: 130 | I164: 0.00 | J164: 0.00 | K164: 0.00 | L164: 0.00
A165: 2 | B165: 8 | C165: 1 | D165: 1 | E165: 1 | F165: 2 | G165: Kitos išlaidos kitiems einamiesiems tikslams | H165: 131 | I165: 0.00 | J165: 0.00 | K165: 0.00 | L165: 0.00
A166: 2 | B166: 8 | C166: 1 | D166: 1 | E166: 1 | F166: 3 | G166: Valiutos kurso įtaka | H166: 132 | I166: 0.00 | J166: 0.00 | K166: 0.00 | L166: 0.00
A167: 2 | B167: 8 | C167: 1 | D167: 2 | G167: Kitos išlaidos turtui įsigyti | H167: 133 | I167: =I168 -> 0.00 | J167: 0.00 | K167: 0.00 | L167: 0.00
A168: 2 | B168: 8 | C168: 1 | D168: 2 | E168: 1 | G168: Kitos išlaidos turtui įsigyti | H168: 134 | I168: 0.00 | J168: 0.00 | K168: 0.00 | L168: 0.00
A169: 2 | B169: 8 | C169: 1 | D169: 2 | E169: 1 | F169: 1 | G169: Kitos išlaidos turtui įsigyti | H169: 135 | I169: 0.00 | J169: 0.00 | K169: 0.00 | L169: 0.00
A170: 2 | B170: 9 | G170: Pervedamos Europos Sąjungos, kitos tarptautinės finansinės paramos ir bendrojo finansavimo lėšos | H170: 136 | I170: =I171+I175 -> 0.00 | J170: =J171+J175 -> 0.00 | K170: =K171+K175 -> 0.00 | L170: =L171+L175 -> 0.00
A171: 2 | B171: 9 | C171: 1 | G171: Subsidijos iš Europos Sąjungos ir kitos tarptautinės finansinės paramos lėšų (ne valdžios sektoriui) | H171: 137 | I171: =I172 -> 0.00 | J171: 0.00 | K171: 0.00 | L171: 0.00
A172: 2 | B172: 9 | C172: 1 | D172: 1 | G172: Subsidijos iš Europos Sąjungos ir kitos tarptautinės finansinės paramos lėšų (ne valdžios sektoriui) | H172: 138 | I172: 0.00 | J172: 0.00 | K172: 0.00 | L172: 0.00
A173: 2 | B173: 9 | C173: 1 | D173: 1 | E173: 1 | G173: Subsidijos iš Europos Sąjungos ir kitos tarptautinės finansinės paramos lėšų (ne valdžios sektoriui) | H173: 139 | I173: 0.00 | J173: 0.00 | K173: 0.00 | L173: 0.00
A174: 2 | B174: 9 | C174: 1 | D174: 1 | E174: 1 | F174: 1 | G174: Subsidijos iš Europos Sąjungos ir kitos tarptautinės finansinės paramos lėšų (ne valdžios sektoriui) | H174: 140 | I174: 0.00 | J174: 0.00 | K174: 0.00 | L174: 0.00
A175: 2 | B175: 9 | C175: 2 | G175: Pervedamos Europos Sąjungos, kitos tarptautinės finansinės paramos ir bendrojo finansavimo lėšos | H175: 141 | I175: =SUM(I176+I181) -> 0.00 | J175: =SUM(J176+J181) -> 0.00 | K175: =SUM(K176+K181) -> 0.00 | L175: =SUM(L176+L181) -> 0.00
A176: 2 | B176: 9 | C176: 2 | D176: 1 | G176: Pervedamos Europos Sąjungos, kitos tarptautinės finansinės paramos ir bendrojo finansavimo lėšos einamiesiems tikslams | H176: 142 | I176: =I177 -> 0.00 | J176: =J177 -> 0.00 | K176: =K177 -> 0.00 | L176: =L177 -> 0.00
A177: 2 | B177: 9 | C177: 2 | D177: 1 | E177: 1 | G177: Pervedamos Europos Sąjungos, kitos tarptautinės finansinės paramos ir bendrojo finansavimo lėšos einamiesiems tikslams | H177: 143 | I177: =SUM(I178:I180) -> 0.00 | J177: =SUM(J178:J180) -> 0.00 | K177: =SUM(K178:K180) -> 0.00 | L177: =SUM(L178:L180) -> 0.00
A178: 2 | B178: 9 | C178: 2 | D178: 1 | E178: 1 | F178: 1 | G178: Pervedamos Europos Sąjungos, kitos tarptautinės finansinės paramos ir bendrojo finansavimo lėšos einamiesiems tikslams savivaldybėms | H178: 144 | I178: 0.00 | J178: 0.00 | K178: 0.00 | L178: 0.00
A179: 2 | B179: 9 | C179: 2 | D179: 1 | E179: 1 | F179: 2 | G179: Pervedamos Europos Sąjungos, kitos tarptautinės finansinės paramos ir bendrojo finansavimo lėšos einamiesiems tikslams kitiems valdžios sektoriaus subjektams | H179: 145 | I179: 0.00 | J179: 0.00 | K179: 0.00 | L179: 0.00
A180: 2 | B180: 9 | C180: 2 | D180: 1 | E180: 1 | F180: 3 | G180: Pervedamos Europos Sąjungos, kitos tarptautinės finansinės paramos ir bendrojo finansavimo lėšos einamiesiems tikslams ne valdžios sektoriui | H180: 146 | I180: 0.00 | J180: 0.00 | K180: 0.00 | L180: 0.00
A181: 2 | B181: 9 | C181: 2 | D181: 2 | G181: Pervedamos Europos Sąjungos, kitos tarptautinės finansinės paramos ir bendrojo finansavimo lėšos investicijoms | H181: 147 | I181: =I182 -> 0.00 | J181: =J182 -> 0.00 | K181: =K182 -> 0.00 | L181: =L182 -> 0.00
A182: 2 | B182: 9 | C182: 2 | D182: 2 | E182: 1 | G182: Pervedamos Europos Sąjungos, kitos tarptautinės finansinės paramos ir bendrojo finansavimo lėšos investicijoms | H182: 148 | I182: =SUM(I183:I185) -> 0.00 | J182: =SUM(J183:J185) -> 0.00 | K182: =SUM(K183:K185) -> 0.00 | L182: =SUM(L183:L185) -> 0.00
A183: 2 | B183: 9 | C183: 2 | D183: 2 | E183: 1 | F183: 1 | G183: Pervedamos Europos Sąjungos, kitos tarptautinės finansinės paramos ir bendrojo finansavimo lėšos investicijoms, skirtoms savivaldybėms | H183: 149 | I183: 0.00 | J183: 0.00 | K183: 0.00 | L183: 0.00
A184: 2 | B184: 9 | C184: 2 | D184: 2 | E184: 1 | F184: 2 | G184: Pervedamos Europos Sąjungos, kitos tarptautinės finansinės paramos ir bendrojo finansavimo lėšos investicijoms kitiems valdžios sektoriaus subjektams | H184: 150 | I184: 0.00 | J184: 0.00 | K184: 0.00 | L184: 0.00
A185: 2 | B185: 9 | C185: 2 | D185: 2 | E185: 1 | F185: 3 | G185: Pervedamos Europos Sąjungos, kitos tarptautinės finansinės paramos ir bendrojo finansavimo lėšos investicijoms ne valdžios sektoriui | H185: 151 | I185: 0.00 | J185: 0.00 | K185: 0.00 | L185: 0.00
A186: 3 | G186: MATERIALIOJO IR NEMATERIALIOJO TURTO ĮSIGIJIMO, FINANSINIO TURTO PADIDĖJIMO IR FINANSINIŲ ĮSIPAREIGOJIMŲ VYKDYMO IŠLAIDOS | H186: 152 | I186: =SUM(I187+I240+I305) -> 0.00 | J186: =SUM(J187+J240+J305) -> 0.00 | K186: =SUM(K187+K240+K305) -> 0.00 | L186: =SUM(L187+L240+L305) -> 0.00
A187: 3 | B187: 1 | G187: Materialiojo ir nematerialiojo turto įsigijimo išlaidos | H187: 153 | I187: =SUM(I188+I211+I218+I230+I234) -> 0.00 | J187: =SUM(J188+J211+J218+J230+J234) -> 0.00 | K187: =SUM(K188+K211+K218+K230+K234) -> 0.00 | L187: =SUM(L188+L211+L218+L230+L234) -> 0.00
A188: 3 | B188: 1 | C188: 1 | G188: Ilgalaikio materialiojo turto kūrimo ir įsigijimo išlaidos | H188: 154 | I188: =SUM(I189+I192+I197+I203+I208) -> 0.00 | J188: =SUM(J189+J192+J197+J203+J208) -> 0.00 | K188: =SUM(K189+K192+K197+K203+K208) -> 0.00 | L188: =SUM(L189+L192+L197+L203+L208) -> 0.00
A189: 3 | B189: 1 | C189: 1 | D189: 1 | G189: Žemės įsigijimo išlaidos | H189: 155 | I189: =I190 -> 0.00 | J189: 0.00 | K189: 0.00 | L189: 0.00
A190: 3 | B190: 1 | C190: 1 | D190: 1 | E190: 1 | G190: Žemės įsigijimo išlaidos | H190: 156 | I190: 0.00 | J190: 0.00 | K190: 0.00 | L190: 0.00
A191: 3 | B191: 1 | C191: 1 | D191: 1 | E191: 1 | F191: 1 | G191: Žemės įsigijimo išlaidos | H191: 157 | I191: 0.00 | J191: 0.00 | K191: 0.00 | L191: 0.00
A192: 3 | B192: 1 | C192: 1 | D192: 2 | G192: Pastatų ir statinių įsigijimo išlaidos | H192: 158 | I192: =I193 -> 0.00 | J192: =J193 -> 0.00 | K192: =K193 -> 0.00 | L192: =L193 -> 0.00
A193: 3 | B193: 1 | C193: 1 | D193: 2 | E193: 1 | G193: Pastatų ir statinių įsigijimo išlaidos | H193: 159 | I193: =SUM(I194:I196) -> 0.00 | J193: =SUM(J194:J196) -> 0.00 | K193: =SUM(K194:K196) -> 0.00 | L193: =SUM(L194:L196) -> 0.00
A194: 3 | B194: 1 | C194: 1 | D194: 2 | E194: 1 | F194: 1 | G194: Gyvenamųjų namų įsigijimo išlaidos | H194: 160 | I194: 0.00 | J194: 0.00 | K194: 0.00 | L194: 0.00
A195: 3 | B195: 1 | C195: 1 | D195: 2 | E195: 1 | F195: 2 | G195: Negyvenamųjų pastatų įsigijimo išlaidos | H195: 161 | I195: 0.00 | J195: 0.00 | K195: 0.00 | L195: 0.00
A196: 3 | B196: 1 | C196: 1 | D196: 2 | E196: 1 | F196: 3 | G196: Infrastruktūros ir kitų statinių įsigijimo išlaidos | H196: 162 | I196: 0.00 | J196: 0.00 | K196: 0.00 | L196: 0.00
A197: 3 | B197: 1 | C197: 1 | D197: 3 | G197: Mašinų ir įrenginių įsigijimo išlaidos | H197: 163 | I197: =I198 -> 0.00 | J197: =J198 -> 0.00 | K197: =K198 -> 0.00 | L197: =L198 -> 0.00
A198: 3 | B198: 1 | C198: 1 | D198: 3 | E198: 1 | G198: Mašinų ir įrenginių įsigijimo išlaidos | H198: 164 | I198: =SUM(I199:I202) -> 0.00 | J198: =SUM(J199:J202) -> 0.00 | K198: =SUM(K199:K202) -> 0.00 | L198: =SUM(L199:L202) -> 0.00
A199: 3 | B199: 1 | C199: 1 | D199: 3 | E199: 1 | F199: 1 | G199: Transporto priemonių įsigijimo išlaidos | H199: 165 | I199: 0.00 | J199: 0.00 | K199: 0.00 | L199: 0.00
A200: 3 | B200: 1 | C200: 1 | D200: 3 | E200: 1 | F200: 2 | G200: Kitų mašinų ir įrenginių įsigijimo išlaidos | H200: 166 | I200: 0.00 | J200: 0.00 | K200: 0.00 | L200: 0.00
A201: 3 | B201: 1 | C201: 1 | D201: 3 | E201: 1 | F201: 3 | G201: Ginklų ir karinės įrangos įsigijimo išlaidos | H201: 167 | I201: 0.00 | J201: 0.00 | K201: 0.00 | L201: 0.00
A202: 3 | B202: 1 | C202: 1 | D202: 3 | E202: 1 | F202: 4 | G202: Kompiuterinės techninės ir elektroninių ryšių įrangos įsigijimo išlaidos | H202: 168 | I202: 0.00 | J202: 0.00 | K202: 0.00 | L202: 0.00
A203: 3 | B203: 1 | C203: 1 | D203: 4 | G203: Kultūros ir kitų vertybių įsigijimo išlaidos | H203: 169 | I203: =I204 -> 0.00 | J203: =J204 -> 0.00 | K203: =K204 -> 0.00 | L203: =L204 -> 0.00
A204: 3 | B204: 1 | C204: 1 | D204: 4 | E204: 1 | G204: Kultūros ir kitų vertybių įsigijimo išlaidos | H204: 170 | I204: =SUM(I205:I207) -> 0.00 | J204: =SUM(J205:J207) -> 0.00 | K204: =SUM(K205:K207) -> 0.00 | L204: =SUM(L205:L207) -> 0.00
A205: 3 | B205: 1 | C205: 1 | D205: 4 | E205: 1 | F205: 1 | G205: Muziejinių vertybių įsigijimo išlaidos | H205: 171 | I205: 0.00 | J205: 0.00 | K205: 0.00 | L205: 0.00
A206: 3 | B206: 1 | C206: 1 | D206: 4 | E206: 1 | F206: 2 | G206: Antikvarinių ir kitų meno kūrinių įsigijimo išlaidos | H206: 172 | I206: 0.00 | J206: 0.00 | K206: 0.00 | L206: 0.00
A207: 3 | B207: 1 | C207: 1 | D207: 4 | E207: 1 | F207: 3 | G207: Kitų vertybių įsigijimo išlaidos | H207: 173 | I207: 0.00 | J207: 0.00 | K207: 0.00 | L207: 0.00
A208: 3 | B208: 1 | C208: 1 | D208: 5 | G208: Kito ilgalaikio materialiojo turto įsigijimo išlaidos | H208: 174 | I208: =I209 -> 0.00 | J208: 0.00 | K208: 0.00 | L208: 0.00
A209: 3 | B209: 1 | C209: 1 | D209: 5 | E209: 1 | G209: Kito ilgalaikio materialiojo turto įsigijimo išlaidos | H209: 175 | I209: 0.00 | J209: 0.00 | K209: 0.00 | L209: 0.00
... 166 more rows

Sheet Forma Nr.2 ML
J1: Biudžeto vykdymo ataskaitų rinkinių rengimo taisyklių
J2: 1 priedas
A8: (Biudžeto išlaidų sąmatos vykdymo 2025 m. birželio mėn. 30 d. ketvirčio, pusmečio, metų ataskaitos forma, Nr.2)
A10: Vaikų ir jaunimo laisvalaikio centras, 195174984
A11: (įstaigos pavadinimas, kodas Juridinių asmenų registre, adresas)
G13: BIUDŽETO IŠLAIDŲ SĄMATOS VYKDYMO
A14: 2025 M. BIRŽELIO MĖN. 30 D.
G15: 2 ketvirtis
G16: (I ketvirčio, pusmečio, 9 mėnesių, metinė)
B17: ATASKAITA
G19: 2025.07.10 Nr.________________
G20: (data)
E22: Žinių visuomenės plėtros programa
A23: (programos pavadinimas)
L24: Kodas
J25: Ministerijos / Savivaldybės
K26: Departamento
A27: Neformalusis vaikų švietimas | K27: Įstaigos | L27: 195174984
A28: 1.1.2.5. Neformaliojo ugdymo programų įgyvendinimas ir tinkamos aplinkos užtikrinimas Gargždų vaikų ir jaunimo laisvalaikio centre | J28: Programos | K28: 1
G29: Finansavimo šaltinio | H29: ML
G30: Valstybės funkcijos | I30: 09 | J30: 05 | K30: 01 | L30: 01
A31: Mokymo lėšos | L31: (eurais, ct)
A32: Išlaidų ekonominės klasifikacijos kodas | G32: Išlaidų pavadinimas | H32: Eil. Nr. | I32: Asignavimų planas, įskaitant patikslinimus | K32: Gauti asignavimai kartu su įskaitytu praėjusių metų lėšų likučiu | L32: Panaudoti asignavimai
I33: metams | J33: ataskaitiniam laikotarpiui
A34: 1 | G34: 2 | H34: 3 | I34: 4 | J34: 5 | K34: 6 | L34: 7
A35: 2 | G35: IŠLAIDOS | H35: 1 | I35: =SUM(I36+I47+I67+I88+I95+I115+I141+I160+I170) -> 47800.00 | J35: =SUM(J36+J47+J67+J88+J95+J115+J141+J160+J170) -> 29800.00 | K35: =SUM(K36+K47+K67+K88+K95+K115+K141+K160+K170) -> 29800.00 | L35: =SUM(L36+L47+L67+L88+L95+L115+L141+L160+L170) -> 29800.00
A36: 2 | B36: 1 | G36: Darbo užmokestis ir socialinis draudimas | H36: 2 | I36: =SUM(I37+I43) -> 47800.00 | J36: =SUM(J37+J43) -> 29800.00 | K36: =SUM(K37+K43) -> 29800.00 | L36: =SUM(L37+L43) -> 29800.00
A37: 2 | B37: 1 | C37: 1 | G37: Darbo užmokestis | H37: 3 | I37: =SUM(I38) -> 46900.00 | J37: =SUM(J38) -> 29300.00 | K37: =SUM(K38) -> 29300.00 | L37: =SUM(L38) -> 29300.00
A38: 2 | B38: 1 | C38: 1 | D38: 1 | G38: Darbo užmokestis | H38: 4 | I38: =SUM(I39+I41) -> 46900.00 | J38: =SUM(J39) -> 29300.00 | K38: 29300.00 | L38: 29300.00
A39: 2 | B39: 1 | C39: 1 | D39: 1 | E39: 1 | G39: Darbo užmokestis pinigais | H39: 5 | I39: =SUM(I40) -> 46900.00 | J39: 29300.00 | K39: 29300.00 | L39: 29300.00
A40: 2 | B40: 1 | C40: 1 | D40: 1 | E40: 1 | F40: 1 | G40: Darbo užmokestis pinigais | H40: 6 | I40: 46900.00 | J40: 29300.00 | K40: 29300.00 | L40: 29300.00
A41: 2 | B41: 1 | C41: 1 | D41: 1 | E41: 2 | G41: Pajamos natūra | H41: 7 | I41: =I42 -> 0.00 | J41: =J42 -> 0.00 | K41: =K42 -> 0.00 | L41: =L42 -> 0.00
A42: 2 | B42: 1 | C42: 1 | D42: 1 | E42: 2 | F42: 1 | G42: Pajamos natūra | H42: 8 | I42: 0.00 | J42: 0.00 | K42: 0.00 | L42: 0.00
A43: 2 | B43: 1 | C43: 2 | G43: Socialinio draudimo įmokos | H43: 9 | I43: =I44 -> 900.00 | J43: 500.00 | K43: 500.00 | L43: 500.00
A44: 2 | B44: 1 | C44: 2 | D44: 1 | G44: Socialinio draudimo įmokos | H44: 10 | I44: 900.00 | J44: 500.00 | K44: 500.00 | L44: 500.00
A45: 2 | B45: 1 | C45: 2 | D45: 1 | E45: 1 | G45: Socialinio draudimo įmokos | H45: 11 | I45: 900.00 | J45: 500.00 | K45: 500.00 | L45: 500.00
A46: 2 | B46: 1 | C46: 2 | D46: 1 | E46: 1 | F46: 1 | G46: Socialinio draudimo įmokos | H46: 12 | I46: 900.00 | J46: 500.00 | K46: 500.00 | L46: 500.00
A47: 2 | B47: 2 | G47: Prekių ir paslaugų įsigijimo išlaidos | H47: 13 | I47: =I48 -> 0.00 | J47: 0.00 | K47: 0.00 | L47: 0.00
A48: 2 | B48: 2 | C48: 1 | G48: Prekių ir paslaugų įsigijimo išlaidos | H48: 14 | I48: 0.00 | J48: 0.00 | K48: 0.00 | L48: 0.00
A49: 2 | B49: 2 | C49: 1 | D49: 1 | G49: Prekių ir paslaugų įsigijimo išlaidos | H49: 15 | I49: 0.00 | J49: 0.00 | K49: 0.00 | L49: 0.00
A50: 2 | B50: 2 | C50: 1 | D50: 1 | E50: 1 | G50: Prekių ir paslaugų įsigijimo išlaidos | H50: 16 | I50: =SUM(I51:I66) -> 0.00 | J50: =SUM(J51:J66) -> 0.00 | K50: =SUM(K51:K66) -> 0.00 | L50: =SUM(L51:L66) -> 0.00
A51: 2 | B51: 2 | C51: 1 | D51: 1 | E51: 1 | F51: 1 | G51: Mitybos išlaidos | H51: 17 | I51: 0.00 | J51: 0.00 | K51: 0.00 | L51: 0.00
A52: 2 | B52: 2 | C52: 1 | D52: 1 | E52: 1 | F52: 2 | G52: Medikamentų ir medicininių prekių bei paslaugų įsigijimo išlaidos | H52: 18 | I52: 0.00 | J52: 0.00 | K52: 0.00 | L52: 0.00
A53: 2 | B53: 2 | C53: 1 | D53: 1 | E53: 1 | F53: 5 | G53: Ryšių įrangos ir ryšių paslaugų įsigijimo išlaidos | H53: 19 | I53: 0.00 | J53: 0.00 | K53: 0.00 | L53: 0.00
A54: 2 | B54: 2 | C54: 1 | D54: 1 | E54: 1 | F54: 6 | G54: Transporto išlaikymo ir transporto paslaugų įsigijimo išlaidos | H54: 20 | I54: 0.00 | J54: 0.00 | K54: 0.00 | L54: 0.00
A55: 2 | B55: 2 | C55: 1 | D55: 1 | E55: 1 | F55: 7 | G55: Aprangos ir patalynės įsigijimo bei priežiūros išlaidos | H55: 21 | I55: 0.00 | J55: 0.00 | K55: 0.00 | L55: 0.00
A56: 2 | B56: 2 | C56: 1 | D56: 1 | E56: 1 | F56: 11 | G56: Komandiruočių išlaidos | H56: 22 | I56: 0.00 | J56: 0.00 | K56: 0.00 | L56: 0.00
A57: 2 | B57: 2 | C57: 1 | D57: 1 | E57: 1 | F57: 12 | G57: Gyvenamųjų vietovių viešojo ūkio išlaidos | H57: 23 | I57: 0.00 | J57: 0.00 | K57: 0.00 | L57: 0.00
A58: 2 | B58: 2 | C58: 1 | D58: 1 | E58: 1 | F58: 14 | G58: Materialiojo ir nematerialiojo turto nuomos išlaidos | H58: 24 | I58: 0.00 | J58: 0.00 | K58: 0.00 | L58: 0.00
A59: 2 | B59: 2 | C59: 1 | D59: 1 | E59: 1 | F59: 15 | G59: Materialiojo turto paprastojo remonto prekių ir paslaugų įsigijimo išlaidos | H59: 25 | I59: 0.00 | J59: 0.00 | K59: 0.00 | L59: 0.00
A60: 2 | B60: 2 | C60: 1 | D60: 1 | E60: 1 | F60: 16 | G60: Kvalifikacijos kėlimo išlaidos | H60: 26 | I60: 0.00 | J60: 0.00 | K60: 0.00 | L60: 0.00
A61: 2 | B61: 2 | C61: 1 | D61: 1 | E61: 1 | F61: 17 | G61: Ekspertų ir konsultantų paslaugų įsigijimo išlaidos | H61: 27 | I61: 0.00 | J61: 0.00 | K61: 0.00 | L61: 0.00
A62: 2 | B62: 2 | C62: 1 | D62: 1 | E62: 1 | F62: 20 | G62: Komunalinių paslaugų įsigijimo išlaidos | H62: 28 | I62: 0.00 | J62: 0.00 | K62: 0.00 | L62: 0.00
A63: 2 | B63: 2 | C63: 1 | D63: 1 | E63: 1 | F63: 21 | G63: Informacinių technologijų prekių ir paslaugų įsigijimo išlaidos | H63: 29 | I63: 0.00 | J63: 0.00 | K63: 0.00 | L63: 0.00
A64: 2 | B64: 2 | C64: 1 | D64: 1 | E64: 1 | F64: 22 | G64: Reprezentacinės išlaidos | H64: 30 | I64: 0.00 | J64: 0.00 | K64: 0.00 | L64: 0.00
A65: 2 | B65: 2 | C65: 1 | D65: 1 | E65: 1 | F65: 23 | G65: Viešinimo išlaidos | H65: 31 | I65: 0.00 | J65: 0.00 | K65: 0.00 | L65: 0.00
A66: 2 | B66: 2 | C66: 1 | D66: 1 | E66: 1 | F66: 30 | G66: Kitų prekių ir paslaugų įsigijimo išlaidos | H66: 32 | I66: 0.00 | J66: 0.00 | K66: 0.00 | L66: 0.00
A67: 2 | B67: 3 | G67: Palūkanos | H67: 33 | I67: =I68 -> 0.00 | J67: =J68 -> 0.00 | K67: =K68 -> 0.00 | L67: =L68 -> 0.00
A68: 2 | B68: 3 | C68: 1 | G68: Palūkanos | H68: 34 | I68: =SUM(I69+I74+I79) -> 0.00 | J68: =SUM(J69+J74+J79) -> 0.00 | K68: =SUM(K69+K74+K79) -> 0.00 | L68: =SUM(L69+L74+L79) -> 0.00
A69: 2 | B69: 3 | C69: 1 | D69: 1 | G69: Palūkanos nerezidentams | H69: 35 | I69: =I70 -> 0.00 | J69: =J70 -> 0.00 | K69: =K70 -> 0.00 | L69: =L70 -> 0.00
A70: 2 | B70: 3 | C70: 1 | D70: 1 | E70: 1 | G70: Palūkanos nerezidentams | H70: 36 | I70: =SUM(I71:I73) -> 0.00 | J70: =SUM(J71:J73) -> 0.00 | K70: =SUM(K71:K73) -> 0.00 | L70: =SUM(L71:L73) -> 0.00
A71: 2 | B71: 3 | C71: 1 | D71: 1 | E71: 1 | F71: 1 | G71: Asignavimų valdytojų sumokėtos palūkanos | H71: 37 | I71: 0.00 | J71: 0.00 | K71: 0.00 | L71: 0.00
A72: 2 | B72: 3 | C72: 1 | D72: 1 | E72: 1 | F72: 2 | G72: Finansų ministerijos sumokėtos palūkanos | H72: 38 | I72: 0.00 | J72: 0.00 | K72: 0.00 | L72: 0.00
A73: 2 | B73: 3 | C73: 1 | D73: 1 | E73: 1 | F73: 3 | G73: Savivaldybių sumokėtos palūkanos | H73: 39 | I73: 0.00 | J73: 0.00 | K73: 0.00 | L73: 0.00
A74: 2 | B74: 3 | C74: 1 | D74: 2 | G74: Palūkanos rezidentams, kitiems nei valdžios sektorius (tik už tiesioginę skolą) | H74: 40 | I74: =I75 -> 0.00 | J74: =J75 -> 0.00 | K74: =K75 -> 0.00 | L74: =L75 -> 0.00
A75: 2 | B75: 3 | C75: 1 | D75: 2 | E75: 1 | G75: Palūkanos rezidentams, kitiems nei valdžios sektorius (tik už tiesioginę skolą) | H75: 41 | I75: =SUM(I76:I78) -> 0.00 | J75: =SUM(J76:J78) -> 0.00 | K75: =SUM(K76:K78) -> 0.00 | L75: =SUM(L76:L78) -> 0.00
A76: 2 | B76: 3 | C76: 1 | D76: 2 | E76: 1 | F76: 1 | G76: Asignavimų valdytojų sumokėtos palūkanos | H76: 42 | I76: 0.00 | J76: 0.00 | K76: 0.00 | L76: 0.00
A77: 2 | B77: 3 | C77: 1 | D77: 2 | E77: 1 | F77: 2 | G77: Finansų ministerijos sumokėtos palūkanos | H77: 43 | I77: 0.00 | J77: 0.00 | K77: 0.00 | L77: 0.00
A78: 2 | B78: 3 | C78: 1 | D78: 2 | E78: 1 | F78: 3 | G78: Savivaldybių sumokėtos palūkanos | H78: 44 | I78: 0.00 | J78: 0.00 | K78: 0.00 | L78: 0.00
A79: 2 | B79: 3 | C79: 1 | D79: 3 | G79: Palūkanos kitiems valdžios sektoriaus subjektams | H79: 45 | I79: =I80 -> 0.00 | J79: =J80 -> 0.00 | K79: =K80 -> 0.00 | L79: =L80 -> 0.00
A80: 2 | B80: 3 | C80: 1 | D80: 3 | E80: 1 | G80: Palūkanos kitiems valdžios sektoriaus subjektams | H80: 46 | I80: =SUM(I81:I83) -> 0.00 | J80: =SUM(J81:J83) -> 0.00 | K80: =SUM(K81:K83) -> 0.00 | L80: =SUM(L81:L83) -> 0.00
A81: 2 | B81: 3 | C81: 1 | D81: 3 | E81: 1 | F81: 1 | G81: Palūkanos valstybės biudžetui | H81: 47 | I81: 0.00 | J81: 0.00 | K81: 0.00 | L81: 0.00
A82: 2 | B82: 3 | C82: 1 | D82: 3 | E82: 1 | F82: 2 | G82: Palūkanos savivaldybių biudžetams | H82: 48 | I82: 0.00 | J82: 0.00 | K82: 0.00 | L82: 0.00
A83: 2 | B83: 3 | C83: 1 | D83: 3 | E83: 1 | F83: 3 | G83: Palūkanos nebiudžetiniams fondams | H83: 49 | I83: 0.00 | J83: 0.00 | K83: 0.00 | L83: 0.00
A84: 2 | B84: 3 | C84: 2 | G84: Žemės nuoma | H84: 50 | I84: =I85 -> 0.00 | J84: 0.00 | K84: 0.00 | L84: 0.00
A85: 2 | B85: 3 | C85: 2 | D85: 1 | G85: Žemės nuoma | H85: 51 | I85: 0.00 | J85: 0.00 | K85: 0.00 | L85: 0.00
A86: 2 | B86: 3 | C86: 2 | D86: 1 | E86: 1 | G86: Žemės nuoma | H86: 52 | I86: =SUM(I87) -> 0.00 | J86: =SUM(J87) -> 0.00 | K86: =SUM(K87) -> 0.00 | L86: =SUM(L87) -> 0.00
A87: 2 | B87: 3 | C87: 2 | D87: 1 | E87: 1 | F87: 1 | G87: Žemės nuoma | H87: 53 | I87: 0.00 | J87: 0.00 | K87: 0.00 | L87: 0.00
A88: 2 | B88: 4 | G88: Subsidijos | H88: 54 | I88: =I89 -> 0.00 | J88: 0.00 | K88: 0.00 | L88: 0.00
A89: 2 | B89: 4 | C89: 1 | G89: Subsidijos iš biudžeto lėšų | H89: 55 | I89: 0.00 | J89: 0.00 | K89: 0.00 | L89: 0.00
A90: 2 | B90: 4 | C90: 1 | D90: 1 | G90: Subsidijos iš biudžeto lėšų | H90: 56 | I90: 0.00 | J90: 0.00 | K90: 0.00 | L90: 0.00
A91: 2 | B91: 4 | C91: 1 | D91: 1 | E91: 1 | G91: Subsidijos iš biudžeto lėšų | H91: 57 | I91: =SUM(I92:I94) -> 0.00 | J91: =SUM(J92:J94) -> 0.00 | K91: =SUM(K92:K94) -> 0.00 | L91: =SUM(L92:L94) -> 0.00
A92: 2 | B92: 4 | C92: 1 | D92: 1 | E92: 1 | F92: 1 | G92: Subsidijos importui | H92: 58 | I92: 0.00 | J92: 0.00 | K92: 0.00 | L92: 0.00
A93: 2 | B93: 4 | C93: 1 | D93: 1 | E93: 1 | F93: 2 | G93: Subsidijos gaminiams | H93: 59 | I93: 0.00 | J93: 0.00 | K93: 0.00 | L93: 0.00
A94: 2 | B94: 4 | C94: 1 | D94: 1 | E94: 1 | F94: 3 | G94: Subsidijos gamybai | H94: 60 | I94: 0.00 | J94: 0.00 | K94: 0.00 | L94: 0.00
A95: 2 | B95: 5 | G95: Dotacijos | H95: 61 | I95: =SUM(I96+I101+I106) -> 0.00 | J95: =SUM(J96+J101+J106) -> 0.00 | K95: =SUM(K96+K101+K106) -> 0.00 | L95: =SUM(L96+L101+L106) -> 0.00
A96: 2 | B96: 5 | C96: 1 | G96: Dotacijos užsienio valstybėms | H96: 62 | I96: =I97 -> 0.00 | J96: 0.00 | K96: 0.00 | L96: 0.00
A97: 2 | B97: 5 | C97: 1 | D97: 1 | G97: Dotacijos užsienio valstybėms | H97: 63 | I97: 0.00 | J97: 0.00 | K97: 0.00 | L97: 0.00
A98: 2 | B98: 5 | C98: 1 | D98: 1 | E98: 1 | G98: Dotacijos užsienio valstybėms | H98: 64 | I98: =SUM(I99:I100) -> 0.00 | J98: =SUM(J99:J100) -> 0.00 | K98: =SUM(K99:K100) -> 0.00 | L98: =SUM(L99:L100) -> 0.00
A99: 2 | B99: 5 | C99: 1 | D99: 1 | E99: 1 | F99: 1 | G99: Dotacijos užsienio valstybėms einamiesiems tikslams | H99: 65 | I99: 0.00 | J99: 0.00 | K99: 0.00 | L99: 0.00
A100: 2 | B100: 5 | C100: 1 | D100: 1 | E100: 1 | F100: 2 | G100: Dotacijos užsienio valstybėms turtui įsigyti | H100: 66 | I100: 0.00 | J100: 0.00 | K100: 0.00 | L100: 0.00
A101: 2 | B101: 5 | C101: 2 | G101: Dotacijos tarptautinėms organizacijoms | H101: 67 | I101: =I102 -> 0.00 | J101: 0.00 | K101: 0.00 | L101: 0.00
A102: 2 | B102: 5 | C102: 2 | D102: 1 | G102: Dotacijos tarptautinėms organizacijoms | H102: 68 | I102: 0.00 | J102: 0.00 | K102: 0.00 | L102: 0.00
A103: 2 | B103: 5 | C103: 2 | D103: 1 | E103: 1 | G103: Dotacijos tarptautinėms organizacijoms | H103: 69 | I103: =SUM(I104:I105) -> 0.00 | J103: =SUM(J104:J105) -> 0.00 | K103: =SUM(K104:K105) -> 0.00 | L103: =SUM(L104:L105) -> 0.00
A104: 2 | B104: 5 | C104: 2 | D104: 1 | E104: 1 | F104: 1 | G104: Dotacijos tarptautinėms organizacijoms einamiesiems tikslams | H104: 70 | I104: 0.00 | J104: 0.00 | K104: 0.00 | L104: 0.00
A105: 2 | B105: 5 | C105: 2 | D105: 1 | E105: 1 | F105: 2 | G105: Dotacijos tarptautinėms organizacijoms turtui įsigyti | H105: 71 | I105: 0.00 | J105: 0.00 | K105: 0.00 | L105: 0.00
A106: 2 | B106: 5 | C106: 3 | G106: Dotacijos kitiems valdžios sektoriaus subjektams | H106: 72 | I106: =I107+I111 -> 0.00 | J106: =J107+J111 -> 0.00 | K106: =K107+K111 -> 0.00 | L106: =L107+L111 -> 0.00
A107: 2 | B107: 5 | C107: 3 | D107: 1 | G107: Dotacijos kitiems valdžios sektoriaus subjektams einamiesiems tikslams | H107: 73 | I107: =I108 -> 0.00 | J107: =J108 -> 0.00 | K107: =K108 -> 0.00 | L107: =L108 -> 0.00
A108: 2 | B108: 5 | C108: 3 | D108: 1 | E108: 1 | G108: Dotacijos kitiems valdžios sektoriaus subjektams einamiesiems tikslams | H108: 74 | I108: =SUM(I109:I110) -> 0.00 | J108: =SUM(J109:J110) -> 0.00 | K108: =SUM(K109:K110) -> 0.00 | L108: =SUM(L109:L110) -> 0.00
A109: 2 | B109: 5 | C109: 3 | D109: 1 | E109: 1 | F109: 1 | G109: Dotacijos kitiems valdžios sektoriaus subjektams einamiesiems tikslams | H109: 75 | I109: 0.00 | J109: 0.00 | K109: 0.00 | L109: 0.00
A110: 2 | B110: 5 | C110: 3 | D110: 1 | E110: 1 | F110: 2 | G110: Dotacijos savivaldybėms einamiesiems tikslams | H110: 76 | I110: 0.00 | J110: 0.00 | K110: 0.00 | L110: 0.00
A111: 2 | B111: 5 | C111: 3 | D111: 2 | G111: Dotacijos kitiems valdžios sektoriaus subjektams turtui įsigyti | H111: 77 | I111: =I112 -> 0.00 | J111: =J112 -> 0.00 | K111: =K112 -> 0.00 | L111: =L112 -> 0.00
A112: 2 | B112: 5 | C112: 3 | D112: 2 | E112: 1 | G112: Dotacijos kitiems valdžios sektoriaus subjektams turtui įsigyti | H112: 78 | I112: =SUM(I113:I114) -> 0.00 | J112: =SUM(J113:J114) -> 0.00 | K112: =SUM(K113:K114) -> 0.00 | L112: =SUM(L113:L114) -> 0.00
A113: 2 | B113: 5 | C113: 3 | D113: 2 | E113: 1 | F113: 1 | G113: Dotacijos kitiems valdžios sektoriaus subjektams turtui įsigyti | H113: 79 | I113: 0.00 | J113: 0.00 | K113: 0.00 | L113: 0.00
A114: 2 | B114: 5 | C114: 3 | D114: 2 | E114: 1 | F114: 2 | G114: Dotacijos savivaldybėms turtui įsigyti | H114: 80 | I114: 0.00 | J114: 0.00 | K114: 0.00 | L114: 0.00
A115: 2 | B115: 6 | G115: Įmokos į Europos Sąjungos biudžetą | H115: 81 | I115: =SUM(I116+I121+I125+I129+I133+I137) -> 0.00 | J115: =SUM(J116+J121+J125+J129+J133+J137) -> 0.00 | K115: =SUM(K116+K121+K125+K129+K133+K137) -> 0.00 | L115: =SUM(L116+L121+L125+L129+L133+L137) -> 0.00
A116: 2 | B116: 6 | C116: 1 | G116: Tradiciniai nuosavi ištekliai | H116: 82 | I116: =I117 -> 0.00 | J116: 0.00 | K116: 0.00 | L116: 0.00
A117: 2 | B117: 6 | C117: 1 | D117: 1 | G117: Tradiciniai nuosavi ištekliai | H117: 83 | I117: 0.00 | J117: 0.00 | K117: 0.00 | L117: 0.00
A118: 2 | B118: 6 | C118: 1 | D118: 1 | E118: 1 | G118: Tradiciniai nuosavi ištekliai | H118: 84 | I118: =SUM(I119:I120) -> 0.00 | J118: =SUM(J119:J120) -> 0.00 | K118: =SUM(K119:K120) -> 0.00 | L118: =SUM(L119:L120) -> 0.00
A119: 2 | B119: 6 | C119: 1 | D119: 1 | E119: 1 | F119: 1 | G119: Muitai | H119: 85 | I119: 0.00 | J119: 0.00 | K119: 0.00 | L119: 0.00
A120: 2 | B120: 6 | C120: 1 | D120: 1 | E120: 1 | F120: 2 | G120: Cukraus sektoriaus mokesčiai | H120: 86 | I120: 0.00 | J120: 0.00 | K120: 0.00 | L120: 0.00
A121: 2 | B121: 6 | C121: 2 | G121: Pridėtinės vertės mokesčio nuosavi ištekliai | H121: 87 | I121: =I122 -> 0.00 | J121: 0.00 | K121: 0.00 | L121: 0.00
A122: 2 | B122: 6 | C122: 2 | D122: 1 | G122: Pridėtinės vertės mokesčio nuosavi ištekliai | H122: 88 | I122: 0.00 | J122: 0.00 | K122: 0.00 | L122: 0.00
A123: 2 | B123: 6 | C123: 2 | D123: 1 | E123: 1 | G123: Pridėtinės vertės mokesčio nuosavi ištekliai | H123: 89 | I123: 0.00 | J123: 0.00 | K123: 0.00 | L123: 0.00
A124: 2 | B124: 6 | C124: 2 | D124: 1 | E124: 1 | F124: 1 | G124: Pridėtinės vertės mokesčio nuosavi ištekliai | H124: 90 | I124: 0.00 | J124: 0.00 | K124: 0.00 | L124: 0.00
A125: 2 | B125: 6 | C125: 3 | G125: Bendrųjų nacionalinių pajamų nuosavi ištekliai | H125: 91 | I125: =I126 -> 0.00 | J125: 0.00 | K125: 0.00 | L125: 0.00
A126: 2 | B126: 6 | C126: 3 | D126: 1 | G126: Bendrųjų nacionalinių pajamų nuosavi ištekliai | H126: 92 | I126: 0.00 | J126: 0.00 | K126: 0.00 | L126: 0.00
A127: 2 | B127: 6 | C127: 3 | D127: 1 | E127: 1 | G127: Bendrųjų nacionalinių pajamų nuosavi ištekliai | H127: 93 | I127: 0.00 | J127: 0.00 | K127: 0.00 | L127: 0.00
A128: 2 | B128: 6 | C128: 3 | D128: 1 | E128: 1 | F128: 1 | G128: Bendrųjų nacionalinių pajamų nuosavi ištekliai | H128: 94 | I128: 0.00 | J128: 0.00 | K128: 0.00 | L128: 0.00
A129: 2 | B129: 6 | C129: 4 | G129: Biudžeto disbalansų korekcija Jungtinės Karalystės naudai | H129: 95 | I129: =I130 -> 0.00 | J129: 0.00 | K129: 0.00 | L129: 0.00
A130: 2 | B130: 6 | C130: 4 | D130: 1 | G130: Biudžeto disbalansų korekcija Jungtinės Karalystės naudai | H130: 96 | I130: 0.00 | J130: 0.00 | K130: 0.00 | L130: 0.00
A131: 2 | B131: 6 | C131: 4 | D131: 1 | E131: 1 | G131: Biudžeto disbalansų korekcija Jungtinės Karalystės naudai | H131: 97 | I131: 0.00 | J131: 0.00 | K131: 0.00 | L131: 0.00
A132: 2 | B132: 6 | C132: 4 | D132: 1 | E132: 1 | F132: 1 | G132: Biudžeto disbalansų korekcija Jungtinės Karalystės naudai | H132: 98 | I132: 0.00 | J132: 0.00 | K132: 0.00 | L132: 0.00
A133: 2 | B133: 6 | C133: 5 | G133: Su nuosavais ištekliais susijusios baudos, delspinigiai ir neigiamos palūkanos | H133: 99 | I133: =I134 -> 0.00 | J133: 0.00 | K133: 0.00 | L133: 0.00
A134: 2 | B134: 6 | C134: 5 | D134: 1 | G134: Su nuosavais ištekliais susijusios baudos, delspinigiai ir neigiamos palūkanos | H134: 100 | I134: 0.00 | J134: 0.00 | K134: 0.00 | L134: 0.00
A135: 2 | B135: 6 | C135: 5 | D135: 1 | E135: 1 | G135: Su nuosavais ištekliais susijusios baudos, delspinigiai ir neigiamos palūkanos | H135: 101 | I135: 0.00 | J135: 0.00 | K135: 0.00 | L135: 0.00
A136: 2 | B136: 6 | C136: 5 | D136: 1 | E136: 1 | F136: 1 | G136: Su nuosavais ištekliais susijusios baudos, delspinigiai ir neigiamos palūkanos | H136: 102 | I136: 0.00 | J136: 0.00 | K136: 0.00 | L136: 0.00
A137: 2 | B137: 6 | C137: 6 | G137: Neperdirbto plastiko atliekų nuosavi ištekliai | H137: 103 | I137: =I138 -> 0.00 | J137: 0.00 | K137: 0.00 | L137: 0.00
A138: 2 | B138: 6 | C138: 6 | D138: 1 | G138: Neperdirbto plastiko atliekų nuosavi ištekliai | H138: 104 | I138: 0.00 | J138: 0.00 | K138: 0.00 | L138: 0.00
A139: 2 | B139: 6 | C139: 6 | D139: 1 | E139: 1 | G139: Neperdirbto plastiko atliekų nuosavi ištekliai | H139: 105 | I139: 0.00 | J139: 0.00 | K139: 0.00 | L139: 0.00
A140: 2 | B140: 6 | C140: 6 | D140: 1 | E140: 1 | F140: 1 | G140: Neperdirbto plastiko atliekų nuosavi ištekliai | H140: 106 | I140: 0.00 | J140: 0.00 | K140: 0.00 | L140: 0.00
A141: 2 | B141: 7 | G141: Socialinės išmokos (pašalpos) | H141: 107 | I141: =SUM(I142+I147+I155) -> 0.00 | J141: =SUM(J142+J147+J155) -> 0.00 | K141: =SUM(K142+K147+K155) -> 0.00 | L141: =SUM(L142+L147+L155) -> 0.00
A142: 2 | B142: 7 | C142: 1 | G142: Socialinio draudimo išmokos (pašalpos) | H142: 108 | I142: =I143 -> 0.00 | J142: 0.00 | K142: 0.00 | L142: 0.00
A143: 2 | B143: 7 | C143: 1 | D143: 1 | G143: Socialinio draudimo išmokos (pašalpos) | H143: 109 | I143: 0.00 | J143: 0.00 | K143: 0.00 | L143: 0.00
A144: 2 | B144: 7 | C144: 1 | D144: 1 | E144: 1 | G144: Socialinio draudimo išmokos (pašalpos) | H144: 110 | I144: =SUM(I145:I146) -> 0.00 | J144: =SUM(J145:J146) -> 0.00 | K144: =SUM(K145:K146) -> 0.00 | L144: =SUM(L145:L146) -> 0.00
A145: 2 | B145: 7 | C145: 1 | D145: 1 | E145: 1 | F145: 1 | G145: Socialinio draudimo išmokos pinigais | H145: 111 | I145: 0.00 | J145: 0.00 | K145: 0.00 | L145: 0.00
A146: 2 | B146: 7 | C146: 1 | D146: 1 | E146: 1 | F146: 2 | G146: Socialinio draudimo išmokos natūra | H146: 112 | I146: 0.00 | J146: 0.00 | K146: 0.00 | L146: 0.00
A147: 2 | B147: 7 | C147: 2 | G147: Socialinė parama (socialinės paramos pašalpos) ir rentos | H147: 113 | I147: =I148 -> 0.00 | J147: 0.00 | K147: 0.00 | L147: 0.00
A148: 2 | B148: 7 | C148: 2 | D148: 1 | G148: Socialinė parama (socialinės paramos pašalpos) | H148: 114 | I148: 0.00 | J148: 0.00 | K148: 0.00 | L148: 0.00
A149: 2 | B149: 7 | C149: 2 | D149: 1 | E149: 1 | G149: Socialinė parama (socialinės paramos pašalpos) | H149: 115 | I149: =SUM(I150:I151) -> 0.00 | J149: =SUM(J150:J151) -> 0.00 | K149: =SUM(K150:K151) -> 0.00 | L149: =SUM(L150:L151) -> 0.00
A150: 2 | B150: 7 | C150: 2 | D150: 1 | E150: 1 | F150: 1 | G150: Socialinė parama pinigais | H150: 116 | I150: 0.00 | J150: 0.00 | K150: 0.00 | L150: 0.00
A151: 2 | B151: 7 | C151: 2 | D151: 1 | E151: 1 | F151: 2 | G151: Socialinė parama natūra | H151: 117 | I151: 0.00 | J151: 0.00 | K151: 0.00 | L151: 0.00
A152: 2 | B152: 7 | C152: 2 | D152: 2 | G152: Rentos | H152: 118 | I152: =I153 -> 0.00 | J152: =J153 -> 0.00 | K152: =K153 -> 0.00 | L152: =L153 -> 0.00
A153: 2 | B153: 7 | C153: 2 | D153: 2 | E153: 1 | G153: Rentos | H153: 119 | I153: =SUM(I154) -> 0.00 | J153: =SUM(J154) -> 0.00 | K153: =SUM(K154) -> 0.00 | L153: =SUM(L154) -> 0.00
A154: 2 | B154: 7 | C154: 2 | D154: 2 | E154: 1 | F154: 1 | G154: Rentos | H154: 120 | I154: 0.00 | J154: 0.00 | K154: 0.00 | L154: 0.00
A155: 2 | B155: 7 | C155: 3 | G155: Darbdavių socialinė parama | H155: 121 | I155: =I156 -> 0.00 | J155: 0.00 | K155: 0.00 | L155: 0.00
A156: 2 | B156: 7 | C156: 3 | D156: 1 | G156: Darbdavių socialinė parama | H156: 122 | I156: 0.00 | J156: 0.00 | K156: 0.00 | L156: 0.00
A157: 2 | B157: 7 | C157: 3 | D157: 1 | E157: 1 | G157: Darbdavių socialinė parama | H157: 123 | I157: =SUM(I158:I159) -> 0.00 | J157: =SUM(J158:J159) -> 0.00 | K157: =SUM(K158:K159) -> 0.00 | L157: =SUM(L158:L159) -> 0.00
A158: 2 | B158: 7 | C158: 3 | D158: 1 | E158: 1 | F158: 1 | G158: Darbdavių socialinė parama pinigais | H158: 124 | I158: 0.00 | J158: 0.00 | K158: 0.00 | L158: 0.00
A159: 2 | B159: 7 | C159: 3 | D159: 1 | E159: 1 | F159: 2 | G159: Darbdavių socialinė parama natūra | H159: 125 | I159: 0.00 | J159: 0.00 | K159: 0.00 | L159: 0.00
A160: 2 | B160: 8 | G160: Kitos išlaidos | H160: 126 | I160: =I161 -> 0.00 | J160: =J161 -> 0.00 | K160: =K161 -> 0.00 | L160: =L161 -> 0.00
A161: 2 | B161: 8 | C161: 1 | G161: Kitos išlaidos | H161: 127 | I161: =I162+I167 -> 0.00 | J161: =J162+J167 -> 0.00 | K161: =K162+K167 -> 0.00 | L161: =L162+L167 -> 0.00
A162: 2 | B162: 8 | C162: 1 | D162: 1 | G162: Kitos išlaidos einamiesiems tikslams | H162: 128 | I162: =I163 -> 0.00 | J162: =J163 -> 0.00 | K162: =K163 -> 0.00 | L162: =L163 -> 0.00
A163: 2 | B163: 8 | C163: 1 | D163: 1 | E163: 1 | G163: Kitos išlaidos einamiesiems tikslams | H163: 129 | I163: =SUM(I164:I166) -> 0.00 | J163: =SUM(J164:J166) -> 0.00 | K163: =SUM(K164:K166) -> 0.00 | L163: =SUM(L164:L166) -> 0.00
A164: 2 | B164: 8 | C164: 1 | D164: 1 | E164: 1 | F164: 1 | G164: Stipendijoms | H164: 130 | I164: 0.00 | J164: 0.00 | K164: 0.00 | L164: 0.00
A165: 2 | B165: 8 | C165: 1 | D165: 1 | E165: 1 | F165: 2 | G165: Kitos išlaidos kitiems einamiesiems tikslams | H165: 131 | I165: 0.00 | J165: 0.00 | K165: 0.00 | L165: 0.00
A166: 2 | B166: 8 | C166: 1 | D166: 1 | E166: 1 | F166: 3 | G166: Valiutos kurso įtaka | H166: 132 | I166: 0.00 | J166: 0.00 | K166: 0.00 | L166: 0.00
A167: 2 | B167: 8 | C167: 1 | D167: 2 | G167: Kitos išlaidos turtui įsigyti | H167: 133 | I167: =I168 -> 0.00 | J167: 0.00 | K167: 0.00 | L167: 0.00
A168: 2 | B168: 8 | C168: 1 | D168: 2 | E168: 1 | G168: Kitos išlaidos turtui įsigyti | H168: 134 | I168: 0.00 | J168: 0.00 | K168: 0.00 | L168: 0.00
A169: 2 | B169: 8 | C169: 1 | D169: 2 | E169: 1 | F169: 1 | G169: Kitos išlaidos turtui įsigyti | H169: 135 | I169: 0.00 | J169: 0.00 | K169: 0.00 | L169: 0.00
A170: 2 | B170: 9 | G170: Pervedamos Europos Sąjungos, kitos tarptautinės finansinės paramos ir bendrojo finansavimo lėšos | H170: 136 | I170: =I171+I175 -> 0.00 | J170: =J171+J175 -> 0.00 | K170: =K171+K175 -> 0.00 | L170: =L171+L175 -> 0.00
A171: 2 | B171: 9 | C171: 1 | G171: Subsidijos iš Europos Sąjungos ir kitos tarptautinės finansinės paramos lėšų (ne valdžios sektoriui) | H171: 137 | I171: =I172 -> 0.00 | J171: 0.00 | K171: 0.00 | L171: 0.00
A172: 2 | B172: 9 | C172: 1 | D172: 1 | G172: Subsidijos iš Europos Sąjungos ir kitos tarptautinės finansinės paramos lėšų (ne valdžios sektoriui) | H172: 138 | I172: 0.00 | J172: 0.00 | K172: 0.00 | L172: 0.00
A173: 2 | B173: 9 | C173: 1 | D173: 1 | E173: 1 | G173: Subsidijos iš Europos Sąjungos ir kitos tarptautinės finansinės paramos lėšų (ne valdžios sektoriui) | H173: 139 | I173: 0.00 | J173: 0.00 | K173: 0.00 | L173: 0.00
A174: 2 | B174: 9 | C174: 1 | D174: 1 | E174: 1 | F174: 1 | G174: Subsidijos iš Europos Sąjungos ir kitos tarptautinės finansinės paramos lėšų (ne valdžios sektoriui) | H174: 140 | I174: 0.00 | J174: 0.00 | K174: 0.00 | L174: 0.00
A175: 2 | B175: 9 | C175: 2 | G175: Pervedamos Europos Sąjungos, kitos tarptautinės finansinės paramos ir bendrojo finansavimo lėšos | H175: 141 | I175: =SUM(I176+I181) -> 0.00 | J175: =SUM(J176+J181) -> 0.00 | K175: =SUM(K176+K181) -> 0.00 | L175: =SUM(L176+L181) -> 0.00
A176: 2 | B176: 9 | C176: 2 | D176: 1 | G176: Pervedamos Europos Sąjungos, kitos tarptautinės finansinės paramos ir bendrojo finansavimo lėšos einamiesiems tikslams | H176: 142 | I176: =I177 -> 0.00 | J176: =J177 -> 0.00 | K176: =K177 -> 0.00 | L176: =L177 -> 0.00
A177: 2 | B177: 9 | C177: 2 | D177: 1 | E177: 1 | G177: Pervedamos Europos Sąjungos, kitos tarptautinės finansinės paramos ir bendrojo finansavimo lėšos einamiesiems tikslams | H177: 143 | I177: =SUM(I178:I180) -> 0.00 | J177: =SUM(J178:J180) -> 0.00 | K177: =SUM(K178:K180) -> 0.00 | L177: =SUM(L178:L180) -> 0.00
A178: 2 | B178: 9 | C178: 2 | D178: 1 | E178: 1 | F178: 1 | G178: Pervedamos Europos Sąjungos, kitos tarptautinės finansinės paramos ir bendrojo finansavimo lėšos einamiesiems tikslams savivaldybėms | H178: 144 | I178: 0.00 | J178: 0.00 | K178: 0.00 | L178: 0.00
A179: 2 | B179: 9 | C179: 2 | D179: 1 | E179: 1 | F179: 2 | G179: Pervedamos Europos Sąjungos, kitos tarptautinės finansinės paramos ir bendrojo finansavimo lėšos einamiesiems tikslams kitiems valdžios sektoriaus subjektams | H179: 145 | I179: 0.00 | J179: 0.00 | K179: 0.00 | L179: 0.00
A180: 2 | B180: 9 | C180: 2 | D180: 1 | E180: 1 | F180: 3 | G180: Pervedamos Europos Sąjungos, kitos tarptautinės finansinės paramos ir bendrojo finansavimo lėšos einamiesiems tikslams ne valdžios sektoriui | H180: 146 | I180: 0.00 | J180: 0.00 | K180: 0.00 | L180: 0.00
A181: 2 | B181: 9 | C181: 2 | D181: 2 | G181: Pervedamos Europos Sąjungos, kitos tarptautinės finansinės paramos ir bendrojo finansavimo lėšos investicijoms | H181: 147 | I181: =I182 -> 0.00 | J181: =J182 -> 0.00 | K181: =K182 -> 0.00 | L181: =L182 -> 0.00
A182: 2 | B182: 9 | C182: 2 | D182: 2 | E182: 1 | G182: Pervedamos Europos Sąjungos, kitos tarptautinės finansinės paramos ir bendrojo finansavimo lėšos investicijoms | H182: 148 | I182: =SUM(I183:I185) -> 0.00 | J182: =SUM(J183:J185) -> 0.00 | K182: =SUM(K183:K185) -> 0.00 | L182: =SUM(L183:L185) -> 0.00
A183: 2 | B183: 9 | C183: 2 | D183: 2 | E183: 1 | F183: 1 | G183: Pervedamos Europos Sąjungos, kitos tarptautinės finansinės paramos ir bendrojo finansavimo lėšos investicijoms, skirtoms savivaldybėms | H183: 149 | I183: 0.00 | J183: 0.00 | K183: 0.00 | L183: 0.00
A184: 2 | B184: 9 | C184: 2 | D184: 2 | E184: 1 | F184: 2 | G184: Pervedamos Europos Sąjungos, kitos tarptautinės finansinės paramos ir bendrojo finansavimo lėšos investicijoms kitiems valdžios sektoriaus subjektams | H184: 150 | I184: 0.00 | J184: 0.00 | K184: 0.00 | L184: 0.00
A185: 2 | B185: 9 | C185: 2 | D185: 2 | E185: 1 | F185: 3 | G185: Pervedamos Europos Sąjungos, kitos tarptautinės finansinės paramos ir bendrojo finansavimo lėšos investicijoms ne valdžios sektoriui | H185: 151 | I185: 0.00 | J185: 0.00 | K185: 0.00 | L185: 0.00
A186: 3 | G186: MATERIALIOJO IR NEMATERIALIOJO TURTO ĮSIGIJIMO, FINANSINIO TURTO PADIDĖJIMO IR FINANSINIŲ ĮSIPAREIGOJIMŲ VYKDYMO IŠLAIDOS | H186: 152 | I186: =SUM(I187+I240+I305) -> 0.00 | J186: =SUM(J187+J240+J305) -> 0.00 | K186: =SUM(K187+K240+K305) -> 0.00 | L186: =SUM(L187+L240+L305) -> 0.00
A187: 3 | B187: 1 | G187: Materialiojo ir nematerialiojo turto įsigijimo išlaidos | H187: 153 | I187: =SUM(I188+I211+I218+I230+I234) -> 0.00 | J187: =SUM(J188+J211+J218+J230+J234) -> 0.00 | K187: =SUM(K188+K211+K218+K230+K234) -> 0.00 | L187: =SUM(L188+L211+L218+L230+L234) -> 0.00
A188: 3 | B188: 1 | C188: 1 | G188: Ilgalaikio materialiojo turto kūrimo ir įsigijimo išlaidos | H188: 154 | I188: =SUM(I189+I192+I197+I203+I208) -> 0.00 | J188: =SUM(J189+J192+J197+J203+J208) -> 0.00 | K188: =SUM(K189+K192+K197+K203+K208) -> 0.00 | L188: =SUM(L189+L192+L197+L203+L208) -> 0.00
A189: 3 | B189: 1 | C189: 1 | D189: 1 | G189: Žemės įsigijimo išlaidos | H189: 155 | I189: =I190 -> 0.00 | J189: 0.00 | K189: 0.00 | L189: 0.00
A190: 3 | B190: 1 | C190: 1 | D190: 1 | E190: 1 | G190: Žemės įsigijimo išlaidos | H190: 156 | I190: 0.00 | J190: 0.00 | K190: 0.00 | L190: 0.00
A191: 3 | B191: 1 | C191: 1 | D191: 1 | E191: 1 | F191: 1 | G191: Žemės įsigijimo išlaidos | H191: 157 | I191: 0.00 | J191: 0.00 | K191: 0.00 | L191: 0.00
A192: 3 | B192: 1 | C192: 1 | D192: 2 | G192: Pastatų ir statinių įsigijimo išlaidos | H192: 158 | I192: =I193 -> 0.00 | J192: =J193 -> 0.00 | K192: =K193 -> 0.00 | L192: =L193 -> 0.00
A193: 3 | B193: 1 | C193: 1 | D193: 2 | E193: 1 | G193: Pastatų ir statinių įsigijimo išlaidos | H193: 159 | I193: =SUM(I194:I196) -> 0.00 | J193: =SUM(J194:J196) -> 0.00 | K193: =SUM(K194:K196) -> 0.00 | L193: =SUM(L194:L196) -> 0.00
A194: 3 | B194: 1 | C194: 1 | D194: 2 | E194: 1 | F194: 1 | G194: Gyvenamųjų namų įsigijimo išlaidos | H194: 160 | I194: 0.00 | J194: 0.00 | K194: 0.00 | L194: 0.00
A195: 3 | B195: 1 | C195: 1 | D195: 2 | E195: 1 | F195: 2 | G195: Negyvenamųjų pastatų įsigijimo išlaidos | H195: 161 | I195: 0.00 | J195: 0.00 | K195: 0.00 | L195: 0.00
A196: 3 | B196: 1 | C196: 1 | D196: 2 | E196: 1 | F196: 3 | G196: Infrastruktūros ir kitų statinių įsigijimo išlaidos | H196: 162 | I196: 0.00 | J196: 0.00 | K196: 0.00 | L196: 0.00
A197: 3 | B197: 1 | C197: 1 | D197: 3 | G197: Mašinų ir įrenginių įsigijimo išlaidos | H197: 163 | I197: =I198 -> 0.00 | J197: =J198 -> 0.00 | K197: =K198 -> 0.00 | L197: =L198 -> 0.00
A198: 3 | B198: 1 | C198: 1 | D198: 3 | E198: 1 | G198: Mašinų ir įrenginių įsigijimo išlaidos | H198: 164 | I198: =SUM(I199:I202) -> 0.00 | J198: =SUM(J199:J202) -> 0.00 | K198: =SUM(K199:K202) -> 0.00 | L198: =SUM(L199:L202) -> 0.00
A199: 3 | B199: 1 | C199: 1 | D199: 3 | E199: 1 | F199: 1 | G199: Transporto priemonių įsigijimo išlaidos | H199: 165 | I199: 0.00 | J199: 0.00 | K199: 0.00 | L199: 0.00
A200: 3 | B200: 1 | C200: 1 | D200: 3 | E200: 1 | F200: 2 | G200: Kitų mašinų ir įrenginių įsigijimo išlaidos | H200: 166 | I200: 0.00 | J200: 0.00 | K200: 0.00 | L200: 0.00
A201: 3 | B201: 1 | C201: 1 | D201: 3 | E201: 1 | F201: 3 | G201: Ginklų ir karinės įrangos įsigijimo išlaidos | H201: 167 | I201: 0.00 | J201: 0.00 | K201: 0.00 | L201: 0.00
A202: 3 | B202: 1 | C202: 1 | D202: 3 | E202: 1 | F202: 4 | G202: Kompiuterinės techninės ir elektroninių ryšių įrangos įsigijimo išlaidos | H202: 168 | I202: 0.00 | J202: 0.00 | K202: 0.00 | L202: 0.00
A203: 3 | B203: 1 | C203: 1 | D203: 4 | G203: Kultūros ir kitų vertybių įsigijimo išlaidos | H203: 169 | I203: =I204 -> 0.00 | J203: =J204 -> 0.00 | K203: =K204 -> 0.00 | L203: =L204 -> 0.00
A204: 3 | B204: 1 | C204: 1 | D204: 4 | E204: 1 | G204: Kultūros ir kitų vertybių įsigijimo išlaidos | H204: 170 | I204: =SUM(I205:I207) -> 0.00 | J204: =SUM(J205:J207) -> 0.00 | K204: =SUM(K205:K207) -> 0.00 | L204: =SUM(L205:L207) -> 0.00
A205: 3 | B205: 1 | C205: 1 | D205: 4 | E205: 1 | F205: 1 | G205: Muziejinių vertybių įsigijimo išlaidos | H205: 171 | I205: 0.00 | J205: 0.00 | K205: 0.00 | L205: 0.00
A206: 3 | B206: 1 | C206: 1 | D206: 4 | E206: 1 | F206: 2 | G206: Antikvarinių ir kitų meno kūrinių įsigijimo išlaidos | H206: 172 | I206: 0.00 | J206: 0.00 | K206: 0.00 | L206: 0.00
A207: 3 | B207: 1 | C207: 1 | D207: 4 | E207: 1 | F207: 3 | G207: Kitų vertybių įsigijimo išlaidos | H207: 173 | I207: 0.00 | J207: 0.00 | K207: 0.00 | L207: 0.00
A208: 3 | B208: 1 | C208: 1 | D208: 5 | G208: Kito ilgalaikio materialiojo turto įsigijimo išlaidos | H208: 174 | I208: =I209 -> 0.00 | J208: 0.00 | K208: 0.00 | L208: 0.00
A209: 3 | B209: 1 | C209: 1 | D209: 5 | E209: 1 | G209: Kito ilgalaikio materialiojo turto įsigijimo išlaidos | H209: 175 | I209: 0.00 | J209: 0.00 | K209: 0.00 | L209: 0.00
... 166 more rows

Sheet Forma Nr.2 VBD
J1: Biudžeto vykdymo ataskaitų rinkinių rengimo taisyklių
J2: 1 priedas
A8: (Biudžeto išlaidų sąmatos vykdymo 2025 m. birželio mėn. 30 d. ketvirčio, pusmečio, metų ataskaitos forma, Nr.2)
A10: Vaikų ir jaunimo laisvalaikio centras, 195174984
A11: (įstaigos pavadinimas, kodas Juridinių asmenų registre, adresas)
G13: BIUDŽETO IŠLAIDŲ SĄMATOS VYKDYMO
A14: 2025 M. BIRŽELIO MĖN. 30 D.
G15: 2 ketvirtis
G16: (I ketvirčio, pusmečio, 9 mėnesių, metinė)
B17: ATASKAITA
G19: 2025.07.10 Nr.________________
G20: (data)
E22: Žinių visuomenės plėtros programa
A23: (programos pavadinimas)
L24: Kodas
J25: Ministerijos / Savivaldybės
K26: Departamento
A27: Neformalusis vaikų švietimas | K27: Įstaigos | L27: 195174984
A28: 1.1.2.5. Neformaliojo ugdymo programų įgyvendinimas ir tinkamos aplinkos užtikrinimas Gargždų vaikų ir jaunimo laisvalaikio centre | J28: Programos | K28: 1
G29: Finansavimo šaltinio | H29: VBD
G30: Valstybės funkcijos | I30: 09 | J30: 05 | K30: 01 | L30: 01
A31: Valstybės biudžeto specialioji tikslinė dotacija | L31: (eurais, ct)
A32: Išlaidų ekonominės klasifikacijos kodas | G32: Išlaidų pavadinimas | H32: Eil. Nr. | I32: Asignavimų planas, įskaitant patikslinimus | K32: Gauti asignavimai kartu su įskaitytu praėjusių metų lėšų likučiu | L32: Panaudoti asignavimai
I33: metams | J33: ataskaitiniam laikotarpiui
A34: 1 | G34: 2 | H34: 3 | I34: 4 | J34: 5 | K34: 6 | L34: 7
A35: 2 | G35: IŠLAIDOS | H35: 1 | I35: =SUM(I36+I47+I67+I88+I95+I115+I141+I160+I170) -> 2800.00 | J35: =SUM(J36+J47+J67+J88+J95+J115+J141+J160+J170) -> 1400.00 | K35: =SUM(K36+K47+K67+K88+K95+K115+K141+K160+K170) -> 1400.00 | L35: =SUM(L36+L47+L67+L88+L95+L115+L141+L160+L170) -> 1400.00
A36: 2 | B36: 1 | G36: Darbo užmokestis ir socialinis draudimas | H36: 2 | I36: =SUM(I37+I43) -> 2800.00 | J36: =SUM(J37+J43) -> 1400.00 | K36: =SUM(K37+K43) -> 1400.00 | L36: =SUM(L37+L43) -> 1400.00
A37: 2 | B37: 1 | C37: 1 | G37: Darbo užmokestis | H37: 3 | I37: =SUM(I38) -> 2800.00 | J37: =SUM(J38) -> 1400.00 | K37: =SUM(K38) -> 1400.00 | L37: =SUM(L38) -> 1400.00
A38: 2 | B38: 1 | C38: 1 | D38: 1 | G38: Darbo užmokestis | H38: 4 | I38: =SUM(I39+I41) -> 2800.00 | J38: =SUM(J39) -> 1400.00 | K38: 1400.00 | L38: 1400.00
A39: 2 | B39: 1 | C39: 1 | D39: 1 | E39: 1 | G39: Darbo užmokestis pinigais | H39: 5 | I39: =SUM(I40) -> 2800.00 | J39: 1400.00 | K39: 1400.00 | L39: 1400.00
A40: 2 | B40: 1 | C40: 1 | D40: 1 | E40: 1 | F40: 1 | G40: Darbo užmokestis pinigais | H40: 6 | I40: 2800.00 | J40: 1400.00 | K40: 1400.00 | L40: 1400.00
A41: 2 | B41: 1 | C41: 1 | D41: 1 | E41: 2 | G41: Pajamos natūra | H41: 7 | I41: =I42 -> 0.00 | J41: =J42 -> 0.00 | K41: =K42 -> 0.00 | L41: =L42 -> 0.00
A42: 2 | B42: 1 | C42: 1 | D42: 1 | E42: 2 | F42: 1 | G42: Pajamos natūra | H42: 8 | I42: 0.00 | J42: 0.00 | K42: 0.00 | L42: 0.00
A43: 2 | B43: 1 | C43: 2 | G43: Socialinio draudimo įmokos | H43: 9 | I43: =I44 -> 0.00 | J43: 0.00 | K43: 0.00 | L43: 0.00
A44: 2 | B44: 1 | C44: 2 | D44: 1 | G44: Socialinio draudimo įmokos | H44: 10 | I44: 0.00 | J44: 0.00 | K44: 0.00 | L44: 0.00
A45: 2 | B45: 1 | C45: 2 | D45: 1 | E45: 1 | G45: Socialinio draudimo įmokos | H45: 11 | I45: 0.00 | J45: 0.00 | K45: 0.00 | L45: 0.00
A46: 2 | B46: 1 | C46: 2 | D46: 1 | E46: 1 | F46: 1 | G46: Socialinio draudimo įmokos | H46: 12 | I46: 0.00 | J46: 0.00 | K46: 0.00 | L46: 0.00
A47: 2 | B47: 2 | G47: Prekių ir paslaugų įsigijimo išlaidos | H47: 13 | I47: =I48 -> 0.00 | J47: 0.00 | K47: 0.00 | L47: 0.00
A48: 2 | B48: 2 | C48: 1 | G48: Prekių ir paslaugų įsigijimo išlaidos | H48: 14 | I48: 0.00 | J48: 0.00 | K48: 0.00 | L48: 0.00
A49: 2 | B49: 2 | C49: 1 | D49: 1 | G49: Prekių ir paslaugų įsigijimo išlaidos | H49: 15 | I49: 0.00 | J49: 0.00 | K49: 0.00 | L49: 0.00
A50: 2 | B50: 2 | C50: 1 | D50: 1 | E50: 1 | G50: Prekių ir paslaugų įsigijimo išlaidos | H50: 16 | I50: =SUM(I51:I66) -> 0.00 | J50: =SUM(J51:J66) -> 0.00 | K50: =SUM(K51:K66) -> 0.00 | L50: =SUM(L51:L66) -> 0.00
A51: 2 | B51: 2 | C51: 1 | D51: 1 | E51: 1 | F51: 1 | G51: Mitybos išlaidos | H51: 17 | I51: 0.00 | J51: 0.00 | K51: 0.00 | L51: 0.00
A52: 2 | B52: 2 | C52: 1 | D52: 1 | E52: 1 | F52: 2 | G52: Medikamentų ir medicininių prekių bei paslaugų įsigijimo išlaidos | H52: 18 | I52: 0.00 | J52: 0.00 | K52: 0.00 | L52: 0.00
A53: 2 | B53: 2 | C53: 1 | D53: 1 | E53: 1 | F53: 5 | G53: Ryšių įrangos ir ryšių paslaugų įsigijimo išlaidos | H53: 19 | I53: 0.00 | J53: 0.00 | K53: 0.00 | L53: 0.00
A54: 2 | B54: 2 | C54: 1 | D54: 1 | E54: 1 | F54: 6 | G54: Transporto išlaikymo ir transporto paslaugų įsigijimo išlaidos | H54: 20 | I54: 0.00 | J54: 0.00 | K54: 0.00 | L54: 0.00
A55: 2 | B55: 2 | C55: 1 | D55: 1 | E55: 1 | F55: 7 | G55: Aprangos ir patalynės įsigijimo bei priežiūros išlaidos | H55: 21 | I55: 0.00 | J55: 0.00 | K55: 0.00 | L55: 0.00
A56: 2 | B56: 2 | C56: 1 | D56: 1 | E56: 1 | F56: 11 | G56: Komandiruočių išlaidos | H56: 22 | I56: 0.00 | J56: 0.00 | K56: 0.00 | L56: 0.00
A57: 2 | B57: 2 | C57: 1 | D57: 1 | E57: 1 | F57: 12 | G57: Gyvenamųjų vietovių viešojo ūkio išlaidos | H57: 23 | I57: 0.00 | J57: 0.00 | K57: 0.00 | L57: 0.00
A58: 2 | B58: 2 | C58: 1 | D58: 1 | E58: 1 | F58: 14 | G58: Materialiojo ir nematerialiojo turto nuomos išlaidos | H58: 24 | I58: 0.00 | J58: 0.00 | K58: 0.00 | L58: 0.00
A59: 2 | B59: 2 | C59: 1 | D59: 1 | E59: 1 | F59: 15 | G59: Materialiojo turto paprastojo remonto prekių ir paslaugų įsigijimo išlaidos | H59: 25 | I59: 0.00 | J59: 0.00 | K59: 0.00 | L59: 0.00
A60: 2 | B60: 2 | C60: 1 | D60: 1 | E60: 1 | F60: 16 | G60: Kvalifikacijos kėlimo išlaidos | H60: 26 | I60: 0.00 | J60: 0.00 | K60: 0.00 | L60: 0.00
A61: 2 | B61: 2 | C61: 1 | D61: 1 | E61: 1 | F61: 17 | G61: Ekspertų ir konsultantų paslaugų įsigijimo išlaidos | H61: 27 | I61: 0.00 | J61: 0.00 | K61: 0.00 | L61: 0.00
A62: 2 | B62: 2 | C62: 1 | D62: 1 | E62: 1 | F62: 20 | G62: Komunalinių paslaugų įsigijimo išlaidos | H62: 28 | I62: 0.00 | J62: 0.00 | K62: 0.00 | L62: 0.00
A63: 2 | B63: 2 | C63: 1 | D63: 1 | E63: 1 | F63: 21 | G63: Informacinių technologijų prekių ir paslaugų įsigijimo išlaidos | H63: 29 | I63: 0.00 | J63: 0.00 | K63: 0.00 | L63: 0.00
A64: 2 | B64: 2 | C64: 1 | D64: 1 | E64: 1 | F64: 22 | G64: Reprezentacinės išlaidos | H64: 30 | I64: 0.00 | J64: 0.00 | K64: 0.00 | L64: 0.00
A65: 2 | B65: 2 | C65: 1 | D65: 1 | E65: 1 | F65: 23 | G65: Viešinimo išlaidos | H65: 31 | I65: 0.00 | J65: 0.00 | K65: 0.00 | L65: 0.00
A66: 2 | B66: 2 | C66: 1 | D66: 1 | E66: 1 | F66: 30 | G66: Kitų prekių ir paslaugų įsigijimo išlaidos | H66: 32 | I66: 0.00 | J66: 0.00 | K66: 0.00 | L66: 0.00
A67: 2 | B67: 3 | G67: Palūkanos | H67: 33 | I67: =I68 -> 0.00 | J67: =J68 -> 0.00 | K67: =K68 -> 0.00 | L67: =L68 -> 0.00
A68: 2 | B68: 3 | C68: 1 | G68: Palūkanos | H68: 34 | I68: =SUM(I69+I74+I79) -> 0.00 | J68: =SUM(J69+J74+J79) -> 0.00 | K68: =SUM(K69+K74+K79) -> 0.00 | L68: =SUM(L69+L74+L79) -> 0.00
A69: 2 | B69: 3 | C69: 1 | D69: 1 | G69: Palūkanos nerezidentams | H69: 35 | I69: =I70 -> 0.00 | J69: =J70 -> 0.00 | K69: =K70 -> 0.00 | L69: =L70 -> 0.00
A70: 2 | B70: 3 | C70: 1 | D70: 1 | E70: 1 | G70: Palūkanos nerezidentams | H70: 36 | I70: =SUM(I71:I73) -> 0.00 | J70: =SUM(J71:J73) -> 0.00 | K70: =SUM(K71:K73) -> 0.00 | L70: =SUM(L71:L73) -> 0.00
A71: 2 | B71: 3 | C71: 1 | D71: 1 | E71: 1 | F71: 1 | G71: Asignavimų valdytojų sumokėtos palūkanos | H71: 37 | I71: 0.00 | J71: 0.00 | K71: 0.00 | L71: 0.00
A72: 2 | B72: 3 | C72: 1 | D72: 1 | E72: 1 | F72: 2 | G72: Finansų ministerijos sumokėtos palūkanos | H72: 38 | I72: 0.00 | J72: 0.00 | K72: 0.00 | L72: 0.00
A73: 2 | B73: 3 | C73: 1 | D73: 1 | E73: 1 | F73: 3 | G73: Savivaldybių sumokėtos palūkanos | H73: 39 | I73: 0.00 | J73: 0.00 | K73: 0.00 | L73: 0.00
A74: 2 | B74: 3 | C74: 1 | D74: 2 | G74: Palūkanos rezidentams, kitiems nei valdžios sektorius (tik už tiesioginę skolą) | H74: 40 | I74: =I75 -> 0.00 | J74: =J75 -> 0.00 | K74: =K75 -> 0.00 | L74: =L75 -> 0.00
A75: 2 | B75: 3 | C75: 1 | D75: 2 | E75: 1 | G75: Palūkanos rezidentams, kitiems nei valdžios sektorius (tik už tiesioginę skolą) | H75: 41 | I75: =SUM(I76:I78) -> 0.00 | J75: =SUM(J76:J78) -> 0.00 | K75: =SUM(K76:K78) -> 0.00 | L75: =SUM(L76:L78) -> 0.00
A76: 2 | B76: 3 | C76: 1 | D76: 2 | E76: 1 | F76: 1 | G76: Asignavimų valdytojų sumokėtos palūkanos | H76: 42 | I76: 0.00 | J76: 0.00 | K76: 0.00 | L76: 0.00
A77: 2 | B77: 3 | C77: 1 | D77: 2 | E77: 1 | F77: 2 | G77: Finansų ministerijos sumokėtos palūkanos | H77: 43 | I77: 0.00 | J77: 0.00 | K77: 0.00 | L77: 0.00
A78: 2 | B78: 3 | C78: 1 | D78: 2 | E78: 1 | F78: 3 | G78: Savivaldybių sumokėtos palūkanos | H78: 44 | I78: 0.00 | J78: 0.00 | K78: 0.00 | L78: 0.00
A79: 2 | B79: 3 | C79: 1 | D79: 3 | G79: Palūkanos kitiems valdžios sektoriaus subjektams | H79: 45 | I79: =I80 -> 0.00 | J79: =J80 -> 0.00 | K79: =K80 -> 0.00 | L79: =L80 -> 0.00
A80: 2 | B80: 3 | C80: 1 | D80: 3 | E80: 1 | G80: Palūkanos kitiems valdžios sektoriaus subjektams | H80: 46 | I80: =SUM(I81:I83) -> 0.00 | J80: =SUM(J81:J83) -> 0.00 | K80: =SUM(K81:K83) -> 0.00 | L80: =SUM(L81:L83) -> 0.00
A81: 2 | B81: 3 | C81: 1 | D81: 3 | E81: 1 | F81: 1 | G81: Palūkanos valstybės biudžetui | H81: 47 | I81: 0.00 | J81: 0.00 | K81: 0.00 | L81: 0.00
A82: 2 | B82: 3 | C82: 1 | D82: 3 | E82: 1 | F82: 2 | G82: Palūkanos savivaldybių biudžetams | H82: 48 | I82: 0.00 | J82: 0.00 | K82: 0.00 | L82: 0.00
A83: 2 | B83: 3 | C83: 1 | D83: 3 | E83: 1 | F83: 3 | G83: Palūkanos nebiudžetiniams fondams | H83: 49 | I83: 0.00 | J83: 0.00 | K83: 0.00 | L83: 0.00
A84: 2 | B84: 3 | C84: 2 | G84: Žemės nuoma | H84: 50 | I84: =I85 -> 0.00 | J84: 0.00 | K84: 0.00 | L84: 0.00
A85: 2 | B85: 3 | C85: 2 | D85: 1 | G85: Žemės nuoma | H85: 51 | I85: 0.00 | J85: 0.00 | K85: 0.00 | L85: 0.00
A86: 2 | B86: 3 | C86: 2 | D86: 1 | E86: 1 | G86: Žemės nuoma | H86: 52 | I86: =SUM(I87) -> 0.00 | J86: =SUM(J87) -> 0.00 | K86: =SUM(K87) -> 0.00 | L86: =SUM(L87) -> 0.00
A87: 2 | B87: 3 | C87: 2 | D87: 1 | E87: 1 | F87: 1 | G87: Žemės nuoma | H87: 53 | I87: 0.00 | J87: 0.00 | K87: 0.00 | L87: 0.00
A88: 2 | B88: 4 | G88: Subsidijos | H88: 54 | I88: =I89 -> 0.00 | J88: 0.00 | K88: 0.00 | L88: 0.00
A89: 2 | B89: 4 | C89: 1 | G89: Subsidijos iš biudžeto lėšų | H89: 55 | I89: 0.00 | J89: 0.00 | K89: 0.00 | L89: 0.00
A90: 2 | B90: 4 | C90: 1 | D90: 1 | G90: Subsidijos iš biudžeto lėšų | H90: 56 | I90: 0.00 | J90: 0.00 | K90: 0.00 | L90: 0.00
A91: 2 | B91: 4 | C91: 1 | D91: 1 | E91: 1 | G91: Subsidijos iš biudžeto lėšų | H91: 57 | I91: =SUM(I92:I94) -> 0.00 | J91: =SUM(J92:J94) -> 0.00 | K91: =SUM(K92:K94) -> 0.00 | L91: =SUM(L92:L94) -> 0.00
A92: 2 | B92: 4 | C92: 1 | D92: 1 | E92: 1 | F92: 1 | G92: Subsidijos importui | H92: 58 | I92: 0.00 | J92: 0.00 | K92: 0.00 | L92: 0.00
A93: 2 | B93: 4 | C93: 1 | D93: 1 | E93: 1 | F93: 2 | G93: Subsidijos gaminiams | H93: 59 | I93: 0.00 | J93: 0.00 | K93: 0.00 | L93: 0.00
A94: 2 | B94: 4 | C94: 1 | D94: 1 | E94: 1 | F94: 3 | G94: Subsidijos gamybai | H94: 60 | I94: 0.00 | J94: 0.00 | K94: 0.00 | L94: 0.00
A95: 2 | B95: 5 | G95: Dotacijos | H95: 61 | I95: =SUM(I96+I101+I106) -> 0.00 | J95: =SUM(J96+J101+J106) -> 0.00 | K95: =SUM(K96+K101+K106) -> 0.00 | L95: =SUM(L96+L101+L106) -> 0.00
A96: 2 | B96: 5 | C96: 1 | G96: Dotacijos užsienio valstybėms | H96: 62 | I96: =I97 -> 0.00 | J96: 0.00 | K96: 0.00 | L96: 0.00
A97: 2 | B97: 5 | C97: 1 | D97: 1 | G97: Dotacijos užsienio valstybėms | H97: 63 | I97: 0.00 | J97: 0.00 | K97: 0.00 | L97: 0.00
A98: 2 | B98: 5 | C98: 1 | D98: 1 | E98: 1 | G98: Dotacijos užsienio valstybėms | H98: 64 | I98: =SUM(I99:I100) -> 0.00 | J98: =SUM(J99:J100) -> 0.00 | K98: =SUM(K99:K100) -> 0.00 | L98: =SUM(L99:L100) -> 0.00
A99: 2 | B99: 5 | C99: 1 | D99: 1 | E99: 1 | F99: 1 | G99: Dotacijos užsienio valstybėms einamiesiems tikslams | H99: 65 | I99: 0.00 | J99: 0.00 | K99: 0.00 | L99: 0.00
A100: 2 | B100: 5 | C100: 1 | D100: 1 | E100: 1 | F100: 2 | G100: Dotacijos užsienio valstybėms turtui įsigyti | H100: 66 | I100: 0.00 | J100: 0.00 | K100: 0.00 | L100: 0.00
A101: 2 | B101: 5 | C101: 2 | G101: Dotacijos tarptautinėms organizacijoms | H101: 67 | I101: =I102 -> 0.00 | J101: 0.00 | K101: 0.00 | L101: 0.00
A102: 2 | B102: 5 | C102: 2 | D102: 1 | G102: Dotacijos tarptautinėms organizacijoms | H102: 68 | I102: 0.00 | J102: 0.00 | K102: 0.00 | L102: 0.00
A103: 2 | B103: 5 | C103: 2 | D103: 1 | E103: 1 | G103: Dotacijos tarptautinėms organizacijoms | H103: 69 | I103: =SUM(I104:I105) -> 0.00 | J103: =SUM(J104:J105) -> 0.00 | K103: =SUM(K104:K105) -> 0.00 | L103: =SUM(L104:L105) -> 0.00
A104: 2 | B104: 5 | C104: 2 | D104: 1 | E104: 1 | F104: 1 | G104: Dotacijos tarptautinėms organizacijoms einamiesiems tikslams | H104: 70 | I104: 0.00 | J104: 0.00 | K104: 0.00 | L104: 0.00
A105: 2 | B105: 5 | C105: 2 | D105: 1 | E105: 1 | F105: 2 | G105: Dotacijos tarptautinėms organizacijoms turtui įsigyti | H105: 71 | I105: 0.00 | J105: 0.00 | K105: 0.00 | L105: 0.00
A106: 2 | B106: 5 | C106: 3 | G106: Dotacijos kitiems valdžios sektoriaus subjektams | H106: 72 | I106: =I107+I111 -> 0.00 | J106: =J107+J111 -> 0.00 | K106: =K107+K111 -> 0.00 | L106: =L107+L111 -> 0.00
A107: 2 | B107: 5 | C107: 3 | D107: 1 | G107: Dotacijos kitiems valdžios sektoriaus subjektams einamiesiems tikslams | H107: 73 | I107: =I108 -> 0.00 | J107: =J108 -> 0.00 | K107: =K108 -> 0.00 | L107: =L108 -> 0.00
A108: 2 | B108: 5 | C108: 3 | D108: 1 | E108: 1 | G108: Dotacijos kitiems valdžios sektoriaus subjektams einamiesiems tikslams | H108: 74 | I108: =SUM(I109:I110) -> 0.00 | J108: =SUM(J109:J110) -> 0.00 | K108: =SUM(K109:K110) -> 0.00 | L108: =SUM(L109:L110) -> 0.00
A109: 2 | B109: 5 | C109: 3 | D109: 1 | E109: 1 | F109: 1 | G109: Dotacijos kitiems valdžios sektoriaus subjektams einamiesiems tikslams | H109: 75 | I109: 0.00 | J109: 0.00 | K109: 0.00 | L109: 0.00
A110: 2 | B110: 5 | C110: 3 | D110: 1 | E110: 1 | F110: 2 | G110: Dotacijos savivaldybėms einamiesiems tikslams | H110: 76 | I110: 0.00 | J110: 0.00 | K110: 0.00 | L110: 0.00
A111: 2 | B111: 5 | C111: 3 | D111: 2 | G111: Dotacijos kitiems valdžios sektoriaus subjektams turtui įsigyti | H111: 77 | I111: =I112 -> 0.00 | J111: =J112 -> 0.00 | K111: =K112 -> 0.00 | L111: =L112 -> 0.00
A112: 2 | B112: 5 | C112: 3 | D112: 2 | E112: 1 | G112: Dotacijos kitiems valdžios sektoriaus subjektams turtui įsigyti | H112: 78 | I112: =SUM(I113:I114) -> 0.00 | J112: =SUM(J113:J114) -> 0.00 | K112: =SUM(K113:K114) -> 0.00 | L112: =SUM(L113:L114) -> 0.00
A113: 2 | B113: 5 | C113: 3 | D113: 2 | E113: 1 | F113: 1 | G113: Dotacijos kitiems valdžios sektoriaus subjektams turtui įsigyti | H113: 79 | I113: 0.00 | J113: 0.00 | K113: 0.00 | L113: 0.00
A114: 2 | B114: 5 | C114: 3 | D114: 2 | E114: 1 | F114: 2 | G114: Dotacijos savivaldybėms turtui įsigyti | H114: 80 | I114: 0.00 | J114: 0.00 | K114: 0.00 | L114: 0.00
A115: 2 | B115: 6 | G115: Įmokos į Europos Sąjungos biudžetą | H115: 81 | I115: =SUM(I116+I121+I125+I129+I133+I137) -> 0.00 | J115: =SUM(J116+J121+J125+J129+J133+J137) -> 0.00 | K115: =SUM(K116+K121+K125+K129+K133+K137) -> 0.00 | L115: =SUM(L116+L121+L125+L129+L133+L137) -> 0.00
A116: 2 | B116: 6 | C116: 1 | G116: Tradiciniai nuosavi ištekliai | H116: 82 | I116: =I117 -> 0.00 | J116: 0.00 | K116: 0.00 | L116: 0.00
A117: 2 | B117: 6 | C117: 1 | D117: 1 | G117: Tradiciniai nuosavi ištekliai | H117: 83 | I117: 0.00 | J117: 0.00 | K117: 0.00 | L117: 0.00
A118: 2 | B118: 6 | C118: 1 | D118: 1 | E118: 1 | G118: Tradiciniai nuosavi ištekliai | H118: 84 | I118: =SUM(I119:I120) -> 0.00 | J118: =SUM(J119:J120) -> 0.00 | K118: =SUM(K119:K120) -> 0.00 | L118: =SUM(L119:L120) -> 0.00
A119: 2 | B119: 6 | C119: 1 | D119: 1 | E119: 1 | F119: 1 | G119: Muitai | H119: 85 | I119: 0.00 | J119: 0.00 | K119: 0.00 | L119: 0.00
A120: 2 | B120: 6 | C120: 1 | D120: 1 | E120: 1 | F120: 2 | G120: Cukraus sektoriaus mokesčiai | H120: 86 | I120: 0.00 | J120: 0.00 | K120: 0.00 | L120: 0.00
A121: 2 | B121: 6 | C121: 2 | G121: Pridėtinės vertės mokesčio nuosavi ištekliai | H121: 87 | I121: =I122 -> 0.00 | J121: 0.00 | K121: 0.00 | L121: 0.00
A122: 2 | B122: 6 | C122: 2 | D122: 1 | G122: Pridėtinės vertės mokesčio nuosavi ištekliai | H122: 88 | I122: 0.00 | J122: 0.00 | K122: 0.00 | L122: 0.00
A123: 2 | B123: 6 | C123: 2 | D123: 1 | E123: 1 | G123: Pridėtinės vertės mokesčio nuosavi ištekliai | H123: 89 | I123: 0.00 | J123: 0.00 | K123: 0.00 | L123: 0.00
A124: 2 | B124: 6 | C124: 2 | D124: 1 | E124: 1 | F124: 1 | G124: Pridėtinės vertės mokesčio nuosavi ištekliai | H124: 90 | I124: 0.00 | J124: 0.00 | K124: 0.00 | L124: 0.00
A125: 2 | B125: 6 | C125: 3 | G125: Bendrųjų nacionalinių pajamų nuosavi ištekliai | H125: 91 | I125: =I126 -> 0.00 | J125: 0.00 | K125: 0.00 | L125: 0.00
A126: 2 | B126: 6 | C126: 3 | D126: 1 | G126: Bendrųjų nacionalinių pajamų nuosavi ištekliai | H126: 92 | I126: 0.00 | J126: 0.00 | K126: 0.00 | L126: 0.00
A127: 2 | B127: 6 | C127: 3 | D127: 1 | E127: 1 | G127: Bendrųjų nacionalinių pajamų nuosavi ištekliai | H127: 93 | I127: 0.00 | J127: 0.00 | K127: 0.00 | L127: 0.00
A128: 2 | B128: 6 | C128: 3 | D128: 1 | E128: 1 | F128: 1 | G128: Bendrųjų nacionalinių pajamų nuosavi ištekliai | H128: 94 | I128: 0.00 | J128: 0.00 | K128: 0.00 | L128: 0.00
A129: 2 | B129: 6 | C129: 4 | G129: Biudžeto disbalansų korekcija Jungtinės Karalystės naudai | H129: 95 | I129: =I130 -> 0.00 | J129: 0.00 | K129: 0.00 | L129: 0.00
A130: 2 | B130: 6 | C130: 4 | D130: 1 | G130: Biudžeto disbalansų korekcija Jungtinės Karalystės naudai | H130: 96 | I130: 0.00 | J130: 0.00 | K130: 0.00 | L130: 0.00
A131: 2 | B131: 6 | C131: 4 | D131: 1 | E131: 1 | G131: Biudžeto disbalansų korekcija Jungtinės Karalystės naudai | H131: 97 | I131: 0.00 | J131: 0.00 | K131: 0.00 | L131: 0.00
A132: 2 | B132: 6 | C132: 4 | D132: 1 | E132: 1 | F132: 1 | G132: Biudžeto disbalansų korekcija Jungtinės Karalystės naudai | H132: 98 | I132: 0.00 | J132: 0.00 | K132: 0.00 | L132: 0.00
A133: 2 | B133: 6 | C133: 5 | G133: Su nuosavais ištekliais susijusios baudos, delspinigiai ir neigiamos palūkanos | H133: 99 | I133: =I134 -> 0.00 | J133: 0.00 | K133: 0.00 | L133: 0.00
A134: 2 | B134: 6 | C134: 5 | D134: 1 | G134: Su nuosavais ištekliais susijusios baudos, delspinigiai ir neigiamos palūkanos | H134: 100 | I134: 0.00 | J134: 0.00 | K134: 0.00 | L134: 0.00
A135: 2 | B135: 6 | C135: 5 | D135: 1 | E135: 1 | G135: Su nuosavais ištekliais susijusios baudos, delspinigiai ir neigiamos palūkanos | H135: 101 | I135: 0.00 | J135: 0.00 | K135: 0.00 | L135: 0.00
A136: 2 | B136: 6 | C136: 5 | D136: 1 | E136: 1 | F136: 1 | G136: Su nuosavais ištekliais susijusios baudos, delspinigiai ir neigiamos palūkanos | H136: 102 | I136: 0.00 | J136: 0.00 | K136: 0.00 | L136: 0.00
A137: 2 | B137: 6 | C137: 6 | G137: Neperdirbto plastiko atliekų nuosavi ištekliai | H137: 103 | I137: =I138 -> 0.00 | J137: 0.00 | K137: 0.00 | L137: 0.00
A138: 2 | B138: 6 | C138: 6 | D138: 1 | G138: Neperdirbto plastiko atliekų nuosavi ištekliai | H138: 104 | I138: 0.00 | J138: 0.00 | K138: 0.00 | L138: 0.00
A139: 2 | B139: 6 | C139: 6 | D139: 1 | E139: 1 | G139: Neperdirbto plastiko atliekų nuosavi ištekliai | H139: 105 | I139: 0.00 | J139: 0.00 | K139: 0.00 | L139: 0.00
A140: 2 | B140: 6 | C140: 6 | D140: 1 | E140: 1 | F140: 1 | G140: Neperdirbto plastiko atliekų nuosavi ištekliai | H140: 106 | I140: 0.00 | J140: 0.00 | K140: 0.00 | L140: 0.00
A141: 2 | B141: 7 | G141: Socialinės išmokos (pašalpos) | H141: 107 | I141: =SUM(I142+I147+I155) -> 0.00 | J141: =SUM(J142+J147+J155) -> 0.00 | K141: =SUM(K142+K147+K155) -> 0.00 | L141: =SUM(L142+L147+L155) -> 0.00
A142: 2 | B142: 7 | C142: 1 | G142: Socialinio draudimo išmokos (pašalpos) | H142: 108 | I142: =I143 -> 0.00 | J142: 0.00 | K142: 0.00 | L142: 0.00
A143: 2 | B143: 7 | C143: 1 | D143: 1 | G143: Socialinio draudimo išmokos (pašalpos) | H143: 109 | I143: 0.00 | J143: 0.00 | K143: 0.00 | L143: 0.00
A144: 2 | B144: 7 | C144: 1 | D144: 1 | E144: 1 | G144: Socialinio draudimo išmokos (pašalpos) | H144: 110 | I144: =SUM(I145:I146) -> 0.00 | J144: =SUM(J145:J146) -> 0.00 | K144: =SUM(K145:K146) -> 0.00 | L144: =SUM(L145:L146) -> 0.00
A145: 2 | B145: 7 | C145: 1 | D145: 1 | E145: 1 | F145: 1 | G145: Socialinio draudimo išmokos pinigais | H145: 111 | I145: 0.00 | J145: 0.00 | K145: 0.00 | L145: 0.00
A146: 2 | B146: 7 | C146: 1 | D146: 1 | E146: 1 | F146: 2 | G146: Socialinio draudimo išmokos natūra | H146: 112 | I146: 0.00 | J146: 0.00 | K146: 0.00 | L146: 0.00
A147: 2 | B147: 7 | C147: 2 | G147: Socialinė parama (socialinės paramos pašalpos) ir rentos | H147: 113 | I147: =I148 -> 0.00 | J147: 0.00 | K147: 0.00 | L147: 0.00
A148: 2 | B148: 7 | C148: 2 | D148: 1 | G148: Socialinė parama (socialinės paramos pašalpos) | H148: 114 | I148: 0.00 | J148: 0.00 | K148: 0.00 | L148: 0.00
A149: 2 | B149: 7 | C149: 2 | D149: 1 | E149: 1 | G149: Socialinė parama (socialinės paramos pašalpos) | H149: 115 | I149: =SUM(I150:I151) -> 0.00 | J149: =SUM(J150:J151) -> 0.00 | K149: =SUM(K150:K151) -> 0.00 | L149: =SUM(L150:L151) -> 0.00
A150: 2 | B150: 7 | C150: 2 | D150: 1 | E150: 1 | F150: 1 | G150: Socialinė parama pinigais | H150: 116 | I150: 0.00 | J150: 0.00 | K150: 0.00 | L150: 0.00
A151: 2 | B151: 7 | C151: 2 | D151: 1 | E151: 1 | F151: 2 | G151: Socialinė parama natūra | H151: 117 | I151: 0.00 | J151: 0.00 | K151: 0.00 | L151: 0.00
A152: 2 | B152: 7 | C152: 2 | D152: 2 | G152: Rentos | H152: 118 | I152: =I153 -> 0.00 | J152: =J153 -> 0.00 | K152: =K153 -> 0.00 | L152: =L153 -> 0.00
A153: 2 | B153: 7 | C153: 2 | D153: 2 | E153: 1 | G153: Rentos | H153: 119 | I153: =SUM(I154) -> 0.00 | J153: =SUM(J154) -> 0.00 | K153: =SUM(K154) -> 0.00 | L153: =SUM(L154) -> 0.00
A154: 2 | B154: 7 | C154: 2 | D154: 2 | E154: 1 | F154: 1 | G154: Rentos | H154: 120 | I154: 0.00 | J154: 0.00 | K154: 0.00 | L154: 0.00
A155: 2 | B155: 7 | C155: 3 | G155: Darbdavių socialinė parama | H155: 121 | I155: =I156 -> 0.00 | J155: 0.00 | K155: 0.00 | L155: 0.00
A156: 2 | B156: 7 | C156: 3 | D156: 1 | G156: Darbdavių socialinė parama | H156: 122 | I156: 0.00 | J156: 0.00 | K156: 0.00 | L156: 0.00
A157: 2 | B157: 7 | C157: 3 | D157: 1 | E157: 1 | G157: Darbdavių socialinė parama | H157: 123 | I157: =SUM(I158:I159) -> 0.00 | J157: =SUM(J158:J159) -> 0.00 | K157: =SUM(K158:K159) -> 0.00 | L157: =SUM(L158:L159) -> 0.00
A158: 2 | B158: 7 | C158: 3 | D158: 1 | E158: 1 | F158: 1 | G158: Darbdavių socialinė parama pinigais | H158: 124 | I158: 0.00 | J158: 0.00 | K158: 0.00 | L158: 0.00
A159: 2 | B159: 7 | C159: 3 | D159: 1 | E159: 1 | F159: 2 | G159: Darbdavių socialinė parama natūra | H159: 125 | I159: 0.00 | J159: 0.00 | K159: 0.00 | L159: 0.00
A160: 2 | B160: 8 | G160: Kitos išlaidos | H160: 126 | I160: =I161 -> 0.00 | J160: =J161 -> 0.00 | K160: =K161 -> 0.00 | L160: =L161 -> 0.00
A161: 2 | B161: 8 | C161: 1 | G161: Kitos išlaidos | H161: 127 | I161: =I162+I167 -> 0.00 | J161: =J162+J167 -> 0.00 | K161: =K162+K167 -> 0.00 | L161: =L162+L167 -> 0.00
A162: 2 | B162: 8 | C162: 1 | D162: 1 | G162: Kitos išlaidos einamiesiems tikslams | H162: 128 | I162: =I163 -> 0.00 | J162: =J163 -> 0.00 | K162: =K163 -> 0.00 | L162: =L163 -> 0.00
A163: 2 | B163: 8 | C163: 1 | D163: 1 | E163: 1 | G163: Kitos išlaidos einamiesiems tikslams | H163: 129 | I163: =SUM(I164:I166) -> 0.00 | J163: =SUM(J164:J166) -> 0.00 | K163: =SUM(K164:K166) -> 0.00 | L163: =SUM(L164:L166) -> 0.00
A164: 2 | B164: 8 | C164: 1 | D164: 1 | E164: 1 | F164: 1 | G164: Stipendijoms | H164: 130 | I164: 0.00 | J164: 0.00 | K164: 0.00 | L164: 0.00
A165: 2 | B165: 8 | C165: 1 | D165: 1 | E165: 1 | F165: 2 | G165: Kitos išlaidos kitiems einamiesiems tikslams | H165: 131 | I165: 0.00 | J165: 0.00 | K165: 0.00 | L165: 0.00
A166: 2 | B166: 8 | C166: 1 | D166: 1 | E166: 1 | F166: 3 | G166: Valiutos kurso įtaka | H166: 132 | I166: 0.00 | J166: 0.00 | K166: 0.00 | L166: 0.00
A167: 2 | B167: 8 | C167: 1 | D167: 2 | G167: Kitos išlaidos turtui įsigyti | H167: 133 | I167: =I168 -> 0.00 | J167: 0.00 | K167: 0.00 | L167: 0.00
A168: 2 | B168: 8 | C168: 1 | D168: 2 | E168: 1 | G168: Kitos išlaidos turtui įsigyti | H168: 134 | I168: 0.00 | J168: 0.00 | K168: 0.00 | L168: 0.00
A169: 2 | B169: 8 | C169: 1 | D169: 2 | E169: 1 | F169: 1 | G169: Kitos išlaidos turtui įsigyti | H169: 135 | I169: 0.00 | J169: 0.00 | K169: 0.00 | L169: 0.00
A170: 2 | B170: 9 | G170: Pervedamos Europos Sąjungos, kitos tarptautinės finansinės paramos ir bendrojo finansavimo lėšos | H170: 136 | I170: =I171+I175 -> 0.00 | J170: =J171+J175 -> 0.00 | K170: =K171+K175 -> 0.00 | L170: =L171+L175 -> 0.00
A171: 2 | B171: 9 | C171: 1 | G171: Subsidijos iš Europos Sąjungos ir kitos tarptautinės finansinės paramos lėšų (ne valdžios sektoriui) | H171: 137 | I171: =I172 -> 0.00 | J171: 0.00 | K171: 0.00 | L171: 0.00
A172: 2 | B172: 9 | C172: 1 | D172: 1 | G172: Subsidijos iš Europos Sąjungos ir kitos tarptautinės finansinės paramos lėšų (ne valdžios sektoriui) | H172: 138 | I172: 0.00 | J172: 0.00 | K172: 0.00 | L172: 0.00
A173: 2 | B173: 9 | C173: 1 | D173: 1 | E173: 1 | G173: Subsidijos iš Europos Sąjungos ir kitos tarptautinės finansinės paramos lėšų (ne valdžios sektoriui) | H173: 139 | I173: 0.00 | J173: 0.00 | K173: 0.00 | L173: 0.00
A174: 2 | B174: 9 | C174: 1 | D174: 1 | E174: 1 | F174: 1 | G174: Subsidijos iš Europos Sąjungos ir kitos tarptautinės finansinės paramos lėšų (ne valdžios sektoriui) | H174: 140 | I174: 0.00 | J174: 0.00 | K174: 0.00 | L174: 0.00
A175: 2 | B175: 9 | C175: 2 | G175: Pervedamos Europos Sąjungos, kitos tarptautinės finansinės paramos ir bendrojo finansavimo lėšos | H175: 141 | I175: =SUM(I176+I181) -> 0.00 | J175: =SUM(J176+J181) -> 0.00 | K175: =SUM(K176+K181) -> 0.00 | L175: =SUM(L176+L181) -> 0.00
A176: 2 | B176: 9 | C176: 2 | D176: 1 | G176: Pervedamos Europos Sąjungos, kitos tarptautinės finansinės paramos ir bendrojo finansavimo lėšos einamiesiems tikslams | H176: 142 | I176: =I177 -> 0.00 | J176: =J177 -> 0.00 | K176: =K177 -> 0.00 | L176: =L177 -> 0.00
A177: 2 | B177: 9 | C177: 2 | D177: 1 | E177: 1 | G177: Pervedamos Europos Sąjungos, kitos tarptautinės finansinės paramos ir bendrojo finansavimo lėšos einamiesiems tikslams | H177: 143 | I177: =SUM(I178:I180) -> 0.00 | J177: =SUM(J178:J180) -> 0.00 | K177: =SUM(K178:K180) -> 0.00 | L177: =SUM(L178:L180) -> 0.00
A178: 2 | B178: 9 | C178: 2 | D178: 1 | E178: 1 | F178: 1 | G178: Pervedamos Europos Sąjungos, kitos tarptautinės finansinės paramos ir bendrojo finansavimo lėšos einamiesiems tikslams savivaldybėms | H178: 144 | I178: 0.00 | J178: 0.00 | K178: 0.00 | L178: 0.00
A179: 2 | B179: 9 | C179: 2 | D179: 1 | E179: 1 | F179: 2 | G179: Pervedamos Europos Sąjungos, kitos tarptautinės finansinės paramos ir bendrojo finansavimo lėšos einamiesiems tikslams kitiems valdžios sektoriaus subjektams | H179: 145 | I179: 0.00 | J179: 0.00 | K179: 0.00 | L179: 0.00
A180: 2 | B180: 9 | C180: 2 | D180: 1 | E180: 1 | F180: 3 | G180: Pervedamos Europos Sąjungos, kitos tarptautinės finansinės paramos ir bendrojo finansavimo lėšos einamiesiems tikslams ne valdžios sektoriui | H180: 146 | I180: 0.00 | J180: 0.00 | K180: 0.00 | L180: 0.00
A181: 2 | B181: 9 | C181: 2 | D181: 2 | G181: Pervedamos Europos Sąjungos, kitos tarptautinės finansinės paramos ir bendrojo finansavimo lėšos investicijoms | H181: 147 | I181: =I182 -> 0.00 | J181: =J182 -> 0.00 | K181: =K182 -> 0.00 | L181: =L182 -> 0.00
A182: 2 | B182: 9 | C182: 2 | D182: 2 | E182: 1 | G182: Pervedamos Europos Sąjungos, kitos tarptautinės finansinės paramos ir bendrojo finansavimo lėšos investicijoms | H182: 148 | I182: =SUM(I183:I185) -> 0.00 | J182: =SUM(J183:J185) -> 0.00 | K182: =SUM(K183:K185) -> 0.00 | L182: =SUM(L183:L185) -> 0.00
A183: 2 | B183: 9 | C183: 2 | D183: 2 | E183: 1 | F183: 1 | G183: Pervedamos Europos Sąjungos, kitos tarptautinės finansinės paramos ir bendrojo finansavimo lėšos investicijoms, skirtoms savivaldybėms | H183: 149 | I183: 0.00 | J183: 0.00 | K183: 0.00 | L183: 0.00
A184: 2 | B184: 9 | C184: 2 | D184: 2 | E184: 1 | F184: 2 | G184: Pervedamos Europos Sąjungos, kitos tarptautinės finansinės paramos ir bendrojo finansavimo lėšos investicijoms kitiems valdžios sektoriaus subjektams | H184: 150 | I184: 0.00 | J184: 0.00 | K184: 0.00 | L184: 0.00
A185: 2 | B185: 9 | C185: 2 | D185: 2 | E185: 1 | F185: 3 | G185: Pervedamos Europos Sąjungos, kitos tarptautinės finansinės paramos ir bendrojo finansavimo lėšos investicijoms ne valdžios sektoriui | H185: 151 | I185: 0.00 | J185: 0.00 | K185: 0.00 | L185: 0.00
A186: 3 | G186: MATERIALIOJO IR NEMATERIALIOJO TURTO ĮSIGIJIMO, FINANSINIO TURTO PADIDĖJIMO IR FINANSINIŲ ĮSIPAREIGOJIMŲ VYKDYMO IŠLAIDOS | H186: 152 | I186: =SUM(I187+I240+I305) -> 0.00 | J186: =SUM(J187+J240+J305) -> 0.00 | K186: =SUM(K187+K240+K305) -> 0.00 | L186: =SUM(L187+L240+L305) -> 0.00
A187: 3 | B187: 1 | G187: Materialiojo ir nematerialiojo turto įsigijimo išlaidos | H187: 153 | I187: =SUM(I188+I211+I218+I230+I234) -> 0.00 | J187: =SUM(J188+J211+J218+J230+J234) -> 0.00 | K187: =SUM(K188+K211+K218+K230+K234) -> 0.00 | L187: =SUM(L188+L211+L218+L230+L234) -> 0.00
A188: 3 | B188: 1 | C188: 1 | G188: Ilgalaikio materialiojo turto kūrimo ir įsigijimo išlaidos | H188: 154 | I188: =SUM(I189+I192+I197+I203+I208) -> 0.00 | J188: =SUM(J189+J192+J197+J203+J208) -> 0.00 | K188: =SUM(K189+K192+K197+K203+K208) -> 0.00 | L188: =SUM(L189+L192+L197+L203+L208) -> 0.00
A189: 3 | B189: 1 | C189: 1 | D189: 1 | G189: Žemės įsigijimo išlaidos | H189: 155 | I189: =I190 -> 0.00 | J189: 0.00 | K189: 0.00 | L189: 0.00
A190: 3 | B190: 1 | C190: 1 | D190: 1 | E190: 1 | G190: Žemės įsigijimo išlaidos | H190: 156 | I190: 0.00 | J190: 0.00 | K190: 0.00 | L190: 0.00
A191: 3 | B191: 1 | C191: 1 | D191: 1 | E191: 1 | F191: 1 | G191: Žemės įsigijimo išlaidos | H191: 157 | I191: 0.00 | J191: 0.00 | K191: 0.00 | L191: 0.00
A192: 3 | B192: 1 | C192: 1 | D192: 2 | G192: Pastatų ir statinių įsigijimo išlaidos | H192: 158 | I192: =I193 -> 0.00 | J192: =J193 -> 0.00 | K192: =K193 -> 0.00 | L192: =L193 -> 0.00
A193: 3 | B193: 1 | C193: 1 | D193: 2 | E193: 1 | G193: Pastatų ir statinių įsigijimo išlaidos | H193: 159 | I193: =SUM(I194:I196) -> 0.00 | J193: =SUM(J194:J196) -> 0.00 | K193: =SUM(K194:K196) -> 0.00 | L193: =SUM(L194:L196) -> 0.00
A194: 3 | B194: 1 | C194: 1 | D194: 2 | E194: 1 | F194: 1 | G194: Gyvenamųjų namų įsigijimo išlaidos | H194: 160 | I194: 0.00 | J194: 0.00 | K194: 0.00 | L194: 0.00
A195: 3 | B195: 1 | C195: 1 | D195: 2 | E195: 1 | F195: 2 | G195: Negyvenamųjų pastatų įsigijimo išlaidos | H195: 161 | I195: 0.00 | J195: 0.00 | K195: 0.00 | L195: 0.00
A196: 3 | B196: 1 | C196: 1 | D196: 2 | E196: 1 | F196: 3 | G196: Infrastruktūros ir kitų statinių įsigijimo išlaidos | H196: 162 | I196: 0.00 | J196: 0.00 | K196: 0.00 | L196: 0.00
A197: 3 | B197: 1 | C197: 1 | D197: 3 | G197: Mašinų ir įrenginių įsigijimo išlaidos | H197: 163 | I197: =I198 -> 0.00 | J197: =J198 -> 0.00 | K197: =K198 -> 0.00 | L197: =L198 -> 0.00
A198: 3 | B198: 1 | C198: 1 | D198: 3 | E198: 1 | G198: Mašinų ir įrenginių įsigijimo išlaidos | H198: 164 | I198: =SUM(I199:I202) -> 0.00 | J198: =SUM(J199:J202) -> 0.00 | K198: =SUM(K199:K202) -> 0.00 | L198: =SUM(L199:L202) -> 0.00
A199: 3 | B199: 1 | C199: 1 | D199: 3 | E199: 1 | F199: 1 | G199: Transporto priemonių įsigijimo išlaidos | H199: 165 | I199: 0.00 | J199: 0.00 | K199: 0.00 | L199: 0.00
A200: 3 | B200: 1 | C200: 1 | D200: 3 | E200: 1 | F200: 2 | G200: Kitų mašinų ir įrenginių įsigijimo išlaidos | H200: 166 | I200: 0.00 | J200: 0.00 | K200: 0.00 | L200: 0.00
A201: 3 | B201: 1 | C201: 1 | D201: 3 | E201: 1 | F201: 3 | G201: Ginklų ir karinės įrangos įsigijimo išlaidos | H201: 167 | I201: 0.00 | J201: 0.00 | K201: 0.00 | L201: 0.00
A202: 3 | B202: 1 | C202: 1 | D202: 3 | E202: 1 | F202: 4 | G202: Kompiuterinės techninės ir elektroninių ryšių įrangos įsigijimo išlaidos | H202: 168 | I202: 0.00 | J202: 0.00 | K202: 0.00 | L202: 0.00
A203: 3 | B203: 1 | C203: 1 | D203: 4 | G203: Kultūros ir kitų vertybių įsigijimo išlaidos | H203: 169 | I203: =I204 -> 0.00 | J203: =J204 -> 0.00 | K203: =K204 -> 0.00 | L203: =L204 -> 0.00
A204: 3 | B204: 1 | C204: 1 | D204: 4 | E204: 1 | G204: Kultūros ir kitų vertybių įsigijimo išlaidos | H204: 170 | I204: =SUM(I205:I207) -> 0.00 | J204: =SUM(J205:J207) -> 0.00 | K204: =SUM(K205:K207) -> 0.00 | L204: =SUM(L205:L207) -> 0.00
A205: 3 | B205: 1 | C205: 1 | D205: 4 | E205: 1 | F205: 1 | G205: Muziejinių vertybių įsigijimo išlaidos | H205: 171 | I205: 0.00 | J205: 0.00 | K205: 0.00 | L205: 0.00
A206: 3 | B206: 1 | C206: 1 | D206: 4 | E206: 1 | F206: 2 | G206: Antikvarinių ir kitų meno kūrinių įsigijimo išlaidos | H206: 172 | I206: 0.00 | J206: 0.00 | K206: 0.00 | L206: 0.00
A207: 3 | B207: 1 | C207: 1 | D207: 4 | E207: 1 | F207: 3 | G207: Kitų vertybių įsigijimo išlaidos | H207: 173 | I207: 0.00 | J207: 0.00 | K207: 0.00 | L207: 0.00
A208: 3 | B208: 1 | C208: 1 | D208: 5 | G208: Kito ilgalaikio materialiojo turto įsigijimo išlaidos | H208: 174 | I208: =I209 -> 0.00 | J208: 0.00 | K208: 0.00 | L208: 0.00
A209: 3 | B209: 1 | C209: 1 | D209: 5 | E209: 1 | G209: Kito ilgalaikio materialiojo turto įsigijimo išlaidos | H209: 175 | I209: 0.00 | J209: 0.00 | K209: 0.00 | L209: 0.00
... 166 more rows

Sheet gautos fs pagal š
A2: Vaikų ir jaunimo laisvalaikio centras
A3: (Įstaigos pavadinimas)
A6: Klaipėdos raj. savivaldybės administracijos (Biudžeto ir ekonomikos skyriui)
A9: PAŽYMA DĖL GAUTINŲ, GAUTŲ IR GRĄŽINTINŲ FINANSAVIMO SUMŲ
C11: 2025 Nr.______
A14: Ataskaitinis laikotarpis: | C14: 2025-06-30
A15: Per ataskaitinį laikotarpį gautos finansavimo sumos:
A16: Eil. Nr. | B16: Finansavimo šaltinis | C16: Finansavimo sumų paskirtis | F16: Valstybės funkcija | G16: Programa | H16: Suma
A17: 1 | B17: ML | C17: Kitoms išlaidoms | H17: 29800.00
C18: Iš viso | H18: =0+H17 -> 29800.00
A19: 2 | B19: SB | C19: Kitoms išlaidoms | H19: 190401.27
C20: Iš viso | H20: =0+H19 -> 190401.27
A21: 3 | B21: VBD | C21: Kitoms išlaidoms | H21: 1400.00
C22: Iš viso | H22: =0+H21 -> 1400.00
A25: Direktorė | E25: Skaidra Karalienė
E26: (Parašas) (Vardas ir pavardė)
A29: Biudžetinių įstaigų centralizuotos apskaitos skyriaus vedėjos vedėja | E29: Viktorija Kaprizkina
E30: (Parašas) (Vardas ir pavardė)

Sheet gautos fs
A2: Vaikų ir jaunimo laisvalaikio centras
A3: (Įstaigos pavadinimas)
A6: Klaipėdos raj. savivaldybės administracijos (Biudžeto ir ekonomikos skyriui)
A9: PAŽYMA DĖL GAUTINŲ, GAUTŲ IR GRĄŽINTINŲ FINANSAVIMO SUMŲ
C11: 2025 Nr.______
A14: Ataskaitinis laikotarpis: | C14: 2025-06-30
A15: Per ataskaitinį laikotarpį gautos finansavimo sumos:
A16: Eil. Nr. | B16: Finansavimo šaltinis | C16: Finansavimo sumų paskirtis | F16: Valstybės funkcija | G16: Programa | H16: Suma
A17: 1 | B17: ML | C17: Kitoms išlaidoms | F17: 09.05.01.01. | G17: 1 | H17: 29800.00
C18: Iš viso | F18: 09.05.01.01. | G18: 1 | H18: =0+H17 -> 29800.00
A19: 2 | B19: SB | C19: Kitoms išlaidoms | F19: 09.05.01.01. | G19: 1 | H19: 190401.27
C20: Iš viso | F20: 09.05.01.01. | G20: 1 | H20: =0+H19 -> 190401.27
A21: 3 | B21: VBD | C21: Kitoms išlaidoms | F21: 09.05.01.01. | G21: 1 | H21: 1400.00
C22: Iš viso | F22: 09.05.01.01. | G22: 1 | H22: =0+H21 -> 1400.00
A25: Direktorė | E25: Skaidra Karalienė
E26: (Parašas) (Vardas ir pavardė)
A29: Biudžetinių įstaigų centralizuotos apskaitos skyriaus vedėjos vedėja | E29: Viktorija Kaprizkina
E30: (Parašas) (Vardas ir pavardė)

Sheet sukauptos fs
A2: Vaikų ir jaunimo laisvalaikio centras
A3: (Įstaigos pavadinimas)
A6: Klaipėdos raj. savivaldybės administracijos (Biudžeto ir ekonomikos skyriui)
A9: PAŽYMA DĖL SUKAUPTŲ FINANSAVIMO SUMŲ
C11: 2025 Nr.______
A14: Ataskaitinis laikotarpis: | C14: 2025-06-30
A15: Sukaupta finansavimo pajamų suma ataskaitinio laikotarpio pabaigoje:
A16: Eil. Nr. | B16: Finansavimo šaltinis | C16: Finansavimo sumų paskirtis | F16: Valstybės funkcija | G16: Programa | H16: Suma
A17: 1 | B17: SB | C17: Kitoms išlaidoms | F17: 09.05.01.01. | G17: 1 | H17: 344.06
A18: 2 | B18: SB | C18: Atidėjiniai | F18: 09.05.01.01. | G18: 1 | H18: 1356.67
A19: 3 | B19: SB | C19: Atostogų rezervas, iš jų: | F19: 09.05.01.01. | G19: 1 | H19: 59085.57
A20: 4 | B20: SB | C20: socialinio draudimo įmokos | F20: 09.05.01.01. | G20: 1 | H20: 963.80
C21: Iš viso | F21: 09.05.01.01. | G21: 1 | H21: =0+H17+H18+H19 -> 60786.30
A24: Direktorė | E24: Skaidra Karalienė
E25: (Parašas) (Vardas ir pavardė)
A28: Biudžetinių įstaigų centralizuotos apskaitos skyriaus vedėjos vedėja | E28: Viktorija Kaprizkina
E29: (Parašas) (Vardas ir pavardė)

Sheet sukauptos fs pagal š
A2: Vaikų ir jaunimo laisvalaikio centras
A3: (Įstaigos pavadinimas)
A6: Klaipėdos raj. savivaldybės administracijos (Biudžeto ir ekonomikos skyriui)
A9: PAŽYMA DĖL SUKAUPTŲ FINANSAVIMO SUMŲ
C11: 2025 Nr.______
A14: Ataskaitinis laikotarpis: | C14: 2025-06-30
A15: Sukaupta finansavimo pajamų suma ataskaitinio laikotarpio pabaigoje:
A16: Eil. Nr. | B16: Finansavimo šaltinis | C16: Finansavimo sumų paskirtis | F16: Valstybės funkcija | G16: Programa | H16: Suma
A17: 1 | B17: SB | C17: Kitoms išlaidoms | H17: 344.06
A18: 2 | B18: SB | C18: Atidėjiniai | H18: 1356.67
A19: 3 | B19: SB | C19: Atostogų rezervas, iš jų: | H19: 59085.57
A20: 4 | B20: SB | C20: socialinio draudimo įmokos | H20: 963.80
C21: Iš viso | H21: =0+H17+H18+H19 -> 60786.30
A24: Direktorė | E24: Skaidra Karalienė
E25: (Parašas) (Vardas ir pavardė)
A28: Biudžetinių įstaigų centralizuotos apskaitos skyriaus vedėjos vedėja | E28: Viktorija Kaprizkina
E29: (Parašas) (Vardas ir pavardė)

Sheet pažyma apie pajamas
J1: P A T V I R T I N T A Klaipėdos rajono savivaldybės administracijos direktoriaus 2023 m. kovo 21 d. įsakymu Nr.(5.1.1) AV - 747
B2: GARGŽDŲ VAIKŲ IR JAUNIMO LAISVALAIKIO CENTRAS
B3: (Įstaigos pavadinimas)
B5: 195174984, Laugalių g. 6, Gargždai, Klaipėdos r.
B6: (Registracijos kodas ir buveinės adresas)
J8: Ketvirtinė
A9: PAŽYMA APIE PAJAMAS UŽ PASLAUGAS IR NUOMĄ 2025M. BIRŽELIO MĖN. 30D.
K12: (Eur., euro cnt.)
A13: Pavadinimas | E13: Likutis metų pražioje | F13: Patvirtinta įmokų suma, įskaitant patikslinimą | H13: Faktinės įmokos į biudžetą ataskaitinį laikotarpį | I13: Gauti biudžeto asignavimai per ataskaitinį laikotarpį | J13: Panaudoti asignavimai | K13: Negauti biudžeto asignavimai per ataskaitinį laikotarpį
F15: metams | G15: ataskaitiniam laikotarpiui
A17: Biudžetinių įstaigų pajamų už prekes ir paslaugas įmokos | J17: =I17 -> 0.00 | K17: =(E17+H17-I17) -> 0.00
A18: Įmokos už išlaikymą švietimo, socialinės apsaugos ir kitose įstaigose | F18: 26000.00 | G18: 14600.00 | H18: 16955.00 | I18: =4072.71+7683.89 -> 11756.60 | J18: =I18 -> 11756.60 | K18: =(E18+H18-I18) -> 5198.40
A19: Pajamų už ilgalaikio ir trumpalaikio materialiojo turto nuomą įmokos | F19: 800.00 | G19: 500.00 | J19: =I19 -> 0.00 | K19: =(E19+H19-I19) -> 0.00
A20: Pajamų už socialinio būsto paslaugas įmokos | J20: =I20 -> 0.00 | K20: =(E20+H20-I20) -> 0.00
A21: Pajamų už infrastruktūros plėtrą įmokos, iš jų: | E21: =E22+E23 -> 0.00 | H21: =H22+H23 -> 0.00 | I21: =I22+I23 -> 0.00 | J21: 0.00 | K21: 0.00
A22: Pajamų už prioritetinės infrastruktūros plėtrą įmokos | F22: X | G22: X | J22: =I22 -> 0.00 | K22: =(E22+H22-I22) -> 0.00
A23: Pajamų už neprioritetinės infrastruktūros plėtrą įmokos | F23: X | G23: X | J23: 0.00 | K23: 0.00
A24: Pajamos iš viso | E24: =E17+E18+E19+E20+E21 -> 0.00 | F24: =(F17+F18+F19+F20+F21) -> 26800.00 | G24: =(G17+G18+G19+G20+G21) -> 15100.00 | H24: =(H17+H18+H19+H20+H21) -> 16955.00 | I24: =(I17+I18+I19+I20+I21) -> 11756.60 | J24: =(J17+J18+J19+J20+J21) -> 11756.60 | K24: X
A25: Likutis ataskaitinio laikotarpio pabaigoje, iš viso | E25: X | F25: X | G25: X | H25: X | I25: X | J25: X | K25: =(K17+K18+K19+K21+K20) -> 5198.40
A28: Direktorė | J28: Skaidra Karalienė
H29: (parašas)
A31: Biudžetinių įstaigų centralizuotos apskaitos skyriaus vedėja | J31: Viktorija Kaprizkina
H32: (parašas)
A33: Buhalterė Erika Venckuvienė, el. paštas erika.venckuviene@krcb.lt, tel. nr., +37065949798
A34: (ataskaitos rengėjas, tel. Nr.)

Sheet S7
F2: Informacijos, reikalingos Lietuvos Respublikos savivaldybių iždų
F3: finansinėms ataskaitoms sudaryti,
F4: pateikimo taisyklių
F5: 7 priedas
D7: GARGŽDŲ VAIKŲ IR JAUNIMO LAISVALAIKIO CENTRAS | H7: 195174984
B9: SAVIVALDYBĖS BIUDŽETINIŲ ĮSTAIGŲ PAJAMŲ ĮMOKŲ ATASKAITA UŽ 2025 METŲ II KETVIRTĮ
E10: 2025 06 30
E12: Gargždai
H14: (Eur., euro cnt.)
B15: Didžiosios knygos sąskaitos numeris | C15: Didžiosios knygos sąskaitos pavadinimas | D15: Sukauptos gautinos iš savivaldybės iždo sumos
D17: Laikotarpio pradžios likutis | E17: Pervesta į iždą grąžintinų iš iždo sumų | F17: Gauta iš iždo sumų | G17: Grąžintinų sumų pokytis | H17: Laikotarpio pabaigos likutis (3+4-5-6)
B19: 1 | C19: 2 | D19: 3 | E19: 4 | F19: 5 | G19: 6 | H19: 7
B20: 741 | C20: Apskaičiuotos prekių, turto ir paslaugų pardavimo pajamos | D20: 4092.29 | E20: 8790.00 | F20: 7683.89 | G20: 0.00 | H20: =SUM(D20+E20-F20) -> 5198.40
C23: IŠ VISO: | D23: =SUM(D20:D22) -> 4092.29 | E23: =SUM(E20:E22) -> 8790.00 | F23: =SUM(F20:F22) -> 7683.89 | G23: 0.00 | H23: =SUM(H20:H21) -> 5198.40
B26: Direktorė | G26: Skaidra Karalienė
B27: (vadovo ar jo įgalioto asmens pareigos) | E27: (parašas) | G27: (vardas ir pavardė)
B28: Biudžetinių įstaigų centralizuotos apskaitos skyriaus vedėja | G28: Viktorija Kaprizkina
B29: (vyriausiojo buhalterio (buhalterio) ar jo įgalioto asmens pareigos) | E29: (parašas) | G29: (vardas ir pavardė)
B32: Parengė : buhalterė Erika Venckuvienė, el. paštas erika.venckuviene@krcb.lt, tel. nr. +37065949798

Sheet 9 pažyma
H1: Valdžios sektoriaus subjektų apskaitos duomenų
H2: teikimo Finansų ministerijai ir skelbimo taisyklių
H3: 9 priedas
A5: (Mokėtinų sumų ataskaitos forma)
A6: Vaikų ir jaunimo laisvalaikio centras, 195174984
A7: (įstaigos pavadinimas, kodas Juridinių asmenų registre, adresas)
A9: MOKĖTINŲ SUMŲ
A11: 2025 m. birželio mėn. 30 d.
A12: 2 ketvirtis
A13: (metinė, ketvirtinė)
A15: ATASKAITA
A16: 2025.07.10 Nr.________________
G17: (data)
K19: Kodas
J20: Ministerijos / Savivaldybės
J21: Departamento
J22: Įstaigos | K22: 195174984
K24: (Eurais,ct)
A25: Išlaidų ekonominės klasifikacijos kodas | G25: Išlaidų pavadinimas | H25: Eil.Nr. | I25: Mokėtinos sumos
I26: biudžeto lėšos
I27: likutis metų pradžioje | J27: likutis ataskaitinio laikotarpio pabaigoje
J28: iš viso | K28: iš jų ilgalaikių įsiskolinimų likutis
A29: 1 | G29: 2 | H29: 3 | I29: 4 | J29: 5 | K29: 6
A30: 2 | G30: IŠLAIDOS | H30: 1 | I30: =I31+I37+I39+I42+I47+I59+I66+I75+I81 -> 127.29 | J30: =J31+J37+J39+J42+J47+J59+J66+J75+J81 -> 867.65 | K30: =K31+K37+K39+K42+K47+K59+K66+K75+K81 -> 0.00
A31: 2 | B31: 1 | G31: Darbo užmokestis ir socialinis draudimas | H31: 2 | I31: =I32+I36 -> 0.00 | J31: =J32+J36 -> 0.00 | K31: =K32+K36 -> 0.00
A32: 2 | B32: 1 | C32: 1 | G32: Darbo užmokestis | H32: 3 | I32: =I33+I35 -> 0.00 | J32: =J33+J35 -> 0.00 | K32: =K33+K35 -> 0.00
A33: 2 | B33: 1 | C33: 1 | D33: 1 | E33: 1 | F33: 1 | G33: Darbo užmokestis pinigais | H33: 4
G34: iš jų: gyventojų pajamų mokestis | H34: 5
A35: 2 | B35: 1 | C35: 1 | D35: 1 | E35: 2 | F35: 1 | G35: Pajamos natūra | H35: 6
A36: 2 | B36: 1 | C36: 2 | G36: Socialinio draudimo įmokos | H36: 7
A37: 2 | B37: 2 | G37: Prekių ir paslaugų įsigijimo išlaidos | H37: 8 | I37: =I38 -> 127.29 | J37: =J38 -> 867.65 | K37: =K38 -> 0.00
A38: 2 | B38: 2 | C38: 1 | G38: Prekių ir paslaugų įsigijimo išlaidos | H38: 9 | I38: 127.29 | J38: 867.65
A39: 2 | B39: 3 | G39: Palūkanos | H39: 10 | I39: =I40+I41 -> 0.00 | J39: =J40+J41 -> 0.00 | K39: =K40+K41 -> 0.00
A40: 2 | B40: 3 | C40: 1 | G40: Palūkanos | H40: 11
A41: 2 | B41: 3 | C41: 2 | G41: Žemės nuoma | H41: 12
A42: 2 | B42: 4 | G42: Subsidijos | H42: 13 | I42: =I43 -> 0.00 | J42: =J43 -> 0.00 | K42: =K43 -> 0.00
A43: 2 | B43: 4 | C43: 1 | G43: Subsidijos iš biudžeto lėšų | H43: 14 | I43: =I44+I45+I46 -> 0.00 | J43: =J44+J45+J46 -> 0.00 | K43: =K44+K45+K46 -> 0.00
A44: 2 | B44: 4 | C44: 1 | D44: 1 | E44: 1 | F44: 1 | G44: Subsidijos importui | H44: 15
A45: 2 | B45: 4 | C45: 1 | D45: 1 | E45: 1 | F45: 2 | G45: Subsidijos gaminiams | H45: 16
A46: 2 | B46: 4 | C46: 1 | D46: 1 | E46: 1 | F46: 3 | G46: Subsidijos gamybai | H46: 17
A47: 2 | B47: 5 | G47: Dotacijos | H47: 18 | I47: =I48+I51+I54 -> 0.00 | J47: =J48+J51+J54 -> 0.00 | K47: =K48+K51+K54 -> 0.00
A48: 2 | B48: 5 | C48: 1 | G48: Dotacijos užsienio valstybėms | H48: 19 | I48: =I49+I50 -> 0.00 | J48: =J49+J50 -> 0.00 | K48: =K49+K50 -> 0.00
A49: 2 | B49: 5 | C49: 1 | D49: 1 | E49: 1 | F49: 1 | G49: Dotacijos užsienio valstybėms einamiesiems tikslams | H49: 20
A50: 2 | B50: 5 | C50: 1 | D50: 1 | E50: 1 | F50: 2 | G50: Dotacijos užsienio valstybėms turtui įsigyti | H50: 21
A51: 2 | B51: 5 | C51: 2 | G51: Dotacijos tarptautinėms organizacijoms | H51: 22 | I51: =I52+I53 -> 0.00 | J51: =J52+J53 -> 0.00 | K51: =K52+K53 -> 0.00
A52: 2 | B52: 5 | C52: 2 | D52: 1 | E52: 1 | F52: 1 | G52: Dotacijos tarptautinėms organizacijoms einamiesiems tikslams | H52: 23
A53: 2 | B53: 5 | C53: 2 | D53: 1 | E53: 1 | F53: 2 | G53: Dotacijos tarptautinėms organizacijoms turtui įsigyti | H53: 24
A54: 2 | B54: 5 | C54: 3 | G54: Dotacijos kitiems valdžios sektoriaus subjektams | H54: 25 | I54: =I55+I56+I57+I58 -> 0.00 | J54: =J55+J56+J57+J58 -> 0.00 | K54: =K55+K56+K57+K58 -> 0.00
A55: 2 | B55: 5 | C55: 3 | D55: 1 | E55: 1 | F55: 1 | G55: Dotacijos kitiems valdžios sektoriaus subjektams einamiesiems tikslams | H55: 26
A56: 2 | B56: 5 | C56: 3 | D56: 1 | E56: 1 | F56: 2 | G56: Dotacijos savivaldybėms einamiesiems tikslams | H56: 27
A57: 2 | B57: 5 | C57: 3 | D57: 2 | E57: 1 | F57: 1 | G57: Dotacijos kitiems valdžios sektoriaus subjektams turtui įsigyti | H57: 28
A58: 2 | B58: 5 | C58: 3 | D58: 2 | E58: 1 | F58: 2 | G58: Dotacijos savivaldybėms turtui įsigyti | H58: 29
A59: 2 | B59: 6 | G59: Įmokos į Europos Sąjungos biudžetą | H59: 30 | I59: =I60+I61+I62+I63+I64+I65 -> 0.00 | J59: =J60+J61+J62+J63+J64+J65 -> 0.00 | K59: =K60+K61+K62+K63+K64+K65 -> 0.00
A60: 2 | B60: 6 | C60: 1 | G60: Tradiciniai nuosavi ištekliai | H60: 31
A61: 2 | B61: 6 | C61: 2 | G61: Pridėtinės vertės mokesčio nuosavi ištekliai | H61: 32
A62: 2 | B62: 6 | C62: 3 | G62: Bendrųjų nacionalinių pajamų nuosavi ištekliai | H62: 33
A63: 2 | B63: 6 | C63: 4 | G63: Biudžeto disbalansų korekcija Jungtinės Karalystės naudai | H63: 34
A64: 2 | B64: 6 | C64: 5 | G64: Su nuosavais ištekliais susijusios baudos, delspinigiai ir neigiamos palūkanos | H64: 35
A65: 2 | B65: 6 | C65: 6 | G65: Neperdirbto plastiko atliekų nuosavi ištekliai | H65: 36
A66: 2 | B66: 7 | G66: Socialinės išmokos (pašalpos) | H66: 37 | I66: =I67+I70+I74 -> 0.00 | J66: =J67+J70+J74 -> 0.00 | K66: =K67+K70+K74 -> 0.00
A67: 2 | B67: 7 | C67: 1 | G67: Socialinio draudimo išmokos (pašalpos) | H67: 38 | I67: =I68+I69 -> 0.00 | J67: =J68+J69 -> 0.00 | K67: =K68+K69 -> 0.00
A68: 2 | B68: 7 | C68: 1 | D68: 1 | E68: 1 | F68: 1 | G68: Socialinio draudimo išmokos pinigais | H68: 39
A69: 2 | B69: 7 | C69: 1 | D69: 1 | E69: 1 | F69: 2 | G69: Socialinio draudimo išmokos natūra | H69: 40
A70: 2 | B70: 7 | C70: 2 | G70: Socialinė parama (soc. paramos pašalpos) ir rentos | H70: 41 | I70: =I71+I72+I73 -> 0.00 | J70: =J71+J72+J73 -> 0.00 | K70: =K71+K72+K73 -> 0.00
A71: 2 | B71: 7 | C71: 2 | D71: 1 | E71: 1 | F71: 1 | G71: Socialinė parama pinigais | H71: 42
A72: 2 | B72: 7 | C72: 2 | D72: 1 | E72: 1 | F72: 2 | G72: Socialinė parama natūra | H72: 43
A73: 2 | B73: 7 | C73: 2 | D73: 2 | E73: 1 | F73: 1 | G73: Rentos | H73: 44
A74: 2 | B74: 7 | C74: 3 | G74: Darbdavių socialinė parama | H74: 45
A75: 2 | B75: 8 | G75: Kitos išlaidos | H75: 46 | I75: =I76+I80 -> 0.00 | J75: =J76+J80 -> 0.00 | K75: =K76+K80 -> 0.00
A76: 2 | B76: 8 | C76: 1 | D76: 1 | G76: Kitos išlaidos einamiesiems tikslams | H76: 47 | I76: =I77+I78+I79 -> 0.00 | J76: =J77+J78+J79 -> 0.00 | K76: =K77+K78+K79 -> 0.00
A77: 2 | B77: 8 | C77: 1 | D77: 1 | E77: 1 | F77: 1 | G77: Stipendijos | H77: 48
A78: 2 | B78: 8 | C78: 1 | D78: 1 | E78: 1 | F78: 2 | G78: Kitos išlaidos kitiems einamiesiems tikslams | H78: 49
A79: 2 | B79: 8 | C79: 1 | D79: 1 | E79: 1 | F79: 3 | G79: Valiutos kurso įtaka | H79: 50
A80: 2 | B80: 8 | C80: 1 | D80: 2 | G80: Kitos išlaidos turtui įsigyti | H80: 51
A81: 2 | B81: 9 | G81: Pervedamos Europos Sąjungos, kitos tarptautinės finansinės paramos ir bendrojo finansavimo lėšos | H81: 52
A82: 3 | G82: MATERIALIOJO IR NEMATERIALIOJO TURTO ĮSIGIJIMO, FINANSINIO TURTO PADIDĖJIMO IR FINANSINIŲ ĮSIPAREIGOJIMŲ VYKDYMO IŠLAIDOS | H82: 53 | I82: =I83+I89+I90 -> 0.00 | J82: =J83+J89+J90 -> 0.00 | K82: =K83+K89+K90 -> 0.00
A83: 3 | B83: 1 | G83: Materialiojo ir nematerialiojo turto įsigijimo išlaidos | H83: 54 | I83: =I84+I85+I86+I87+I88 -> 0.00 | J83: =J84+J85+J86+J87+J88 -> 0.00 | K83: =K84+K85+K86+K87+K88 -> 0.00
A84: 3 | B84: 1 | C84: 1 | G84: Ilgalaikio materialiojo turto kūrimo ir įsigijimo išlaidos | H84: 55
A85: 3 | B85: 1 | C85: 2 | G85: Nematerialiojo turto kūrimo ir įsigijimo išlaidos | H85: 56
A86: 3 | B86: 1 | C86: 3 | G86: Atsargų kūrimo ir įsigijimo išlaidos | H86: 57
A87: 3 | B87: 1 | C87: 4 | G87: Ilgalaikio turto finansinės nuomos (lizingo) išlaidos | H87: 58
A88: 3 | B88: 1 | C88: 5 | G88: Biologinio turto ir žemės gelmių išteklių įsigijimo išlaidos | H88: 59
A89: 3 | B89: 2 | G89: Finansinio turto padidėjimo išlaidos (finansinio turto įsigijimo / investavimo išlaidos) | H89: 60
A90: 3 | B90: 3 | G90: Finansinių įsipareigojimų vykdymo išlaidos (grąžintos skolos) | H90: 61
G91: IŠ VISO (2 + 3) | H91: 62 | I91: =I30+I82 -> 127.29 | J91: =J30+J82 -> 867.65 | K91: =K30+K82 -> 0.00
A93: Pastaba. Ilgalaikių įsipareigojimų likutis – įsipareigojimai, kurių terminas ilgesnis negu 1 metai.
A94: Direktorė | J94: Skaidra Karalienė
A95: (įstaigos vadovo ar jo įgalioto asmens pareigų pavadinimas) | I95: (parašas) | J95: (vardas ir pavardė)
A97: Biudžetinių įstaigų centralizuotos apskaitos skyriaus vedėjos vedėja | J97: Viktorija Kaprizkina
A98: (vyriausiasis buhalteris (buhalteris) / centralizuotos apskaitos įstaigos vadovo arba jo įgalioto asmens pareigų pavadinimas | I98: (parašas) | J98: (vardas ir pavardė)

Sheet 9 priedo paž
E1: P A T V I R T I N T A
E2: Klaipėdos rajono savivaldybės
E3: administracijos direktoriaus
E4: 2020 m. kovo 24 d.
E5: įsakymu Nr. (5.1.1 E) AV-659
B6: Gargždų vaikų ir jaunimo laisvalaikio centras
A7: (Įstaigos pavadinimas)
A8: PAŽYMA PRIE MOKĖTINŲ SUMŲ 2025 M. BIRŽELIO 30 D. ATASKAITOS 9 PRIEDO
F9: Ketvirtinė
G10: (Eurais)
A11: Išlaidų ekonominės klasifikacijos kodas | B11: Išlaidų pavadinimas | C11: Iš viso | D11: biudžeto lėšos
D12: savivaldybės biudžeto | E12: valstybės biudžeto specialioji tikslinė dotacija | F12: mokymo lėšos | G12: pajamos už paslaugas ir nuomą | H12: ES struktūrinių fondų/valstybės biudžeto
D15: SB | E15: VBD | F15: ML | G15: S | H15: ES/VBES
A16: 2.1.1. | B16: Darbo užmokestis | C16: =(D16+E16+F16+G16+H16) -> 0.00
B17: iš jų: | C17: 0.00
B18: gyventojų pajamų mokestis | C18: 0.00 | F18: 0.00 | G18: 0.00
A19: 2.1.2. | B19: Socialinio draudimo įmokos | C19: 0.00
A20: 2.2.1. | B20: Prekių ir paslaugų įsigijimo išlaidos | C20: 867.65 | D20: =(D21+D22+D23+D24+D25+D26+D27+D28+D29+D30+D31+D37+D38+D39) -> 344.06 | E20: =(E21+E22+E23+E24+E25+E26+E27+E28+E29+E30+E31+E37+E38+E39) -> 0.00 | F20: =(F21+F22+F23+F24+F25+F26+F27+F28+F29+F30+F31+F37+F38+F39) -> 0.00 | G20: =(G21+G22+G23+G24+G25+G26+G27+G28+G29+G30+G31+G37+G38+G39) -> 523.59 | H20: =(H21+H22+H23+H24+H25+H26+H27+H28+H29+H30+H31+H37+H38+H39) -> 0.00
A21: 2.2.1.1.1.1. | B21: Mitybos išlaidos | C21: 0.00
A22: 2.2.1.1.1.2. | B22: Medikamentų įsigijimo išlaidos | C22: 0.00
A23: 2.2.1.1.1.5. | B23: Ryšių paslaugų įsigijimo išlaidos | C23: 122.68 | D23: 122.68
A24: 2.2.1.1.1.6. | B24: Transporto išlaikymo išlaidos | C24: 0.00
A25: 2.2.1.1.1.7. | B25: Aprangos ir patalynės įsigijimo išlaidos | C25: 0.00
A26: 2.2.1.1.1.11. | B26: Komandiruočių išlaidos | C26: 0.00
A27: 2.2.1.1.1.12. | B27: Gyvenamųjų vietovių viešojo ūkio išlaidos | C27: 0.00
A28: 2.2.1.1.1.14. | B28: Materialiojo ir nemat. turto nuomos išlaidos | C28: 0.00
A29: 2.2.1.1.1.15. | B29: Mat. turto paprastojo remonto išlaidos | C29: 25.41 | D29: 25.41
A30: 2.2.1.1.1.16. | B30: Kvalifikacijos kėlimo išlaidos | C30: 0.00
A31: 2.2.1.1.1.20 | B31: Komunalinių paslaugų įsigijimo išlaidos | C31: 162.09 | D31: =(D33+D34+D35+D36) -> 162.09
B32: iš jų:
B33: šildymui | C33: =(D33+E33+F33+G33+H33) -> 10.31 | D33: 10.31
B34: elektros energijai | C34: 0.00
B35: vandentiekiui, kanalizacijai | C35: 151.78 | D35: 151.78
B36: atliekų tvarkymui | C36: 0.00
A37: 2.2.1.1.1.21. | B37: Informacinių technologijų prekių ir paslaugų įsigijimo išlaidos | C37: 170.00 | G37: 170.00
A38: 2.2.1.1.1.22. | B38: Reprezentacinės išlaidos | C38: 0.00
A39: 2.2.1.1.1.30 | B39: Kitų prekių ir paslaugų įsigijimo išlaidos | C39: 387.47 | D39: 33.88 | G39: 353.59
A40: 2.7.3. | B40: Darbdavių socialinė parama | C40: 0.00 | D40: =D41 -> 0.00
A41: 2.7.3.1.1.1. | B41: Darbdavių socialinė parama pinigais | C41: 0.00
A42: 3.1.1 | B42: Materialiojo ir nematerialiojo turto įsigijimas | C42: 0.00 | D42: =D43 -> 0.00
A43: 3.1.1.3.1.2. | B43: Kitų mašinų ir įrenginių įsigijimo išlaidos | C43: 0.00
B44: Iš viso: | C44: =(C16+C19+C20+C40+C42) -> 867.65 | D44: =(D16+D19+D20+D40+D42) -> 344.06 | E44: =(E16+E19+E20+E40) -> 0.00 | F44: =(F16+F19+F20+F40) -> 0.00 | G44: =(G16+G19+G20+G40) -> 523.59 | H44: =(H16+H19+H20+H40) -> 0.00
A46: Direktorės pavaduotoja | F46: Skaidra Karalienė
C47: (parašas) | F47: (vardas ir pavardė)
A49: Biudžetinių įstaigų centralizuotos apskaitos skyriaus vedėja | F49: Viktorija Kaprizkina
C50: (parašas) | F50: (vardas ir pavardė)
A53: Parengė : buhalterė Erika Venckuvienė, el. paštas erika.venckuviene@krcb.lt, tel. nr. +37065949798
